Local authority department which incurred the expenditure,Service Division,Cost Centre,Summary of the Purpose of Expenditure,Expense Type,Expense Code,Detailed Expense Type,Date of Transaction,Transaction Number,Beneficiary,Merchant Category Number,Merchant Category,Gross Amount,VAT,Net Amount
Children and Young Peoples Services,Head of Childrens Social Care,085342,9 Cedar Drive Aycliffe,Supplies and Services,324117,Provisions E324,01-Jan-2020,000006911015214,TESCO STORES 2916,5411,Catering costs - provisions,6.75,0.00,6.75
Children and Young Peoples Services,Head of Childrens Social Care,085332,Middlestone Moor CU,Supplies and Services,348037,Subsistence E348,01-Jan-2020,000006911015618,THE SHIP REDMARSHALL,5813,Subsistence,58.75,0.00,58.75
Children and Young Peoples Services,Head of Childrens Social Care,085332,Middlestone Moor CU,Supplies and Services,324117,Provisions E324,01-Jan-2020,000006911015628,STARBUCKS THINFORD,5499,Catering costs - provisions,12.35,0.00,12.35
Children and Young Peoples Services,Head of Early Help Inclusion & Vulnerable Children.,085957,Secure Management,Supplies and Services,304403,Equipment and Materials,01-Jan-2020,000006911015740,AMZNMktplace,5999,Other consumables,23.01,0.00,23.01
Children and Young Peoples Services,Head of Early Help Inclusion & Vulnerable Children.,085957,Secure Management,Supplies and Services,304403,Equipment and Materials,01-Jan-2020,000006911015742,AMZNMktplace,5999,Other consumables,10.55,0.00,10.55
Children and Young Peoples Services,Head of Early Help Inclusion & Vulnerable Children.,085957,Secure Management,Supplies and Services,304403,Equipment and Materials,01-Jan-2020,000006911015750,AMZNMktplace,5999,Other consumables,3.09,0.00,3.09
Children and Young Peoples Services,Head of Early Help Inclusion & Vulnerable Children.,085957,Secure Management,Supplies and Services,304403,Equipment and Materials,01-Jan-2020,000006911015752,AMZNMktplace,5999,Other consumables,17.49,0.00,17.49
Children and Young Peoples Services,Head of Childrens Social Care,085352,Tow Law CU,Supplies and Services,348037,Subsistence E348,01-Jan-2020,000006911015926,STARBUCKS,5814,Subsistence,5.55,0.00,5.55
Children and Young Peoples Services,Head of Childrens Social Care,085352,Tow Law CU,Supplies and Services,348037,Subsistence E348,01-Jan-2020,000006911015930,PIZZA HUT 956,5812,Subsistence,50.93,0.00,50.93
Children and Young Peoples Services,Head of Childrens Social Care,085352,Tow Law CU,Supplies and Services,332047,Printing Stationery and Gen Off Exps,01-Jan-2020,000006911015932,ODEON,7832,Stationery,16.00,0.00,16.00
Children and Young Peoples Services,Head of Childrens Social Care,085352,Tow Law CU,Supplies and Services,332047,Printing Stationery and Gen Off Exps,01-Jan-2020,000006911015936,ODEON,7832,Stationery,8.98,0.00,8.98
Children and Young Peoples Services,Head of Childrens Social Care,085332,Middlestone Moor CU,Supplies and Services,304999,Equipment and Materials,01-Jan-2020,000006917364054,SNAPFISH UK,7395,Misc equipment tools and materials,46.98,0.00,46.98
Children and Young Peoples Services,Head of Early Help Inclusion & Vulnerable Children.,085957,Secure Management,Supplies and Services,304403,Equipment and Materials,02-Jan-2020,000006911015756,AMZNMktplace,5999,Other consumables,3.00,0.00,3.00
Regeneration and Local Services,Business Durham CL0850,030689,Inward Investment and Aftercare,Supplies and Services,304403,Equipment and Materials,02-Jan-2020,000006914055036,ADOBE CREATIVE CLOUD,5734,Other consumables,49.94,8.32,41.62
Regeneration and Local Services,Business Durham CL0850,030689,Inward Investment and Aftercare,Supplies and Services,342222,Computers and Communications,02-Jan-2020,000006914055040,FASTHOSTS INTERNET,4816,Comp hardware purch-network servers,67.20,11.20,56.00
Regeneration and Local Services,Business Durham CL0850,030689,Inward Investment and Aftercare,Supplies and Services,342222,Computers and Communications,02-Jan-2020,000006914055042,FASTHOSTS INTERNET,4816,Comp hardware purch-network servers,72.66,12.11,60.55
Adult and Health Services,Head of Adults,055302,Durham Pathways,Supplies and Services,324117,Provisions E324,02-Jan-2020,000006914055068,LIDL GB DURHAM,5411,Catering costs - provisions,3.66,0.61,3.05
Adult and Health Services,Head of Adults,055302,Durham Pathways,Supplies and Services,324117,Provisions E324,02-Jan-2020,000006914055068 - 1,LIDL GB DURHAM,5411,Catering costs - provisions,4.33,,4.33
Regeneration and Local Services,Culture Sport and Tourism,030708,VCD - Marketing & Information,Supplies and Services,304999,Equipment and Materials,02-Jan-2020,000006914055082,MAILCHIMP MONTHLY,5968,Misc equipment tools and materials,275.94,0.00,275.94
Children and Young Peoples Services,Head of Childrens Social Care,085342,9 Cedar Drive Aycliffe,Supplies and Services,348037,Subsistence E348,02-Jan-2020,000006914055090,BELLA ITALIA,5812,Subsistence,89.17,0.00,89.17
Children and Young Peoples Services,Head of Childrens Social Care,085332,Middlestone Moor CU,Supplies and Services,328041,Clothing uniforms and laundry E328,02-Jan-2020,000006914055104,BOOHOO.COM,5691,Clothing uniforms and laundry,9.09,0.00,9.09
Children and Young Peoples Services,Head of Childrens Social Care,085332,Middlestone Moor CU,Supplies and Services,384871,Miscellaneous Expenses,02-Jan-2020,000006914055114,TEES ACTIVE LTD,7997,Training-other activities,6.00,0.00,6.00
Children and Young Peoples Services,Head of Childrens Social Care,085332,Middlestone Moor CU,Supplies and Services,384871,Miscellaneous Expenses,02-Jan-2020,000006914055120,TEES ACTIVE LTD,7997,Training-other activities,19.20,0.00,19.20
Children and Young Peoples Services,Head of Childrens Social Care,085332,Middlestone Moor CU,Supplies and Services,304403,Equipment and Materials,02-Jan-2020,000006914055122,ASDA SUPERSTORE 4987,5411,Other consumables,89.56,0.00,89.56
Children and Young Peoples Services,Head of Childrens Social Care,085332,Middlestone Moor CU,Supplies and Services,304403,Equipment and Materials,02-Jan-2020,000006914055126,SELECTA U.K. LIMITED,5499,Other consumables,1.40,0.00,1.40
Children and Young Peoples Services,Head of Childrens Social Care,085332,Middlestone Moor CU,Supplies and Services,304403,Equipment and Materials,02-Jan-2020,000006914055128,SELECTA U.K. LIMITED,5499,Other consumables,1.60,0.00,1.60
Children and Young Peoples Services,Head of Childrens Social Care,085332,Middlestone Moor CU,Supplies and Services,384237,Miscellaneous Expenses,02-Jan-2020,000006914055132,STARBUCKS THINFORD,5499,Recreational exps outings parties,8.60,0.00,8.60
Children and Young Peoples Services,Head of Childrens Social Care,085332,Middlestone Moor CU,Transport,215995,Running Costs of Vehicles,02-Jan-2020,000006914055136,ASDA PETROL 5115,5541,Vehicle running expenses,56.68,0.00,56.68
Regeneration and Local Services,Culture Sport and Tourism,011207,Physical Activity 011207,Third Party Payments,430100,Rendered by Private Contractors,02-Jan-2020,000006914055144,CAMPAIGNMONITOR,7399,Payments to sub-contractors,441.75,0.00,441.75
Regeneration and Local Services,Culture Sport and Tourism,011207,Physical Activity 011207,Supplies and Services,344033,Telephones,02-Jan-2020,000006914055148,TEXTANYWHERE LTD,4814,Telephones general-all costs,291.00,0.00,291.00
Children and Young Peoples Services,Head of Early Help Inclusion & Vulnerable Children.,073998,TTF-Co-ordinator Grant,Transfer Payments,525033,Other,02-Jan-2020,000006914055154,Amazon Prime D86MU6BK5,5968,Grants to individuals,7.99,0.00,7.99
Children and Young Peoples Services,Head of Childrens Social Care,085334,West Rainton Satelite Home,Supplies and Services,324117,Provisions E324,02-Jan-2020,000006914055158,TESCO STORES 2371,5411,Catering costs - provisions,168.52,0.00,168.52
Children and Young Peoples Services,Head of Childrens Social Care,085334,West Rainton Satelite Home,Supplies and Services,324117,Provisions E324,02-Jan-2020,000006914055162,TESCO STORES 2371,5411,Catering costs - provisions,9.90,0.00,9.90
Children and Young Peoples Services,Head of Childrens Social Care,085334,West Rainton Satelite Home,Supplies and Services,328041,Clothing uniforms and laundry E328,02-Jan-2020,000006914055164,POUNDSTRETCHER 7,5331,Clothing uniforms and laundry,10.97,0.00,10.97
Children and Young Peoples Services,Head of Childrens Social Care,085334,West Rainton Satelite Home,Supplies and Services,304999,Equipment and Materials,02-Jan-2020,000006914055168,HOME BARGAINS,5251,Misc equipment tools and materials,8.98,0.00,8.98
Children and Young Peoples Services,Head of Childrens Social Care,085334,West Rainton Satelite Home,Transport,215995,Running Costs of Vehicles,02-Jan-2020,000006914055172,IMO CAR WASH DURHAM (T,7542,Vehicle running expenses,6.00,0.00,6.00
Children and Young Peoples Services,Head of Early Help Inclusion & Vulnerable Children.,085957,Secure Management,Supplies and Services,324117,Provisions E324,02-Jan-2020,000006914055176,TESCO STORES 6329,5411,Catering costs - provisions,85.81,0.00,85.81
Children and Young Peoples Services,Head of Early Help Inclusion & Vulnerable Children.,085957,Secure Management,Supplies and Services,304403,Equipment and Materials,02-Jan-2020,000006914055178,AMZNMktplace,5999,Other consumables,27.98,0.00,27.98
Regeneration and Local Services,Environmental Services,011060,C&G - Hardwick Park Catering,Supplies and Services,304083,Equipment and Materials,02-Jan-2020,000006914055180,WWW.NISBETS.COM,5964,Catering equipment,113.20,18.87,94.33
Regeneration and Local Services,Culture Sport and Tourism,054815,Gala Theatre Stage School,Supplies and Services,308011,Furniture,02-Jan-2020,000006914055194,PAYPAL VINSANI LTD EB,5719,Furniture repair and replacement,2.99,0.00,2.99
Children and Young Peoples Services,Head of Childrens Social Care,085331,New Lea Childrens Home,Supplies and Services,324117,Provisions E324,02-Jan-2020,000006914055206,ASDA GROCERIES ONLINE,5411,Catering costs - provisions,149.53,0.00,149.53
Children and Young Peoples Services,Head of Childrens Social Care,085331,New Lea Childrens Home,Supplies and Services,324117,Provisions E324,02-Jan-2020,000006914055210,ASDA GROCERIES ONLINE,5411,Catering costs - provisions,-0.01,0.00,-0.01
Regeneration and Local Services,Development and Housing,031576,B& B - Temp Accom,Supplies and Services,364320,Grants to Voluntary Organisations,02-Jan-2020,000006914055214,GRAINGER HOTEL,7011,Accommodation assistance,250.00,0.00,250.00
Children and Young Peoples Services,Head of Education and Skills,078554,Adult Skills-Main,Supplies and Services,304221,Equipment and Materials,02-Jan-2020,000006914055240,PAYPAL MORGANSDIRE EB,5169,Direct materials,12.84,0.00,12.84
Children and Young Peoples Services,Head of Education and Skills,078554,Adult Skills-Main,Supplies and Services,338057,Services,02-Jan-2020,000006914055242,WWW.CARECO.CO.UK,5047,Medical fees 338057,35.39,0.00,35.39
Children and Young Peoples Services,Head of Education and Skills,078554,Adult Skills-Main,Supplies and Services,304403,Equipment and Materials,02-Jan-2020,000006914055246,HTTPS://WWW.THEDYSLEXI,5999,Other consumables,164.03,0.00,164.03
Children and Young Peoples Services,Head of Childrens Social Care,085352,Tow Law CU,Supplies and Services,324117,Provisions E324,02-Jan-2020,000006914055250,STARBUCKS BISHOP AUCKL,5499,Catering costs - provisions,10.90,0.00,10.90
Adult and Health Services,Head of Adults,055306,Spennymoor Pathways,Supplies and Services,324117,Provisions E324,02-Jan-2020,000006914055264,ASDA SUPERSTORE 4987,5411,Catering costs - provisions,6.00,0.00,6.00
Children and Young Peoples Services,Head of Early Help Inclusion & Vulnerable Children.,088101,CLS 0-19 Community Family Hub,Supplies and Services,328041,Clothing uniforms and laundry E328,02-Jan-2020,000006914055270,ASDA GEORGE COM LEEDS,5411,Clothing uniforms and laundry,-41.00,0.00,-41.00
Resources BK0010,Digital and Customer Services,065335,School Services - Implementations,Supplies and Services,304303,Equipment and Materials,02-Jan-2020,000006914055272,WWW.TOOLSTATION.COM,5251,Network for resale,179.88,29.98,149.90
Children and Young Peoples Services,Head of Childrens Social Care,085342,9 Cedar Drive Aycliffe,Supplies and Services,324117,Provisions E324,02-Jan-2020,000006914055278,TESCO STORES 2916,5411,Catering costs - provisions,4.86,0.00,4.86
Children and Young Peoples Services,Head of Childrens Social Care,085332,Middlestone Moor CU,Supplies and Services,348037,Subsistence E348,02-Jan-2020,000006914055282,SEATON FISHERIES,5812,Subsistence,41.76,0.00,41.76
Regeneration and Local Services,Corporate Property and Land,030691,Catering - Durham Dales Centre,Supplies and Services,324117,Provisions E324,02-Jan-2020,000006914055316,SCOTMID CO-OP STANHOPE,5411,Catering costs - provisions,2.50,0.00,2.50
Regeneration and Local Services,Corporate Property and Land,021242,Catering - County Hall,Supplies and Services,324117,Provisions E324,02-Jan-2020,000006917363908,BATLEYS PERTH,5300,Catering costs - provisions,936.18,156.03,780.15
Regeneration and Local Services,Corporate Property and Land,021242,Catering - County Hall,Supplies and Services,324117,Provisions E324,02-Jan-2020,000006917363908 - 1,BATLEYS PERTH,5300,Catering costs - provisions,255.23,,255.23
Regeneration and Local Services,Corporate Property and Land,030691,Catering - Durham Dales Centre,Supplies and Services,324117,Provisions E324,02-Jan-2020,000006917364312,BATLEYS PERTH,5300,Catering costs - provisions,19.20,3.20,16.00
Regeneration and Local Services,Corporate Property and Land,030691,Catering - Durham Dales Centre,Supplies and Services,324117,Provisions E324,02-Jan-2020,000006917364312 - 1,BATLEYS PERTH,5300,Catering costs - provisions,39.35,,39.35
Regeneration and Local Services,Corporate Property and Land,030691,Catering - Durham Dales Centre,Supplies and Services,324117,Provisions E324,02-Jan-2020,000006917364320,BATLEYS PERTH,5300,Catering costs - provisions,4.26,0.71,3.55
Regeneration and Local Services,Corporate Property and Land,030691,Catering - Durham Dales Centre,Supplies and Services,324117,Provisions E324,02-Jan-2020,000006917364320 - 1,BATLEYS PERTH,5300,Catering costs - provisions,5.20,,5.20
Regeneration and Local Services,Corporate Property and Land,030691,Catering - Durham Dales Centre,Supplies and Services,324117,Provisions E324,02-Jan-2020,000006917364326,BATLEYS PERTH,5300,Catering costs - provisions,7.94,0.00,7.94
Resources BK0010,Digital and Customer Services,065335,School Services - Implementations,Supplies and Services,304639,Equipment and Materials,02-Jan-2020,000006917364372,AMZNMKTPLACE AMAZON.CO,5999,Technicians-supplies,59.95,10.00,49.95
Regeneration and Local Services,Culture Sport and Tourism,011207,Physical Activity 011207,Third Party Payments,430100,Rendered by Private Contractors,03-Jan-2020,000006914055150,CAMPAIGNMONITOR,7399,Payments to sub-contractors,12.15,0.00,12.15
Children and Young Peoples Services,Head of Education and Skills,054640,Durham Learning Resources 054640,Supplies and Services,312011,Newspapers books and periodicals E312,03-Jan-2020,000006917363720,Amazon.co.uk S54FC1ZH5,5969,Books-school library,102.34,0.00,102.34
Children and Young Peoples Services,Head of Education and Skills,054640,Durham Learning Resources 054640,Supplies and Services,304245,Equipment and Materials,03-Jan-2020,000006917363726,Amazon.co.uk UO2594YX5,5969,Materials,39.90,0.00,39.90
Regeneration and Local Services,Development and Housing,031576,B& B - Temp Accom,Supplies and Services,364320,Grants to Voluntary Organisations,03-Jan-2020,000006917363736,BUDGET EXPRESS HOTEL,7011,Accommodation assistance,178.00,0.00,178.00
Children and Young Peoples Services,Head of Childrens Social Care,085357,LAC Bespoke Placements,Transport,235057,Public Transport,03-Jan-2020,000006917363780,HOLIDAY PAYMENT VRUK,4722,Staff travelling,199.00,0.00,199.00
Adult and Health Services,Head of Adults,055302,Durham Pathways,Supplies and Services,324117,Provisions E324,03-Jan-2020,000006917363784,LIDL GB DURHAM,5411,Catering costs - provisions,15.26,0.00,15.26
Regeneration and Local Services,Culture Sport and Tourism,011263,Louisa Centre 011263,Supplies and Services,324117,Provisions E324,03-Jan-2020,000006917363790,JR HOLLAND FOODSERVICE,5499,Catering costs - provisions,55.27,0.00,55.27
Regeneration and Local Services,Culture Sport and Tourism,011265,Empire Theatre (Operations),Supplies and Services,324117,Provisions E324,03-Jan-2020,000006917363836,HOPWELLS LTD,5811,Catering costs - provisions,388.08,64.68,323.40
Regeneration and Local Services,Culture Sport and Tourism,011265,Empire Theatre (Operations),Supplies and Services,324117,Provisions E324,03-Jan-2020,000006917363844,HOPWELLS LTD,5811,Catering costs - provisions,148.51,24.75,123.76
Regeneration and Local Services,Culture Sport and Tourism,011265,Empire Theatre (Operations),Supplies and Services,324117,Provisions E324,03-Jan-2020,000006917363854,HOPWELLS LTD,5811,Catering costs - provisions,221.76,36.96,184.80
Children and Young Peoples Services,Head of Childrens Social Care,085352,Tow Law CU,Supplies and Services,324117,Provisions E324,03-Jan-2020,000006917363858,TESCO STORES 6329,5411,Catering costs - provisions,16.73,0.00,16.73
Regeneration and Local Services,Corporate Property and Land,021242,Catering - County Hall,Supplies and Services,324117,Provisions E324,03-Jan-2020,000006917363914,HOPWELLS LTD,5811,Catering costs - provisions,70.73,0.00,70.73
Regeneration and Local Services,Corporate Property and Land,021242,Catering - County Hall,Supplies and Services,324117,Provisions E324,03-Jan-2020,000006917363920,HOPWELLS LTD,5811,Catering costs - provisions,187.12,0.00,187.12
Regeneration and Local Services,Corporate Property and Land,021242,Catering - County Hall,Premises,145009,Cleaning and Domestic Supplies,03-Jan-2020,000006917363924,ALLIANCE DISPOSABLES L,2842,Other cleaning and domestic costs,73.88,12.32,61.56
Regeneration and Local Services,Corporate Property and Land,021242,Catering - County Hall,Premises,145009,Cleaning and Domestic Supplies,03-Jan-2020,000006917363932,ALLIANCE DISPOSABLES L,2842,Other cleaning and domestic costs,53.05,8.84,44.21
Regeneration and Local Services,Culture Sport and Tourism,054812,Gala Theatre - Catering etc,Supplies and Services,324117,Provisions E324,03-Jan-2020,000006917363944,JR HOLLAND FOODSERVICE,5499,Catering costs - provisions,39.64,0.00,39.64
Children and Young Peoples Services,Head of Early Help Inclusion & Vulnerable Children.,079599,Psychological-HQ,Supplies and Services,324117,Provisions E324,03-Jan-2020,000006917363954,ASDA SUPERSTORE 4987,5411,Catering costs - provisions,16.80,0.00,16.80
Children and Young Peoples Services,Head of Childrens Social Care,085362,LAC & Permanence Team 2,Supplies and Services,304403,Equipment and Materials,03-Jan-2020,000006917363970,HARTLEPOOL BC,9399,Other consumables,11.00,0.00,11.00
Children and Young Peoples Services,Head of Childrens Social Care,085361,LAC & Permanence Team 1,Supplies and Services,304403,Equipment and Materials,03-Jan-2020,000006917363974,WWW.DURHAM.GOV.UK,9399,Other consumables,11.00,0.00,11.00
Children and Young Peoples Services,Head of Childrens Social Care,085361,LAC & Permanence Team 1,Supplies and Services,304403,Equipment and Materials,03-Jan-2020,000006917363978,WWW.DURHAM.GOV.UK,9399,Other consumables,11.00,0.00,11.00
Regeneration and Local Services,Culture Sport and Tourism,054813,Gala Theatre - Technical,Supplies and Services,304403,Equipment and Materials,03-Jan-2020,000006917364022,AMZNMktplace,5999,Other consumables,20.94,0.00,20.94
Children and Young Peoples Services,Head of Childrens Social Care,085332,Middlestone Moor CU,Supplies and Services,348037,Subsistence E348,03-Jan-2020,000006917364048,MCDONALD`S,5812,Subsistence,1.11,0.00,1.11
Children and Young Peoples Services,Head of Early Help Inclusion & Vulnerable Children.,085957,Secure Management,Supplies and Services,324117,Provisions E324,03-Jan-2020,000006917364092,TESCO STORES 6329,5411,Catering costs - provisions,100.12,0.00,100.12
Regeneration and Local Services,Environmental Services,011060,C&G - Hardwick Park Catering,Supplies and Services,324117,Provisions E324,03-Jan-2020,000006917364114,HOPWELLS LTD,5811,Catering costs - provisions,102.90,17.15,85.75
Regeneration and Local Services,Environmental Services,011060,C&G - Hardwick Park Catering,Supplies and Services,324117,Provisions E324,03-Jan-2020,000006917364114 - 1,HOPWELLS LTD,5811,Catering costs - provisions,83.68,,83.68
Regeneration and Local Services,Environmental Services,011060,C&G - Hardwick Park Catering,Supplies and Services,324117,Provisions E324,03-Jan-2020,000006917364120,HOPWELLS LTD,5811,Catering costs - provisions,171.55,0.00,171.55
Regeneration and Local Services,Environmental Services,011060,C&G - Hardwick Park Catering,Supplies and Services,324117,Provisions E324,03-Jan-2020,000006917364122,HOPWELLS LTD,5811,Catering costs - provisions,149.10,24.85,124.25
Regeneration and Local Services,Environmental Services,011060,C&G - Hardwick Park Catering,Supplies and Services,324117,Provisions E324,03-Jan-2020,000006917364122 - 1,HOPWELLS LTD,5811,Catering costs - provisions,47.59,,47.59
Regeneration and Local Services,Environmental Services,011060,C&G - Hardwick Park Catering,Supplies and Services,324117,Provisions E324,03-Jan-2020,000006917364130,JR HOLLAND FOODSERVICE,5499,Catering costs - provisions,31.86,0.00,31.86
Regeneration and Local Services,Environmental Services,010919,C&G - Countryside Site Management,Supplies and Services,384999,Miscellaneous Expenses,03-Jan-2020,000006917364150,THE FEED WAREHOUSE LTD,5995,Other expenses,17.98,3.00,14.98
Regeneration and Local Services,Corporate Property and Land,021234,Catering - Locomotion,Supplies and Services,324117,Provisions E324,03-Jan-2020,000006917364156,HOPWELLS LTD,5811,Catering costs - provisions,138.69,0.00,138.69
Regeneration and Local Services,Corporate Property and Land,021234,Catering - Locomotion,Premises,145009,Cleaning and Domestic Supplies,03-Jan-2020,000006917364162,ALLIANCE DISPOSABLES L,2842,Other cleaning and domestic costs,48.40,8.07,40.33
Regeneration and Local Services,Corporate Property and Land,021234,Catering - Locomotion,Supplies and Services,324117,Provisions E324,03-Jan-2020,000006917364166,HOPWELLS LTD,5811,Catering costs - provisions,-10.41,0.00,-10.41
Regeneration and Local Services,Corporate Property and Land,010525,Catering - Green Lane,Supplies and Services,324117,Provisions E324,03-Jan-2020,000006917364180,HOPWELLS LTD,5811,Catering costs - provisions,57.70,0.00,57.70
Children and Young Peoples Services,Head of Childrens Social Care,085551,Short Break Services-Park Hse Sher,Supplies and Services,324117,Provisions E324,03-Jan-2020,000006917364194,ICELAND,5411,Catering costs - provisions,28.00,0.00,28.00
Children and Young Peoples Services,Head of Childrens Social Care,085551,Short Break Services-Park Hse Sher,Supplies and Services,324117,Provisions E324,03-Jan-2020,000006917364196,ALDI 12 774,5411,Catering costs - provisions,83.42,13.90,69.52
Children and Young Peoples Services,Head of Childrens Social Care,085372,Young Peoples Service Team 2,Supplies and Services,352001,Conference Expenses,03-Jan-2020,000006917364212,WESTMINSTER FORUM PROJ,7392,Conferencesseminars fees etc,276.00,0.00,276.00
Children and Young Peoples Services,Head of Childrens Social Care,085333,Coxhoe Satelite Home,Supplies and Services,324117,Provisions E324,03-Jan-2020,000006917364238,Coates Butchers,5422,Catering costs - provisions,13.36,0.00,13.36
Children and Young Peoples Services,Head of Childrens Social Care,085333,Coxhoe Satelite Home,Supplies and Services,324117,Provisions E324,03-Jan-2020,000006917364244,ASDA SUPERSTORE 4987,5411,Catering costs - provisions,24.51,0.00,24.51
Children and Young Peoples Services,Head of Childrens Social Care,085333,Coxhoe Satelite Home,Supplies and Services,324117,Provisions E324,03-Jan-2020,000006917364246,ASDA SUPERSTORE 4987,5411,Catering costs - provisions,5.00,0.00,5.00
Children and Young Peoples Services,Head of Childrens Social Care,085333,Coxhoe Satelite Home,Supplies and Services,324117,Provisions E324,03-Jan-2020,000006917364250,STARBUCKS THINFORD,5499,Catering costs - provisions,6.70,0.00,6.70
Children and Young Peoples Services,Head of Childrens Social Care,085342,9 Cedar Drive Aycliffe,Supplies and Services,324117,Provisions E324,03-Jan-2020,000006917364282,WILKO RETAIL LIMITED,5399,Catering costs - provisions,38.70,0.00,38.70
Children and Young Peoples Services,Head of Childrens Social Care,085342,9 Cedar Drive Aycliffe,Supplies and Services,328041,Clothing uniforms and laundry E328,03-Jan-2020,000006917364286,B&M RETAIL LTD,5310,Clothing uniforms and laundry,6.07,0.00,6.07
Children and Young Peoples Services,Head of Childrens Social Care,085342,9 Cedar Drive Aycliffe,Supplies and Services,324117,Provisions E324,03-Jan-2020,000006917364290,WM MORRISONS STORE,5411,Catering costs - provisions,9.10,0.00,9.10
Children and Young Peoples Services,Head of Childrens Social Care,085352,Tow Law CU,Supplies and Services,324117,Provisions E324,03-Jan-2020,000006917364304,CO-OP GROUP 010989,5411,Catering costs - provisions,6.75,0.00,6.75
Adult and Health Services,Head of Adults,055306,Spennymoor Pathways,Supplies and Services,308011,Furniture,03-Jan-2020,000006917364330,IKEA LTD 143 GATESHEAD,5712,Furniture repair and replacement,18.00,0.00,18.00
Adult and Health Services,Head of Adults,055306,Spennymoor Pathways,Supplies and Services,308011,Furniture,03-Jan-2020,000006917364336,IKEA LTD 143 GATESHEAD,5712,Furniture repair and replacement,105.00,0.00,105.00
Adult and Health Services,Head of Adults,055306,Spennymoor Pathways,Supplies and Services,308011,Furniture,03-Jan-2020,000006917364342,IKEA LTD 143 GATESHEAD,5712,Furniture repair and replacement,369.95,0.00,369.95
Adult and Health Services,Head of Adults,055643,Hawthorn House LD Respite Unit,Supplies and Services,324117,Provisions E324,03-Jan-2020,000006917364356,JR HOLLAND FOODSERVICE,5499,Catering costs - provisions,27.95,0.00,27.95
Adult and Health Services,Head of Adults,055643,Hawthorn House LD Respite Unit,Supplies and Services,324117,Provisions E324,03-Jan-2020,000006917364358,JR HOLLAND FOODSERVICE,5499,Catering costs - provisions,2.97,0.00,2.97
Children and Young Peoples Services,Head of Childrens Social Care,085614,Families First Durham West,Supplies and Services,338045,Services,03-Jan-2020,000006917364366,Durham County CNCL,9399,Legal expenses 338045,33.00,0.00,33.00
Regeneration and Local Services,Development and Housing,030771,Durham Advance Flexible Fund,Supplies and Services,348037,Subsistence E348,03-Jan-2020,000006917364376,COSTA COFFEE,5814,Subsistence,5.10,0.85,4.25
Regeneration and Local Services,Development and Housing,030544,Rural Employability - Client Engagement,Supplies and Services,304221,Equipment and Materials,03-Jan-2020,000006917364382,SCREWFIX CHESTER L,5211,Direct materials,55.44,9.24,46.20
Regeneration and Local Services,Development and Housing,030544,Rural Employability - Client Engagement,Supplies and Services,304221,Equipment and Materials,03-Jan-2020,000006917364382 - 1,SCREWFIX CHESTER L,5211,Direct materials,22.11,,22.11
Children and Young Peoples Services,Head of Childrens Social Care,085332,Middlestone Moor CU,Supplies and Services,348037,Subsistence E348,03-Jan-2020,000006917364400,LASPAGHETTATA AND FABI,5812,Subsistence,99.20,0.00,99.20
Children and Young Peoples Services,Head of Education and Skills,071802,Louisa Cent Nursery,Supplies and Services,324117,Provisions E324,03-Jan-2020,000006917364410,ASDA SUPERSTORE,5411,Catering costs - provisions,167.50,0.00,167.50
Children and Young Peoples Services,Head of Early Help Inclusion & Vulnerable Children.,088107,Ferryhill & Newton Aycliffe 0-19 Community Family Hub,Supplies and Services,324117,Provisions E324,03-Jan-2020,000006917364446,ASDA GEORGE COM LEEDS,5411,Catering costs - provisions,66.00,0.00,66.00
Adult and Health Services,Head of Adults,055310,Positive Journeys (Tudhoe),Supplies and Services,324117,Provisions E324,03-Jan-2020,000006917364466,ASDA SUPERSTORE 4987,5411,Catering costs - provisions,10.98,0.00,10.98
Regeneration and Local Services,Corporate Property and Land,021235,Catering - Wharton Park,Supplies and Services,324117,Provisions E324,03-Jan-2020,000006917364484,HOPWELLS LTD,5811,Catering costs - provisions,43.26,7.21,36.05
Regeneration and Local Services,Corporate Property and Land,021235,Catering - Wharton Park,Supplies and Services,324117,Provisions E324,03-Jan-2020,000006917364484 - 1,HOPWELLS LTD,5811,Catering costs - provisions,50.85,,50.85
Regeneration and Local Services,Corporate Property and Land,021235,Catering - Wharton Park,Supplies and Services,324117,Provisions E324,03-Jan-2020,000006917364490,HOPWELLS LTD,5811,Catering costs - provisions,43.26,7.21,36.05
Regeneration and Local Services,Corporate Property and Land,021235,Catering - Wharton Park,Supplies and Services,324117,Provisions E324,03-Jan-2020,000006917364490 - 1,HOPWELLS LTD,5811,Catering costs - provisions,122.42,,122.42
Regeneration and Local Services,Corporate Property and Land,021235,Catering - Wharton Park,Supplies and Services,324117,Provisions E324,03-Jan-2020,000006917364496,JR HOLLAND FOODSERVICE,5499,Catering costs - provisions,38.32,0.00,38.32
Adult and Health Services,Head of Adults,055309,Peterlee Pathways,Supplies and Services,328041,Clothing uniforms and laundry E328,03-Jan-2020,000006917364504,POUNDSTRETCHER 396,5331,Clothing uniforms and laundry,3.98,0.00,3.98
Regeneration and Local Services,Development and Housing,030771,Durham Advance Flexible Fund,Supplies and Services,328041,Clothing uniforms and laundry E328,03-Jan-2020,000006917364550,P K SAFETY,5699,Clothing uniforms and laundry,62.48,10.41,52.07
Regeneration and Local Services,Development and Housing,030771,Durham Advance Flexible Fund,Supplies and Services,304259,Equipment and Materials,03-Jan-2020,000006917364554,CURRYS ONLINE,5732,Equipment-purchase and rental,179.00,0.00,179.00
Regeneration and Local Services,Development and Housing,030771,Durham Advance Flexible Fund,Supplies and Services,304259,Equipment and Materials,03-Jan-2020,000006917364560,AO RETAIL LIMITED,5722,Equipment-purchase and rental,49.00,8.17,40.83
Regeneration and Local Services,Development and Housing,030771,Durham Advance Flexible Fund,Supplies and Services,328041,Clothing uniforms and laundry E328,03-Jan-2020,000006917364566,ARGOS LTD,5310,Clothing uniforms and laundry,299.98,50.00,249.98
Regeneration and Local Services,Corporate Property and Land,030691,Catering - Durham Dales Centre,Supplies and Services,324117,Provisions E324,03-Jan-2020,000006917364568,Castle Bank Butchers,5422,Catering costs - provisions,8.57,0.00,8.57
Regeneration and Local Services,Corporate Property and Land,030691,Catering - Durham Dales Centre,Supplies and Services,384999,Miscellaneous Expenses,03-Jan-2020,000006917364574,WWW.CAFFEVINCI.COM,5046,Other expenses,292.35,0.00,292.35
Children and Young Peoples Services,Head of Education and Skills,070264,EDC Premises,Supplies and Services,324117,Provisions E324,03-Jan-2020,000006922508966,BATLEYS PERTH,5300,Catering costs - provisions,18.36,3.06,15.30
Children and Young Peoples Services,Head of Education and Skills,070264,EDC Premises,Supplies and Services,324117,Provisions E324,03-Jan-2020,000006922508966 - 1,BATLEYS PERTH,5300,Catering costs - provisions,69.38,,69.38
Regeneration and Local Services,Environmental Services,011060,C&G - Hardwick Park Catering,Supplies and Services,324117,Provisions E324,03-Jan-2020,000006922509346,BATLEYS PERTH,5300,Catering costs - provisions,65.70,10.95,54.75
Regeneration and Local Services,Environmental Services,011060,C&G - Hardwick Park Catering,Supplies and Services,324117,Provisions E324,03-Jan-2020,000006922509346 - 1,BATLEYS PERTH,5300,Catering costs - provisions,213.34,,213.34
Regeneration and Local Services,Environmental Services,011060,C&G - Hardwick Park Catering,Supplies and Services,324117,Provisions E324,03-Jan-2020,000006922509352,BATLEYS PERTH,5300,Catering costs - provisions,3.12,0.00,3.12
Regeneration and Local Services,Corporate Property and Land,021234,Catering - Locomotion,Supplies and Services,324117,Provisions E324,03-Jan-2020,000006922509386,BATLEYS PERTH,5300,Catering costs - provisions,138.60,23.10,115.50
Regeneration and Local Services,Corporate Property and Land,021234,Catering - Locomotion,Supplies and Services,324117,Provisions E324,03-Jan-2020,000006922509386 - 1,BATLEYS PERTH,5300,Catering costs - provisions,46.56,,46.56
Regeneration and Local Services,Corporate Property and Land,021234,Catering - Locomotion,Supplies and Services,324117,Provisions E324,03-Jan-2020,000006922509392,BATLEYS PERTH,5300,Catering costs - provisions,16.80,0.00,16.80
Regeneration and Local Services,Corporate Property and Land,010525,Catering - Green Lane,Supplies and Services,324117,Provisions E324,03-Jan-2020,000006922509440,BATLEYS PERTH,5300,Catering costs - provisions,77.34,12.89,64.45
Regeneration and Local Services,Corporate Property and Land,010525,Catering - Green Lane,Supplies and Services,324117,Provisions E324,03-Jan-2020,000006922509440 - 1,BATLEYS PERTH,5300,Catering costs - provisions,64.29,,64.29
Regeneration and Local Services,Corporate Property and Land,010525,Catering - Green Lane,Supplies and Services,324117,Provisions E324,03-Jan-2020,000006922509448,BATLEYS PERTH,5300,Catering costs - provisions,4.69,0.00,4.69
Adult and Health Services,Head of Adults,055643,Hawthorn House LD Respite Unit,Supplies and Services,324117,Provisions E324,03-Jan-2020,000006922509574,BATLEYS PERTH,5300,Catering costs - provisions,22.26,3.71,18.55
Adult and Health Services,Head of Adults,055643,Hawthorn House LD Respite Unit,Supplies and Services,324117,Provisions E324,03-Jan-2020,000006922509574 - 1,BATLEYS PERTH,5300,Catering costs - provisions,49.64,,49.64
Regeneration and Local Services,Business Durham CL0850,030689,Inward Investment and Aftercare,Supplies and Services,342033,Computers and Communications,04-Jan-2020,000006917363678,STK Shutterstock,7333,Computer hardware,19.00,0.00,19.00
Regeneration and Local Services,Business Durham CL0850,030689,Inward Investment and Aftercare,Supplies and Services,342222,Computers and Communications,04-Jan-2020,000006917363684,FASTHOSTS INTERNET,4816,Comp hardware purch-network servers,6.34,1.06,5.28
Children and Young Peoples Services,Head of Childrens Social Care,085341,High Etherley Satelite Home,Supplies and Services,324117,Provisions E324,04-Jan-2020,000006917363804,TESCO STORES 6329,5411,Catering costs - provisions,134.11,0.00,134.11
Children and Young Peoples Services,Head of Early Help Inclusion & Vulnerable Children.,088109,Spennymoor & Shildon 0-19 Community Family Hub,Supplies and Services,304245,Equipment and Materials,04-Jan-2020,000006917364010,ARGOS LTD,5310,Materials,49.99,0.00,49.99
Children and Young Peoples Services,Head of Education and Skills,071802,Louisa Cent Nursery,Supplies and Services,304999,Equipment and Materials,04-Jan-2020,000006917364234,Amazon Prime EQ4GK29V5,5968,Misc equipment tools and materials,7.99,0.00,7.99
Regeneration and Local Services,Development and Housing,031500,Housing Solutions - Core Team,Supplies and Services,352001,Conference Expenses,04-Jan-2020,000006917364276,WWW.HOTEL52.CO.UK,7011,Conferencesseminars fees etc,150.00,0.00,150.00
Children and Young Peoples Services,Head of Childrens Social Care,085332,Middlestone Moor CU,Supplies and Services,348037,Subsistence E348,04-Jan-2020,000006917364406,MCDONALDS,5812,Subsistence,6.18,0.00,6.18
Children and Young Peoples Services,Head of Education and Skills,070169,Durham SSP,Supplies and Services,384199,Miscellaneous Expenses,04-Jan-2020,000006917364432,THEEVENTSCALPLUGINS,5045,Other hired and contracted services,68.16,0.00,68.16
Regeneration and Local Services,Environmental Services,031200,North Pennines Core,Supplies and Services,304999,Equipment and Materials,04-Jan-2020,000006917364544,123 REG LTD,5968,Misc equipment tools and materials,11.99,0.00,11.99
Children and Young Peoples Services,Head of Education and Skills,054640,Durham Learning Resources 054640,Supplies and Services,304245,Equipment and Materials,05-Jan-2020,000006917363730,Amazon.co.uk M38T11K44,5969,Materials,43.00,0.00,43.00
Regeneration and Local Services,Environmental Services,010341,Nei.Prot - N. Wardens,Supplies and Services,344033,Telephones,05-Jan-2020,000006917363756,AMZNMktplace,5999,Telephones general-all costs,6.19,1.03,5.16
Regeneration and Local Services,Environmental Services,010341,Nei.Prot - N. Wardens,Supplies and Services,344033,Telephones,05-Jan-2020,000006917363760,AMZNMktplace,5999,Telephones general-all costs,6.19,1.03,5.16
Children and Young Peoples Services,Head of Childrens Social Care,085332,Middlestone Moor CU,Supplies and Services,324117,Provisions E324,05-Jan-2020,000006917364060,ASDA SUPERSTORE 4987,5411,Catering costs - provisions,22.84,0.00,22.84
Children and Young Peoples Services,Head of Early Help Inclusion & Vulnerable Children.,085957,Secure Management,Supplies and Services,324117,Provisions E324,05-Jan-2020,000006917364098,TESCO STORES 6329,5411,Catering costs - provisions,119.06,0.00,119.06
Resources BK0010,Resources Management CK0450,069000,Resources Management 069000,Supplies and Services,324117,Provisions E324,05-Jan-2020,000006917364258,TESCO STORES 2371,5411,Catering costs - provisions,29.74,0.00,29.74
Resources BK0010,Resources Management CK0450,069000,Resources Management 069000,Supplies and Services,324117,Provisions E324,05-Jan-2020,000006917364264,TESCO STORES 2371,5411,Catering costs - provisions,5.99,1.00,4.99
Children and Young Peoples Services,Head of Early Help Inclusion & Vulnerable Children.,085957,Secure Management,Supplies and Services,304999,Equipment and Materials,06-Jan-2020,000006917364102,TESCO SUBSCRIPTION,5968,Misc equipment tools and materials,6.99,0.00,6.99
Children and Young Peoples Services,Head of Education and Skills,070169,Durham SSP,Supplies and Services,384199,Miscellaneous Expenses,06-Jan-2020,000006917364434,THEEVENTSCALPLUGINS,5045,Other hired and contracted services,1.87,0.00,1.87
Resources BK0010,Legal & Democratic Services,067910,Democratic Representation 067910,Supplies and Services,304403,Equipment and Materials,06-Jan-2020,000006922508958,AMZNMktplace,5999,Other consumables,5.98,1.00,4.98
Resources BK0010,Digital and Customer Services,065487,ICT Telephony Recharges,Supplies and Services,344033,Telephones,06-Jan-2020,000006922508962,AMZNMktplace,5999,Telephones general-all costs,284.50,47.50,237.00
Children and Young Peoples Services,Head of Childrens Social Care,085342,9 Cedar Drive Aycliffe,Supplies and Services,324117,Provisions E324,06-Jan-2020,000006922508992,TESCO STORES 2916,5411,Catering costs - provisions,22.90,0.00,22.90
Children and Young Peoples Services,Head of Childrens Social Care,085333,Coxhoe Satelite Home,Supplies and Services,324117,Provisions E324,06-Jan-2020,000006922509046,CO-OP GROUP 310016,5411,Catering costs - provisions,3.10,0.00,3.10
Children and Young Peoples Services,Head of Childrens Social Care,085352,Tow Law CU,Supplies and Services,324117,Provisions E324,06-Jan-2020,000006922509056,WILKO RETAIL LIMITED,5399,Catering costs - provisions,3.60,0.00,3.60
Children and Young Peoples Services,Head of Childrens Social Care,085352,Tow Law CU,Supplies and Services,324117,Provisions E324,06-Jan-2020,000006922509058,SAINSBURYS SACAT 0776,5411,Catering costs - provisions,36.05,0.00,36.05
Children and Young Peoples Services,Head of Childrens Social Care,085352,Tow Law CU,Supplies and Services,324117,Provisions E324,06-Jan-2020,000006922509062,SAINSBURYS SACAT 0776,5411,Catering costs - provisions,9.40,0.00,9.40
Children and Young Peoples Services,Head of Childrens Social Care,085352,Tow Law CU,Supplies and Services,348037,Subsistence E348,06-Jan-2020,000006922509066,FRANKIE & BENNYS 5325,5812,Subsistence,67.51,0.00,67.51
Children and Young Peoples Services,Head of Childrens Social Care,085352,Tow Law CU,Supplies and Services,328041,Clothing uniforms and laundry E328,06-Jan-2020,000006922509070,NEW LOOK,5621,Clothing uniforms and laundry,17.00,0.00,17.00
Children and Young Peoples Services,Head of Childrens Social Care,085352,Tow Law CU,Supplies and Services,328041,Clothing uniforms and laundry E328,06-Jan-2020,000006922509072,RIVER ISLAND 820,5691,Clothing uniforms and laundry,10.00,0.00,10.00
Children and Young Peoples Services,Head of Childrens Social Care,085352,Tow Law CU,Supplies and Services,304999,Equipment and Materials,06-Jan-2020,000006922509076,SUPERDRUG STORES PLC,5912,Misc equipment tools and materials,20.62,0.00,20.62
Children and Young Peoples Services,Head of Early Help Inclusion & Vulnerable Children.,071569,Woodhouse Close Childrens Centre,Supplies and Services,324117,Provisions E324,06-Jan-2020,000006922509098,BESTWAY WHOLESALE,5451,Catering costs - provisions,30.36,5.06,25.30
Children and Young Peoples Services,Head of Early Help Inclusion & Vulnerable Children.,071569,Woodhouse Close Childrens Centre,Supplies and Services,324117,Provisions E324,06-Jan-2020,000006922509098 - 1,BESTWAY WHOLESALE,5451,Catering costs - provisions,130.26,,130.26
Children and Young Peoples Services,Head of Early Help Inclusion & Vulnerable Children.,088105,BA/BC/Crook 0-19 Community Family Hub,Supplies and Services,304649,Equipment and Materials,06-Jan-2020,000006922509102,ARGOS LTD,5310,Toys,170.93,0.00,170.93
Children and Young Peoples Services,Head of Early Help Inclusion & Vulnerable Children.,088105,BA/BC/Crook 0-19 Community Family Hub,Supplies and Services,304649,Equipment and Materials,06-Jan-2020,000006922509106,WWW.THETOYSHOP.COM,5945,Toys,76.25,0.00,76.25
Regeneration and Local Services,Corporate Property and Land,021242,Catering - County Hall,Supplies and Services,324117,Provisions E324,06-Jan-2020,000006922509120,WWW.ADELIEFOODS.CO.UK,5499,Catering costs - provisions,56.16,0.00,56.16
Children and Young Peoples Services,Head of Childrens Social Care,085332,Middlestone Moor CU,Supplies and Services,384871,Miscellaneous Expenses,06-Jan-2020,000006922509128,DOLPHIN CENTRE,9399,Training-other activities,9.80,0.00,9.80
Children and Young Peoples Services,Head of Childrens Social Care,085332,Middlestone Moor CU,Supplies and Services,304403,Equipment and Materials,06-Jan-2020,000006922509132,ALDI 15 774,5411,Other consumables,9.48,0.00,9.48
Children and Young Peoples Services,Head of Early Help Inclusion & Vulnerable Children.,088106,Ferryhill & N.Aycliffe 0-19 Targeted Family Support,Supplies and Services,384999,Miscellaneous Expenses,06-Jan-2020,000006922509136,AMZNMktplace,5999,Other expenses,16.99,2.83,14.16
Regeneration and Local Services,Culture Sport and Tourism,054812,Gala Theatre - Catering etc,Supplies and Services,324117,Provisions E324,06-Jan-2020,000006922509146,FREEMAN CATERING BUTCH,5422,Catering costs - provisions,23.62,0.00,23.62
Regeneration and Local Services,Development and Housing,031576,B& B - Temp Accom,Supplies and Services,364320,Grants to Voluntary Organisations,06-Jan-2020,000006922509196,HOTEL 52,7011,Accommodation assistance,165.00,27.50,137.50
Children and Young Peoples Services,Head of Childrens Social Care,085334,West Rainton Satelite Home,Supplies and Services,324117,Provisions E324,06-Jan-2020,000006922509208,LIDL GB DURHAM,5411,Catering costs - provisions,22.80,3.80,19.00
Children and Young Peoples Services,Head of Childrens Social Care,085334,West Rainton Satelite Home,Supplies and Services,324117,Provisions E324,06-Jan-2020,000006922509208 - 1,LIDL GB DURHAM,5411,Catering costs - provisions,59.27,,59.27
Children and Young Peoples Services,Head of Early Help Inclusion & Vulnerable Children.,088109,Spennymoor & Shildon 0-19 Community Family Hub,Supplies and Services,304245,Equipment and Materials,06-Jan-2020,000006922509214,B & M RETAIL,5310,Materials,32.52,0.00,32.52
Children and Young Peoples Services,Head of Education and Skills,071732,Dean Bank Childcare,Supplies and Services,324117,Provisions E324,06-Jan-2020,000006922509230,ASDA GROCERIES ONLINE,5411,Catering costs - provisions,56.87,0.00,56.87
Children and Young Peoples Services,Head of Education and Skills,071732,Dean Bank Childcare,Supplies and Services,324117,Provisions E324,06-Jan-2020,000006922509234,ASDA GROCERIES ONLINE,5411,Catering costs - provisions,52.68,0.00,52.68
Children and Young Peoples Services,Head of Education and Skills,071732,Dean Bank Childcare,Supplies and Services,324117,Provisions E324,06-Jan-2020,000006922509236,CO-OP GROUP 010503,5411,Catering costs - provisions,7.31,0.00,7.31
Children and Young Peoples Services,Head of Education and Skills,071732,Dean Bank Childcare,Supplies and Services,324117,Provisions E324,06-Jan-2020,000006922509240,ASDA GROCERIES ONLINE,5411,Catering costs - provisions,-0.15,0.00,-0.15
Children and Young Peoples Services,Head of Education and Skills,071732,Dean Bank Childcare,Supplies and Services,324117,Provisions E324,06-Jan-2020,000006922509242,ASDA GROCERIES ONLINE,5411,Catering costs - provisions,-4.00,0.00,-4.00
Regeneration and Local Services,Culture Sport and Tourism,054813,Gala Theatre - Technical,Supplies and Services,332047,Printing Stationery and Gen Off Exps,06-Jan-2020,000006922509248,WWW.SAMCASES.CO.UK,5111,Stationery,130.42,0.00,130.42
Regeneration and Local Services,Development and Housing,031500,Housing Solutions - Core Team,Supplies and Services,352001,Conference Expenses,06-Jan-2020,000006922509278,BUDGET EXPRESS HOTEL,7011,Conferencesseminars fees etc,500.00,83.33,416.67
Regeneration and Local Services,Development and Housing,031500,Housing Solutions - Core Team,Supplies and Services,352001,Conference Expenses,06-Jan-2020,000006922509282,BUDGET EXPRESS HOTEL,7011,Conferencesseminars fees etc,479.00,79.83,399.17
Regeneration and Local Services,Development and Housing,031500,Housing Solutions - Core Team,Supplies and Services,352001,Conference Expenses,06-Jan-2020,000006922509294,THE HONEST LAWYER,7011,Conferencesseminars fees etc,276.90,0.00,276.90
Regeneration and Local Services,Development and Housing,031500,Housing Solutions - Core Team,Supplies and Services,352001,Conference Expenses,06-Jan-2020,000006922509298,THE HONEST LAWYER,7011,Conferencesseminars fees etc,250.00,0.00,250.00
Regeneration and Local Services,Development and Housing,031500,Housing Solutions - Core Team,Supplies and Services,352001,Conference Expenses,06-Jan-2020,000006922509302,THE HONEST LAWYER,7011,Conferencesseminars fees etc,70.00,0.00,70.00
Regeneration and Local Services,Development and Housing,030771,Durham Advance Flexible Fund,Supplies and Services,304259,Equipment and Materials,06-Jan-2020,000006922509306,NEWCASTLE CITY COUNCIL,9399,Equipment-purchase and rental,35.00,0.00,35.00
Regeneration and Local Services,Development and Housing,030771,Durham Advance Flexible Fund,Transport,235057,Public Transport,06-Jan-2020,000006922509310,ARRIVA NORTH EAST,4131,Staff travelling,8.50,0.00,8.50
Children and Young Peoples Services,Head of Early Help Inclusion & Vulnerable Children.,071445,Chester le Street One Point Hub,Supplies and Services,304259,Equipment and Materials,06-Jan-2020,000006922509326,WWW.DURHAM.GOV.UK,9399,Equipment-purchase and rental,11.00,0.00,11.00
Children and Young Peoples Services,Head of Early Help Inclusion & Vulnerable Children.,071445,Chester le Street One Point Hub,Supplies and Services,304259,Equipment and Materials,06-Jan-2020,000006922509330,DARLINGTON BC INTERNET,9399,Equipment-purchase and rental,11.00,0.00,11.00
Regeneration and Local Services,Environmental Services,011060,C&G - Hardwick Park Catering,Supplies and Services,324117,Provisions E324,06-Jan-2020,000006922509354,FREEMAN CATERING BUTCH,5422,Catering costs - provisions,34.88,0.00,34.88
Regeneration and Local Services,Environmental Services,011060,C&G - Hardwick Park Catering,Supplies and Services,324117,Provisions E324,06-Jan-2020,000006922509358,FREEMAN CATERING BUTCH,5422,Catering costs - provisions,49.25,0.00,49.25
Regeneration and Local Services,Corporate Property and Land,021234,Catering - Locomotion,Supplies and Services,324117,Provisions E324,06-Jan-2020,000006922509396,WWW.ADELIEFOODS.CO.UK,5499,Catering costs - provisions,95.87,0.00,95.87
Regeneration and Local Services,Corporate Property and Land,021234,Catering - Locomotion,Supplies and Services,324117,Provisions E324,06-Jan-2020,000006922509400,WWW.ADELIEFOODS.CO.UK,5499,Catering costs - provisions,50.64,0.00,50.64
Regeneration and Local Services,Corporate Property and Land,021234,Catering - Locomotion,Supplies and Services,324117,Provisions E324,06-Jan-2020,000006922509404,WWW.ADELIEFOODS.CO.UK,5499,Catering costs - provisions,75.87,0.00,75.87
Regeneration and Local Services,Corporate Property and Land,021234,Catering - Locomotion,Supplies and Services,324117,Provisions E324,06-Jan-2020,000006922509406,FREEMAN CATERING BUTCH,5422,Catering costs - provisions,28.90,0.00,28.90
Regeneration and Local Services,Corporate Property and Land,021234,Catering - Locomotion,Supplies and Services,324117,Provisions E324,06-Jan-2020,000006922509410,FREEMAN CATERING BUTCH,5422,Catering costs - provisions,65.88,0.00,65.88
Regeneration and Local Services,Corporate Property and Land,010525,Catering - Green Lane,Supplies and Services,324117,Provisions E324,06-Jan-2020,000006922509452,FREEMAN CATERING BUTCH,5422,Catering costs - provisions,3.80,0.00,3.80
Regeneration and Local Services,Corporate Property and Land,010525,Catering - Green Lane,Supplies and Services,324117,Provisions E324,06-Jan-2020,000006922509456,FREEMAN CATERING BUTCH,5422,Catering costs - provisions,43.82,0.00,43.82
Regeneration and Local Services,Development and Housing,030771,Durham Advance Flexible Fund,Transport,235057,Public Transport,06-Jan-2020,000006922509536,PRINCE BISHOP SHOPPING,7523,Staff travelling,3.30,0.55,2.75
Regeneration and Local Services,Development and Housing,030771,Durham Advance Flexible Fund,Supplies and Services,348037,Subsistence E348,06-Jan-2020,000006922509540,FLAT WHITE KITCHEN,5814,Subsistence,5.95,0.00,5.95
Adult and Health Services,Head of Adults,055301,Stanley Pathways,Supplies and Services,324117,Provisions E324,06-Jan-2020,000006922509546,CO-OP GROUP 310021,5411,Catering costs - provisions,6.00,0.00,6.00
Children and Young Peoples Services,Head of Early Help Inclusion & Vulnerable Children.,085957,Secure Management,Supplies and Services,324117,Provisions E324,06-Jan-2020,000006922509556,TESCO STORES 6329,5411,Catering costs - provisions,128.24,0.00,128.24
Regeneration and Local Services,Corporate Property and Land,030691,Catering - Durham Dales Centre,Supplies and Services,324117,Provisions E324,06-Jan-2020,000006922509562,FREEMAN CATERING BUTCH,5422,Catering costs - provisions,39.33,0.00,39.33
Regeneration and Local Services,Corporate Property and Land,030691,Catering - Durham Dales Centre,Supplies and Services,324117,Provisions E324,06-Jan-2020,000006922509566,FREEMAN CATERING BUTCH,5422,Catering costs - provisions,45.29,0.00,45.29
Adult and Health Services,Head of Adults,055643,Hawthorn House LD Respite Unit,Supplies and Services,324117,Provisions E324,06-Jan-2020,000006922509580,FREEMAN CATERING BUTCH,5422,Catering costs - provisions,45.23,0.00,45.23
Regeneration and Local Services,Culture Sport and Tourism,054399,Local Delivery-Libraries,Supplies and Services,312009,Newspapers books and periodicals E312,06-Jan-2020,000006922509584,Amazon.co.uk GS5Z688P5,5969,Newspapers books and periodicals,158.00,0.00,158.00
Regeneration and Local Services,Culture Sport and Tourism,011263,Louisa Centre 011263,Supplies and Services,304221,Equipment and Materials,06-Jan-2020,000006922509596,WWW.ACORNFIRESECURITY.,1799,Direct materials,40.86,0.00,40.86
Regeneration and Local Services,Development and Housing,030544,Rural Employability - Client Engagement,Supplies and Services,304221,Equipment and Materials,06-Jan-2020,000006922509620,ARCO LTD,5085,Direct materials,6.00,1.00,5.00
Transformation and Partnerships,Business Support,052986,CYPS - Locality and Operational Support,Supplies and Services,304403,Equipment and Materials,06-Jan-2020,000006922509634,CITY TAXIS,5734,Other consumables,35.00,0.00,35.00
Transformation and Partnerships,Business Support,052986,CYPS - Locality and Operational Support,Supplies and Services,304403,Equipment and Materials,06-Jan-2020,000006922509638,CITY TAXIS,5734,Other consumables,35.00,0.00,35.00
Regeneration and Local Services,Business Durham CL0850,030608,Tanfield Lea Business Centre,Supplies and Services,332047,Printing Stationery and Gen Off Exps,06-Jan-2020,000006922509648,ASDA SUPERSTORE,5411,Stationery,6.00,0.00,6.00
Regeneration and Local Services,Development and Housing,030544,Rural Employability - Client Engagement,Transport,235057,Public Transport,06-Jan-2020,000006922509654,PRINCE BISHOP SHOPPING,7523,Staff travelling,2.10,0.00,2.10
Children and Young Peoples Services,Head of Childrens Social Care,085342,9 Cedar Drive Aycliffe,Supplies and Services,324117,Provisions E324,06-Jan-2020,000006922509676,TESCO STORES 2916,5411,Catering costs - provisions,117.12,0.00,117.12
Children and Young Peoples Services,Head of Childrens Social Care,085342,9 Cedar Drive Aycliffe,Supplies and Services,324117,Provisions E324,06-Jan-2020,000006922509680,TESCO STORES 2916,5411,Catering costs - provisions,29.44,0.00,29.44
Children and Young Peoples Services,Head of Education and Skills,070169,Durham SSP,Supplies and Services,384199,Miscellaneous Expenses,06-Jan-2020,000006922509692,WWW.JOOMUNITED.COM,5734,Other hired and contracted services,36.12,0.00,36.12
Children and Young Peoples Services,Head of Education and Skills,070169,Durham SSP,Supplies and Services,384199,Miscellaneous Expenses,06-Jan-2020,000006922509696,REGISTRATIONS FOR THE,7372,Other hired and contracted services,26.40,0.00,26.40
Children and Young Peoples Services,Head of Early Help Inclusion & Vulnerable Children.,088107,Ferryhill & Newton Aycliffe 0-19 Community Family Hub,Supplies and Services,324117,Provisions E324,06-Jan-2020,000006922509720,ASDA GROCERIES ONLINE,5411,Catering costs - provisions,74.17,0.00,74.17
Children and Young Peoples Services,Head of Early Help Inclusion & Vulnerable Children.,088107,Ferryhill & Newton Aycliffe 0-19 Community Family Hub,Supplies and Services,324117,Provisions E324,06-Jan-2020,000006922509724,ASDA GROCERIES ONLINE,5411,Catering costs - provisions,-0.31,0.00,-0.31
Regeneration and Local Services,Environmental Services,031200,North Pennines Core,Supplies and Services,340001,Postages E340,06-Jan-2020,000006922509728,THE POST OFFICE,9402,Postages,2.64,0.00,2.64
Regeneration and Local Services,Development and Housing,030776,LINKCD Flexible Fund,Transport,235057,Public Transport,06-Jan-2020,000006922509756,ARRIVA NORTH EAST,4131,Staff travelling,23.00,0.00,23.00
Regeneration and Local Services,Culture Sport and Tourism,054820,Gala Theatre - Overheads,Supplies and Services,324117,Provisions E324,06-Jan-2020,000006922509760,TESCO STORES 6029,5411,Catering costs - provisions,7.00,0.00,7.00
Adult and Health Services,Head of Adults,055310,Positive Journeys (Tudhoe),Supplies and Services,324117,Provisions E324,06-Jan-2020,000006922509796,ASDA SUPERSTORE 4987,5411,Catering costs - provisions,3.84,0.00,3.84
Children and Young Peoples Services,Head of Education and Skills,076001,Music Service,Supplies and Services,352001,Conference Expenses,06-Jan-2020,000006922509814,RADISSON BLU,3583,Conferencesseminars fees etc,"1,580.00",263.33,1316.67
Children and Young Peoples Services,Head of Education and Skills,070101,Education Management,Supplies and Services,324117,Provisions E324,06-Jan-2020,000006926214048,RIVERSIDE EVENTS,5811,Catering costs - provisions,11.00,1.83,9.17
Regeneration and Local Services,Culture Sport and Tourism,054812,Gala Theatre - Catering etc,Supplies and Services,324117,Provisions E324,06-Jan-2020,000006926214092,BATLEYS PERTH,5300,Catering costs - provisions,175.62,29.27,146.35
Regeneration and Local Services,Culture Sport and Tourism,054812,Gala Theatre - Catering etc,Supplies and Services,324117,Provisions E324,06-Jan-2020,000006926214092 - 1,BATLEYS PERTH,5300,Catering costs - provisions,130.06,,130.06
Regeneration and Local Services,Culture Sport and Tourism,054812,Gala Theatre - Catering etc,Supplies and Services,324117,Provisions E324,06-Jan-2020,000006926214102,BATLEYS PERTH,5300,Catering costs - provisions,98.67,16.45,82.22
Regeneration and Local Services,Culture Sport and Tourism,054813,Gala Theatre - Technical,Supplies and Services,384999,Miscellaneous Expenses,06-Jan-2020,000006926214264,RCB LOGIC LIMITED,5946,Other expenses,48.38,0.00,48.38
Regeneration and Local Services,Culture Sport and Tourism,054813,Gala Theatre - Technical,Supplies and Services,384999,Miscellaneous Expenses,06-Jan-2020,000006926214270,RCB LOGIC LIMITED,5946,Other expenses,481.60,0.00,481.60
Regeneration and Local Services,Corporate Property and Land,020043,Bldg Serv - Compliance,Supplies and Services,352001,Conference Expenses,06-Jan-2020,000006926214708,THE CELTIC MANOR,7011,Conferencesseminars fees etc,405.00,67.50,337.50
Regeneration and Local Services,Corporate Property and Land,030691,Catering - Durham Dales Centre,Supplies and Services,324117,Provisions E324,06-Jan-2020,000006926214794,BATLEYS PERTH,5300,Catering costs - provisions,63.96,10.66,53.30
Regeneration and Local Services,Corporate Property and Land,030691,Catering - Durham Dales Centre,Supplies and Services,324117,Provisions E324,06-Jan-2020,000006926214794 - 1,BATLEYS PERTH,5300,Catering costs - provisions,126.88,,126.88
Children and Young Peoples Services,Head of Education and Skills,070169,Durham SSP,Supplies and Services,384199,Miscellaneous Expenses,07-Jan-2020,000006922509698,WWW.JOOMUNITED.COM,5734,Other hired and contracted services,0.99,0.00,0.99
Children and Young Peoples Services,Head of Education and Skills,070169,Durham SSP,Supplies and Services,384199,Miscellaneous Expenses,07-Jan-2020,000006922509702,REGISTRATIONS FOR THE,7372,Other hired and contracted services,0.73,0.00,0.73
Children and Young Peoples Services,Head of Education and Skills,071801,Selby Cottage Childcare Centre,Supplies and Services,324117,Provisions E324,07-Jan-2020,000006926213800,JR HOLLAND FOODSERVICE,5499,Catering costs - provisions,367.72,0.00,367.72
Children and Young Peoples Services,Head of Education and Skills,071801,Selby Cottage Childcare Centre,Supplies and Services,324117,Provisions E324,07-Jan-2020,000006926213814,TESCO STORES 2278,5411,Catering costs - provisions,7.24,0.00,7.24
Children and Young Peoples Services,Head of Education and Skills,071801,Selby Cottage Childcare Centre,Supplies and Services,324117,Provisions E324,07-Jan-2020,000006926213818,ASDA GROCERIES ONLINE,5411,Catering costs - provisions,124.57,0.00,124.57
Children and Young Peoples Services,Head of Education and Skills,054640,Durham Learning Resources 054640,Supplies and Services,312011,Newspapers books and periodicals E312,07-Jan-2020,000006926213836,Amazon.co.uk PN82N4605,5969,Books-school library,5.21,0.00,5.21
Children and Young Peoples Services,Head of Education and Skills,054640,Durham Learning Resources 054640,Supplies and Services,312011,Newspapers books and periodicals E312,07-Jan-2020,000006926213838,Amazon.co.uk I36LL2ZL5,5969,Books-school library,87.89,0.00,87.89
Resources BK0010,Digital and Customer Services,070110,School Services - Man Info System (MIS) Support Team,Supplies and Services,342053,Computers and Communications,07-Jan-2020,000006926213850,WPMU DEV INCSUBFEE.COM,7372,Computer software,14.51,0.00,14.51
Regeneration and Local Services,Development and Housing,031500,Housing Solutions - Core Team,Supplies and Services,304403,Equipment and Materials,07-Jan-2020,000006926213854,JNE SECURITY LTD,7311,Other consumables,326.99,54.50,272.49
Children and Young Peoples Services,Head of Childrens Social Care,085501,Child Care Cases Legal Expenses,Supplies and Services,304403,Equipment and Materials,07-Jan-2020,000006926213872,SBC CNPSECURE,9399,Other consumables,11.00,0.00,11.00
Children and Young Peoples Services,Head of Childrens Social Care,085501,Child Care Cases Legal Expenses,Supplies and Services,304403,Equipment and Materials,07-Jan-2020,000006926213876,SUNDERLAND CC,9399,Other consumables,35.00,0.00,35.00
Resources BK0010,Legal & Democratic Services,069326,Practice Management,Employees,040149,Recruitment Instruction and Training,07-Jan-2020,000006926213882,EB LFJB CONFERENCE SI,7399,Training-all costs,230.51,0.00,230.51
Resources BK0010,Legal & Democratic Services,069326,Practice Management,Employees,040149,Recruitment Instruction and Training,07-Jan-2020,000006926213884,LLG ENTERPRISES LTD,8249,Training-all costs,42.00,7.00,35.00
Regeneration and Local Services,Development and Housing,030773,CLLD North,Supplies and Services,304259,Equipment and Materials,07-Jan-2020,000006926213888,GEN REGISTER OFFICE,9399,Equipment-purchase and rental,14.00,0.00,14.00
Regeneration and Local Services,Culture Sport and Tourism,030705,Visit County Durham 030705,Supplies and Services,342033,Computers and Communications,07-Jan-2020,000006926213932,SurveyMonkey,7372,Computer hardware,-320.00,0.00,-320.00
Children and Young Peoples Services,Head of Childrens Social Care,085332,Middlestone Moor CU,Supplies and Services,324117,Provisions E324,07-Jan-2020,000006926213948,TESCO STORES 2371,5411,Catering costs - provisions,147.44,0.00,147.44
Children and Young Peoples Services,Head of Childrens Social Care,085332,Middlestone Moor CU,Supplies and Services,324117,Provisions E324,07-Jan-2020,000006926213954,TESCO STORES 2916,5411,Catering costs - provisions,2.85,0.00,2.85
Children and Young Peoples Services,Head of Childrens Social Care,085332,Middlestone Moor CU,Supplies and Services,304083,Equipment and Materials,07-Jan-2020,000006926213960,WILKO RETAIL LIMITED,5399,Catering equipment,18.75,0.00,18.75
Regeneration and Local Services,Culture Sport and Tourism,011263,Louisa Centre 011263,Supplies and Services,324117,Provisions E324,07-Jan-2020,000006926213974,JR HOLLAND FOODSERVICE,5499,Catering costs - provisions,37.09,0.00,37.09
Regeneration and Local Services,Development and Housing,030776,LINKCD Flexible Fund,Transport,235057,Public Transport,07-Jan-2020,000006926214024,GO NORTH EAST LIMITED,4131,Staff travelling,7.00,0.00,7.00
Regeneration and Local Services,Development and Housing,030544,Rural Employability - Client Engagement,Transport,235057,Public Transport,07-Jan-2020,000006926214058,PRINCE BISHOP SHOPPING,7523,Staff travelling,3.30,0.00,3.30
Regeneration and Local Services,Development and Housing,030544,Rural Employability - Client Engagement,Supplies and Services,342033,Computers and Communications,07-Jan-2020,000006926214062,IZ DR Computers,5999,Computer hardware,7.00,0.00,7.00
Regeneration and Local Services,Development and Housing,030544,Rural Employability - Client Engagement,Supplies and Services,342033,Computers and Communications,07-Jan-2020,000006926214068,IZ DR Computers,5999,Computer hardware,6.50,0.00,6.50
Regeneration and Local Services,Environmental Services,010367,C&G - South Grounds Maintenance,Supplies and Services,304221,Equipment and Materials,07-Jan-2020,000006926214080,JT ATKINSON & SONS LTD,5211,Direct materials,5.26,0.88,4.38
Children and Young Peoples Services,Head of Childrens Social Care,085333,Coxhoe Satelite Home,Supplies and Services,328041,Clothing uniforms and laundry E328,07-Jan-2020,000006926214174,FOOTASYLUM PLC,5691,Clothing uniforms and laundry,49.98,0.00,49.98
Regeneration and Local Services,Development and Housing,031576,B& B - Temp Accom,Supplies and Services,364320,Grants to Voluntary Organisations,07-Jan-2020,000006926214202,HOTEL 52,7011,Accommodation assistance,46.99,7.83,39.16
Children and Young Peoples Services,Head of Education and Skills,071732,Dean Bank Childcare,Supplies and Services,324117,Provisions E324,07-Jan-2020,000006926214258,SAINSBURYS SACAT (2303,5411,Catering costs - provisions,12.64,0.00,12.64
Regeneration and Local Services,Culture Sport and Tourism,054813,Gala Theatre - Technical,Supplies and Services,304403,Equipment and Materials,07-Jan-2020,000006926214276,AMZNMktplace,5999,Other consumables,22.27,0.00,22.27
Adult and Health Services,Commissioning inc Supporting People,052100,Supporting the Provider Market,Supplies and Services,304403,Equipment and Materials,07-Jan-2020,000006926214332,AMZNMktplace,5999,Other consumables,7.39,0.00,7.39
Regeneration and Local Services,Development and Housing,030771,Durham Advance Flexible Fund,Supplies and Services,324117,Provisions E324,07-Jan-2020,000006926214380,DOBSON & GRICE LTD,5812,Catering costs - provisions,3.80,0.00,3.80
Regeneration and Local Services,Development and Housing,030771,Durham Advance Flexible Fund,Supplies and Services,324117,Provisions E324,07-Jan-2020,000006926214384,TESCO STORES 2371,5411,Catering costs - provisions,5.50,0.00,5.50
Regeneration and Local Services,Development and Housing,030771,Durham Advance Flexible Fund,Transport,235057,Public Transport,07-Jan-2020,000006926214390,PRINCE BISHOP SHOPPING,7523,Staff travelling,3.30,0.00,3.30
Regeneration and Local Services,Development and Housing,030771,Durham Advance Flexible Fund,Supplies and Services,324117,Provisions E324,07-Jan-2020,000006926214394,COSTA COFFEE,5814,Catering costs - provisions,4.30,0.00,4.30
Regeneration and Local Services,Development and Housing,031500,Housing Solutions - Core Team,Supplies and Services,352001,Conference Expenses,07-Jan-2020,000006926214450,THE HONEST LAWYER,7011,Conferencesseminars fees etc,70.00,0.00,70.00
Regeneration and Local Services,Development and Housing,030771,Durham Advance Flexible Fund,Supplies and Services,340001,Postages E340,07-Jan-2020,000006926214456,THE POST OFFICE,9402,Postages,210.00,0.00,210.00
Children and Young Peoples Services,Head of Early Help Inclusion & Vulnerable Children.,085957,Secure Management,Supplies and Services,328041,Clothing uniforms and laundry E328,07-Jan-2020,000006926214464,FOOTASYLUM PLC,5691,Clothing uniforms and laundry,49.99,0.00,49.99
Children and Young Peoples Services,Head of Early Help Inclusion & Vulnerable Children.,085957,Secure Management,Supplies and Services,328041,Clothing uniforms and laundry E328,07-Jan-2020,000006926214468,FOOTASYLUM PLC,5691,Clothing uniforms and laundry,57.98,0.00,57.98
Children and Young Peoples Services,Head of Early Help Inclusion & Vulnerable Children.,085957,Secure Management,Supplies and Services,384999,Miscellaneous Expenses,07-Jan-2020,000006926214474,Amazon.co.uk T14N23445,5969,Other expenses,12.89,2.15,10.74
Children and Young Peoples Services,Head of Childrens Social Care,085351,Framwellgate Moor CU,Supplies and Services,364320,Grants to Voluntary Organisations,07-Jan-2020,000006926214584,Hotel on Booking.com,7011,Accommodation assistance,430.00,0.00,430.00
Children and Young Peoples Services,Head of Childrens Social Care,085352,Tow Law CU,Supplies and Services,324117,Provisions E324,07-Jan-2020,000006926214596,TESCO STORES 4358,5411,Catering costs - provisions,14.10,0.00,14.10
Children and Young Peoples Services,Head of Childrens Social Care,085352,Tow Law CU,Supplies and Services,324117,Provisions E324,07-Jan-2020,000006926214604,TESCO STORES 4358,5411,Catering costs - provisions,8.00,0.00,8.00
Children and Young Peoples Services,Head of Childrens Social Care,085352,Tow Law CU,Supplies and Services,324117,Provisions E324,07-Jan-2020,000006926214608,STARBUCKS CONSETT,5499,Catering costs - provisions,11.60,0.00,11.60
Children and Young Peoples Services,Head of Early Help Inclusion & Vulnerable Children.,088109,Spennymoor & Shildon 0-19 Community Family Hub,Supplies and Services,312009,Newspapers books and periodicals E312,07-Jan-2020,000006926214614,Amazon.co.uk HO1BN3KK5,5969,Newspapers books and periodicals,67.60,0.00,67.60
Regeneration and Local Services,Development and Housing,031522,GRT Site East Howle Ferryhill,Premises,103005,School Funding Rep and Maint,07-Jan-2020,000006926214620,WWW.VOUCHEREXPRESS.CO.,5947,Painting and decoration-routine,100.00,0.00,100.00
Regeneration and Local Services,Environmental Services,010367,C&G - South Grounds Maintenance,Supplies and Services,304221,Equipment and Materials,07-Jan-2020,000006926214674,CARRS BILLINGTON SPENN,5599,Direct materials,52.00,8.67,43.33
Regeneration and Local Services,Corporate Property and Land,020088,Bldg Serv - R&M Div 88- Roofing (Small Works),Supplies and Services,304221,Equipment and Materials,07-Jan-2020,000006926214700,MACHINE MART WEB,7394,Direct materials,28.95,4.83,24.12
Children and Young Peoples Services,Head of Childrens Social Care,085333,Coxhoe Satelite Home,Supplies and Services,324117,Provisions E324,07-Jan-2020,000006926214722,ASDA SUPERSTORE 4987,5411,Catering costs - provisions,139.03,0.00,139.03
Children and Young Peoples Services,Head of Childrens Social Care,085333,Coxhoe Satelite Home,Supplies and Services,324117,Provisions E324,07-Jan-2020,000006926214726,ASDA SUPERSTORE 4987,5411,Catering costs - provisions,18.54,0.00,18.54
Children and Young Peoples Services,Head of Childrens Social Care,085342,9 Cedar Drive Aycliffe,Supplies and Services,324117,Provisions E324,07-Jan-2020,000006926214758,TESCO STORES 2916,5411,Catering costs - provisions,8.85,0.00,8.85
Children and Young Peoples Services,Head of Childrens Social Care,085352,Tow Law CU,Supplies and Services,324117,Provisions E324,07-Jan-2020,000006926214786,TESCO STORES 2371,5411,Catering costs - provisions,147.51,0.00,147.51
Adult and Health Services,Head of Adults,055306,Spennymoor Pathways,Supplies and Services,324117,Provisions E324,07-Jan-2020,000006926214806,ASDA SUPERSTORE 4987,5411,Catering costs - provisions,11.50,0.00,11.50
Regeneration and Local Services,Development and Housing,031578,Client Travel Reimbursements,Transport,235073,Public Transport,07-Jan-2020,000006926214840,thetrainline.com,4112,Travel-clients/students/children,58.71,0.00,58.71
Children and Young Peoples Services,Head of Early Help Inclusion & Vulnerable Children.,088101,CLS 0-19 Community Family Hub,Supplies and Services,328041,Clothing uniforms and laundry E328,07-Jan-2020,000006926214876,ASDA GEORGE COM LEEDS,5411,Clothing uniforms and laundry,-7.00,0.00,-7.00
Resources BK0010,Digital and Customer Services,065335,School Services - Implementations,Supplies and Services,304303,Equipment and Materials,07-Jan-2020,000006926214890,CABLES DIRECT LTD,8999,Network for resale,74.16,12.36,61.80
Regeneration and Local Services,Development and Housing,030771,Durham Advance Flexible Fund,Transport,235057,Public Transport,07-Jan-2020,000006926214916,GO NORTH EAST LIMITED,4131,Staff travelling,25.00,0.00,25.00
Regeneration and Local Services,Development and Housing,030771,Durham Advance Flexible Fund,Supplies and Services,348037,Subsistence E348,07-Jan-2020,000006926214922,COSTA COFFEE,5814,Subsistence,5.60,0.93,4.67
Regeneration and Local Services,Business Durham CL0850,030690,Durham Dales Centre - Tourist Information Centre,Supplies and Services,328041,Clothing uniforms and laundry E328,07-Jan-2020,000006926214942,ZELLY UK TRADING LTD,5651,Clothing uniforms and laundry,390.84,65.14,325.70
Regeneration and Local Services,Culture Sport and Tourism,011204,Festival and Events,Supplies and Services,348037,Subsistence E348,07-Jan-2020,000006926214958,THE LAMP ROOM,5812,Subsistence,18.50,0.00,18.50
Regeneration and Local Services,Environmental Services,010301,C&G - North Grounds Maintenance,Supplies and Services,304221,Equipment and Materials,07-Jan-2020,000006926214968,J T DOVE LTD,5211,Direct materials,43.20,7.20,36.00
Children and Young Peoples Services,Head of Childrens Social Care,085332,Middlestone Moor CU,Supplies and Services,304999,Equipment and Materials,07-Jan-2020,000006926215046,HOME BARGAINS SPENNYMO,5251,Misc equipment tools and materials,8.72,1.45,7.27
Regeneration and Local Services,Development and Housing,031500,Housing Solutions - Core Team,Supplies and Services,352001,Conference Expenses,07-Jan-2020,000006926215052,GRAINGER HOTEL,7011,Conferencesseminars fees etc,100.00,0.00,100.00
Regeneration and Local Services,Development and Housing,030776,LINKCD Flexible Fund,Supplies and Services,324117,Provisions E324,07-Jan-2020,000006926215082,TESCO STORES 2371,5411,Catering costs - provisions,4.80,0.80,4.00
Regeneration and Local Services,Development and Housing,030776,LINKCD Flexible Fund,Supplies and Services,304259,Equipment and Materials,07-Jan-2020,000006926215094,GEN REGISTER OFFICE,9399,Equipment-purchase and rental,14.00,0.00,14.00
Regeneration and Local Services,Business Durham CL0850,030694,Plexus 2,Supplies and Services,324117,Provisions E324,07-Jan-2020,000006926215178,SAINSBURYS SACAT (2303,5411,Catering costs - provisions,5.40,0.00,5.40
Adult and Health Services,Head of Adults,055309,Peterlee Pathways,Supplies and Services,328041,Clothing uniforms and laundry E328,07-Jan-2020,000006926215190,POUNDSTRETCHER 396,5331,Clothing uniforms and laundry,9.98,0.00,9.98
Children and Young Peoples Services,Head of Education and Skills,071801,Selby Cottage Childcare Centre,Supplies and Services,304403,Equipment and Materials,07-Jan-2020,000006930922726,AMZNMKTPLACE AMAZON.CO,5999,Other consumables,8.99,1.50,7.49
Children and Young Peoples Services,Head of Childrens Social Care,085332,Middlestone Moor CU,Supplies and Services,324117,Provisions E324,07-Jan-2020,000006930922846,ALDI 74 774,5411,Catering costs - provisions,23.67,0.00,23.67
Regeneration and Local Services,Environmental Services,010551,Fleet - Chilton Fleet,Transport,215013,Running Costs of Vehicles,07-Jan-2020,000006930923122,DVLA VEHICLE TAX,9311,Vehicle Excise Duty (VED),167.50,0.00,167.50
Regeneration and Local Services,Environmental Services,010551,Fleet - Chilton Fleet,Transport,215013,Running Costs of Vehicles,07-Jan-2020,000006930923126,DVLA VEHICLE TAX,9311,Vehicle Excise Duty (VED),167.50,0.00,167.50
Regeneration and Local Services,Environmental Services,010900,Fleet - Meadowfield Fleet,Transport,215013,Running Costs of Vehicles,07-Jan-2020,000006930923130,DVLA VEHICLE TAX,9311,Vehicle Excise Duty (VED),262.50,0.00,262.50
Regeneration and Local Services,Environmental Services,010864,Fleet - Hackworth Road Fleet,Transport,215013,Running Costs of Vehicles,07-Jan-2020,000006930923132,DVLA VEHICLE TAX,9311,Vehicle Excise Duty (VED),167.50,0.00,167.50
Regeneration and Local Services,Environmental Services,010900,Fleet - Meadowfield Fleet,Transport,215013,Running Costs of Vehicles,07-Jan-2020,000006930923136,DVLA VEHICLE TAX,9311,Vehicle Excise Duty (VED),262.50,0.00,262.50
Regeneration and Local Services,Environmental Services,010900,Fleet - Meadowfield Fleet,Transport,215013,Running Costs of Vehicles,07-Jan-2020,000006930923140,DVLA VEHICLE TAX,9311,Vehicle Excise Duty (VED),262.50,0.00,262.50
Regeneration and Local Services,Environmental Services,010864,Fleet - Hackworth Road Fleet,Transport,215013,Running Costs of Vehicles,07-Jan-2020,000006930923144,DVLA VEHICLE TAX,9311,Vehicle Excise Duty (VED),167.50,0.00,167.50
Regeneration and Local Services,Environmental Services,010900,Fleet - Meadowfield Fleet,Transport,215013,Running Costs of Vehicles,07-Jan-2020,000006930923148,DVLA VEHICLE TAX,9311,Vehicle Excise Duty (VED),262.50,0.00,262.50
Regeneration and Local Services,Environmental Services,010900,Fleet - Meadowfield Fleet,Transport,215013,Running Costs of Vehicles,07-Jan-2020,000006930923152,DVLA VEHICLE TAX,9311,Vehicle Excise Duty (VED),262.50,0.00,262.50
Regeneration and Local Services,Environmental Services,010900,Fleet - Meadowfield Fleet,Transport,215013,Running Costs of Vehicles,07-Jan-2020,000006930923156,DVLA VEHICLE TAX,9311,Vehicle Excise Duty (VED),262.50,0.00,262.50
Regeneration and Local Services,Environmental Services,010900,Fleet - Meadowfield Fleet,Transport,215013,Running Costs of Vehicles,07-Jan-2020,000006930923160,DVLA VEHICLE TAX,9311,Vehicle Excise Duty (VED),262.50,0.00,262.50
Regeneration and Local Services,Environmental Services,010864,Fleet - Hackworth Road Fleet,Transport,215013,Running Costs of Vehicles,07-Jan-2020,000006930923164,DVLA VEHICLE TAX,9311,Vehicle Excise Duty (VED),262.50,0.00,262.50
Regeneration and Local Services,Environmental Services,010551,Fleet - Chilton Fleet,Transport,215013,Running Costs of Vehicles,07-Jan-2020,000006930923168,DVLA VEHICLE TAX,9311,Vehicle Excise Duty (VED),262.50,0.00,262.50
Regeneration and Local Services,Environmental Services,010900,Fleet - Meadowfield Fleet,Transport,215013,Running Costs of Vehicles,07-Jan-2020,000006930923172,DVLA VEHICLE TAX,9311,Vehicle Excise Duty (VED),262.50,0.00,262.50
Regeneration and Local Services,Environmental Services,010900,Fleet - Meadowfield Fleet,Transport,215013,Running Costs of Vehicles,07-Jan-2020,000006930923176,DVLA VEHICLE TAX,9311,Vehicle Excise Duty (VED),262.50,0.00,262.50
Regeneration and Local Services,Environmental Services,010900,Fleet - Meadowfield Fleet,Transport,215013,Running Costs of Vehicles,07-Jan-2020,000006930923180,DVLA VEHICLE TAX,9311,Vehicle Excise Duty (VED),262.50,0.00,262.50
Regeneration and Local Services,Environmental Services,010900,Fleet - Meadowfield Fleet,Transport,215013,Running Costs of Vehicles,07-Jan-2020,000006930923184,DVLA VEHICLE TAX,9311,Vehicle Excise Duty (VED),262.50,0.00,262.50
Regeneration and Local Services,Environmental Services,010900,Fleet - Meadowfield Fleet,Transport,215013,Running Costs of Vehicles,07-Jan-2020,000006930923188,DVLA VEHICLE TAX,9311,Vehicle Excise Duty (VED),262.50,0.00,262.50
Regeneration and Local Services,Environmental Services,010864,Fleet - Hackworth Road Fleet,Transport,215013,Running Costs of Vehicles,07-Jan-2020,000006930923192,DVLA VEHICLE TAX,9311,Vehicle Excise Duty (VED),167.50,0.00,167.50
Regeneration and Local Services,Environmental Services,010900,Fleet - Meadowfield Fleet,Transport,215013,Running Costs of Vehicles,07-Jan-2020,000006930923196,DVLA VEHICLE TAX,9311,Vehicle Excise Duty (VED),262.50,0.00,262.50
Regeneration and Local Services,Environmental Services,010900,Fleet - Meadowfield Fleet,Transport,215013,Running Costs of Vehicles,07-Jan-2020,000006930923200,DVLA VEHICLE TAX,9311,Vehicle Excise Duty (VED),262.50,0.00,262.50
Regeneration and Local Services,Environmental Services,010900,Fleet - Meadowfield Fleet,Transport,215013,Running Costs of Vehicles,07-Jan-2020,000006930923204,DVLA VEHICLE TAX,9311,Vehicle Excise Duty (VED),262.50,0.00,262.50
Children and Young Peoples Services,Head of Education and Skills,071732,Dean Bank Childcare,Supplies and Services,324117,Provisions E324,07-Jan-2020,000006930923348,CO-OP GROUP 310027,5411,Catering costs - provisions,15.82,0.00,15.82
Children and Young Peoples Services,Head of Early Help Inclusion & Vulnerable Children.,085957,Secure Management,Supplies and Services,304259,Equipment and Materials,07-Jan-2020,000006930923438,JD SPORTS INTERNET,5941,Equipment-purchase and rental,80.00,0.00,80.00
Children and Young Peoples Services,Head of Early Help Inclusion & Vulnerable Children.,085957,Secure Management,Supplies and Services,328041,Clothing uniforms and laundry E328,07-Jan-2020,000006930923444,WWW.FOOTLOCKER.EU,5661,Clothing uniforms and laundry,94.99,0.00,94.99
Children and Young Peoples Services,Head of Early Help Inclusion & Vulnerable Children.,085957,Secure Management,Supplies and Services,328041,Clothing uniforms and laundry E328,07-Jan-2020,000006930923448,ARGOS LTD,5310,Clothing uniforms and laundry,38.94,0.00,38.94
Regeneration and Local Services,Environmental Services,011060,C&G - Hardwick Park Catering,Supplies and Services,304083,Equipment and Materials,07-Jan-2020,000006930923480,WWW.NISBETS.COM,5964,Catering equipment,62.38,10.40,51.98
Regeneration and Local Services,Environmental Services,011060,C&G - Hardwick Park Catering,Supplies and Services,324117,Provisions E324,07-Jan-2020,000006930923490,BATLEYS PERTH,5300,Catering costs - provisions,294.72,49.12,245.60
Regeneration and Local Services,Environmental Services,011060,C&G - Hardwick Park Catering,Supplies and Services,324117,Provisions E324,07-Jan-2020,000006930923490 - 1,BATLEYS PERTH,5300,Catering costs - provisions,154.03,,154.03
Regeneration and Local Services,Corporate Property and Land,021234,Catering - Locomotion,Supplies and Services,324117,Provisions E324,07-Jan-2020,000006930923512,BATLEYS PERTH,5300,Catering costs - provisions,223.14,37.19,185.95
Regeneration and Local Services,Corporate Property and Land,021234,Catering - Locomotion,Supplies and Services,324117,Provisions E324,07-Jan-2020,000006930923512 - 1,BATLEYS PERTH,5300,Catering costs - provisions,51.93,,51.93
Regeneration and Local Services,Development and Housing,030771,Durham Advance Flexible Fund,Supplies and Services,304259,Equipment and Materials,07-Jan-2020,000006930923550,DURHAM TEA ROOM,9399,Equipment-purchase and rental,2.50,0.00,2.50
Children and Young Peoples Services,Head of Early Help Inclusion & Vulnerable Children.,088109,Spennymoor & Shildon 0-19 Community Family Hub,Supplies and Services,364320,Grants to Voluntary Organisations,07-Jan-2020,000006930923590,ARGOS LTD,5310,Accommodation assistance,77.98,0.00,77.98
Resources BK0010,Finance & Transactional Services,065180,Collections,Supplies and Services,338048,Services,07-Jan-2020,000006930923616,HMCOURTS-SERVICE.G,9222,Court costs 338048,"1,640.50",0.00,1640.50
Regeneration and Local Services,Environmental Services,010367,C&G - South Grounds Maintenance,Supplies and Services,304221,Equipment and Materials,07-Jan-2020,000006930923644,SCREWFIX DIRECT,5200,Direct materials,24.76,4.13,20.63
Regeneration and Local Services,Corporate Property and Land,021324,Catering - Meadowfield,Supplies and Services,324117,Provisions E324,07-Jan-2020,000006930923826,BATLEYS PERTH,5300,Catering costs - provisions,119.82,19.97,99.85
Regeneration and Local Services,Corporate Property and Land,021324,Catering - Meadowfield,Supplies and Services,324117,Provisions E324,07-Jan-2020,000006930923826 - 1,BATLEYS PERTH,5300,Catering costs - provisions,142.38,,142.38
Resources BK0010,Digital and Customer Services,070110,School Services - Man Info System (MIS) Support Team,Supplies and Services,342053,Computers and Communications,08-Jan-2020,000006926213860,WPMU DEV INCSUBFEE.COM,7372,Computer software,0.40,0.00,0.40
Children and Young Peoples Services,Head of Education and Skills,071801,Selby Cottage Childcare Centre,Supplies and Services,324117,Provisions E324,08-Jan-2020,000006930922722,TESCO STORES 2278,5411,Catering costs - provisions,32.27,0.00,32.27
Children and Young Peoples Services,Head of Education and Skills,071801,Selby Cottage Childcare Centre,Supplies and Services,304999,Equipment and Materials,08-Jan-2020,000006930922730,Amazon Prime 1H7GT8CI5,5968,Misc equipment tools and materials,7.99,0.00,7.99
Children and Young Peoples Services,Head of Education and Skills,071801,Selby Cottage Childcare Centre,Supplies and Services,384999,Miscellaneous Expenses,08-Jan-2020,000006930922734,Amazon.co.uk V467950V5,5969,Other expenses,29.81,4.97,24.84
Children and Young Peoples Services,Head of Education and Skills,071801,Selby Cottage Childcare Centre,Supplies and Services,324117,Provisions E324,08-Jan-2020,000006930922738,WILKO RETAIL LIMITED,5399,Catering costs - provisions,27.50,0.00,27.50
Children and Young Peoples Services,Head of Education and Skills,054640,Durham Learning Resources 054640,Supplies and Services,312011,Newspapers books and periodicals E312,08-Jan-2020,000006930922744,Amazon.co.uk 703BU3X45,5969,Books-school library,52.00,0.00,52.00
Regeneration and Local Services,Corporate Property and Land,010932,Building Design 010932,Supplies and Services,342053,Computers and Communications,08-Jan-2020,000006930922750,ENSCAPE3D.COM,7372,Computer software,641.10,0.00,641.10
Children and Young Peoples Services,Head of Childrens Social Care,085501,Child Care Cases Legal Expenses,Supplies and Services,304403,Equipment and Materials,08-Jan-2020,000006930922772,MIDDLESBROUGH COUNCIL,9399,Other consumables,11.00,0.00,11.00
Regeneration and Local Services,Development and Housing,030773,CLLD North,Supplies and Services,348037,Subsistence E348,08-Jan-2020,000006930922776,COSTA COFFEE,5814,Subsistence,4.80,0.80,4.00
Regeneration and Local Services,Environmental Services,031233,North Pennines - Pennine Peatlife,Supplies and Services,340001,Postages E340,08-Jan-2020,000006930922804,THE POST OFFICE,9402,Postages,10.20,0.00,10.20
Adult and Health Services,Head of Adults,055302,Durham Pathways,Supplies and Services,324117,Provisions E324,08-Jan-2020,000006930922810,LIDL GB DURHAM,5411,Catering costs - provisions,27.14,0.00,27.14
Dedicated Schools Grant BG0015,DSG High Needs Block,079050,SENSS-Sensory,Supplies and Services,304403,Equipment and Materials,08-Jan-2020,000006930922828,OCUSHIELD.COM,5734,Other consumables,61.94,0.00,61.94
Dedicated Schools Grant BG0015,DSG High Needs Block,079050,SENSS-Sensory,Supplies and Services,304259,Equipment and Materials,08-Jan-2020,000006930922834,CURRYS ONLINE,5732,Equipment-purchase and rental,87.98,0.00,87.98
Children and Young Peoples Services,Head of Childrens Social Care,085333,Coxhoe Satelite Home,Supplies and Services,384999,Miscellaneous Expenses,08-Jan-2020,000006930922906,GAME RETAIL,5945,Other expenses,15.00,0.00,15.00
Children and Young Peoples Services,Head of Childrens Social Care,085333,Coxhoe Satelite Home,Supplies and Services,348037,Subsistence E348,08-Jan-2020,000006930922910,NANDOS METROCENTRE,5812,Subsistence,28.80,4.80,24.00
Children and Young Peoples Services,Head of Childrens Social Care,085333,Coxhoe Satelite Home,Supplies and Services,304259,Equipment and Materials,08-Jan-2020,000006930922914,FOOTASYLUM,5941,Equipment-purchase and rental,41.98,7.00,34.98
Children and Young Peoples Services,Head of Early Help Inclusion & Vulnerable Children.,088105,BA/BC/Crook 0-19 Community Family Hub,Supplies and Services,304649,Equipment and Materials,08-Jan-2020,000006930922974,AMZNMktplace,5999,Toys,47.98,8.00,39.98
Children and Young Peoples Services,Head of Early Help Inclusion & Vulnerable Children.,088105,BA/BC/Crook 0-19 Community Family Hub,Supplies and Services,304649,Equipment and Materials,08-Jan-2020,000006930922978,AMZNMktplace,5999,Toys,34.50,5.75,28.75
Children and Young Peoples Services,Head of Early Help Inclusion & Vulnerable Children.,088105,BA/BC/Crook 0-19 Community Family Hub,Supplies and Services,304649,Equipment and Materials,08-Jan-2020,000006930922982,AMZNMktplace,5999,Toys,124.08,20.71,103.37
Children and Young Peoples Services,Head of Early Help Inclusion & Vulnerable Children.,088105,BA/BC/Crook 0-19 Community Family Hub,Supplies and Services,304259,Equipment and Materials,08-Jan-2020,000006930922986,ASDA GEORGE COM LEEDS,5411,Equipment-purchase and rental,347.75,57.96,289.79
Children and Young Peoples Services,Head of Early Help Inclusion & Vulnerable Children.,088105,BA/BC/Crook 0-19 Community Family Hub,Supplies and Services,304259,Equipment and Materials,08-Jan-2020,000006930922990,ARGOS LTD,5310,Equipment-purchase and rental,3.00,0.00,3.00
Children and Young Peoples Services,Head of Early Help Inclusion & Vulnerable Children.,088105,BA/BC/Crook 0-19 Community Family Hub,Supplies and Services,304259,Equipment and Materials,08-Jan-2020,000006930922994,ARGOS LTD,5310,Equipment-purchase and rental,43.95,0.00,43.95
Regeneration and Local Services,Corporate Property and Land,021242,Catering - County Hall,Premises,145009,Cleaning and Domestic Supplies,08-Jan-2020,000006930923012,ALLIANCE DISPOSABLES L,2842,Other cleaning and domestic costs,53.24,8.87,44.37
Regeneration and Local Services,Corporate Property and Land,021242,Catering - County Hall,Premises,145009,Cleaning and Domestic Supplies,08-Jan-2020,000006930923018,ALLIANCE DISPOSABLES L,2842,Other cleaning and domestic costs,2.76,0.46,2.30
Children and Young Peoples Services,Head of Childrens Social Care,085380,Operations Manager LAC Resources,Supplies and Services,328041,Clothing uniforms and laundry E328,08-Jan-2020,000006930923024,ARGOS LTD,5310,Clothing uniforms and laundry,18.94,0.00,18.94
Resources BK0010,Digital and Customer Services,065481,Technical Services 065481,Supplies and Services,372009,Subscriptions E372,08-Jan-2020,000006930923030,NOMINET UK,7392,Subscriptions 372009,22.50,3.75,18.75
Regeneration and Local Services,Development and Housing,031576,B& B - Temp Accom,Supplies and Services,364320,Grants to Voluntary Organisations,08-Jan-2020,000006930923112,GRAINGER HOTEL,7011,Accommodation assistance,100.00,16.67,83.33
Regeneration and Local Services,Environmental Services,010864,Fleet - Hackworth Road Fleet,Transport,215013,Running Costs of Vehicles,08-Jan-2020,000006930923206,DVLA VEHICLE TAX,9311,Vehicle Excise Duty (VED),617.50,0.00,617.50
Regeneration and Local Services,Environmental Services,010551,Fleet - Chilton Fleet,Transport,215013,Running Costs of Vehicles,08-Jan-2020,000006930923210,DVLA VEHICLE TAX,9311,Vehicle Excise Duty (VED),617.50,0.00,617.50
Regeneration and Local Services,Environmental Services,010900,Fleet - Meadowfield Fleet,Transport,215013,Running Costs of Vehicles,08-Jan-2020,000006930923212,DVLA VEHICLE TAX,9311,Vehicle Excise Duty (VED),262.50,0.00,262.50
Regeneration and Local Services,Environmental Services,010561,Fleet - Morrison Busty Fleet,Transport,215013,Running Costs of Vehicles,08-Jan-2020,000006930923216,DVLA VEHICLE TAX,9311,Vehicle Excise Duty (VED),617.50,0.00,617.50
Regeneration and Local Services,Environmental Services,010561,Fleet - Morrison Busty Fleet,Transport,215013,Running Costs of Vehicles,08-Jan-2020,000006930923220,DVLA VEHICLE TAX,9311,Vehicle Excise Duty (VED),617.50,0.00,617.50
Regeneration and Local Services,Environmental Services,010551,Fleet - Chilton Fleet,Transport,215013,Running Costs of Vehicles,08-Jan-2020,000006930923226,DVLA VEHICLE TAX,9311,Vehicle Excise Duty (VED),617.50,0.00,617.50
Regeneration and Local Services,Environmental Services,010561,Fleet - Morrison Busty Fleet,Transport,215013,Running Costs of Vehicles,08-Jan-2020,000006930923228,DVLA VEHICLE TAX,9311,Vehicle Excise Duty (VED),617.50,0.00,617.50
Regeneration and Local Services,Environmental Services,010900,Fleet - Meadowfield Fleet,Transport,215013,Running Costs of Vehicles,08-Jan-2020,000006930923234,DVLA VEHICLE TAX,9311,Vehicle Excise Duty (VED),262.50,0.00,262.50
Regeneration and Local Services,Environmental Services,010551,Fleet - Chilton Fleet,Transport,215013,Running Costs of Vehicles,08-Jan-2020,000006930923236,DVLA VEHICLE TAX,9311,Vehicle Excise Duty (VED),617.50,0.00,617.50
Regeneration and Local Services,Environmental Services,010900,Fleet - Meadowfield Fleet,Transport,215013,Running Costs of Vehicles,08-Jan-2020,000006930923240,DVLA VEHICLE TAX,9311,Vehicle Excise Duty (VED),262.50,0.00,262.50
Regeneration and Local Services,Environmental Services,010561,Fleet - Morrison Busty Fleet,Transport,215013,Running Costs of Vehicles,08-Jan-2020,000006930923244,DVLA VEHICLE TAX,9311,Vehicle Excise Duty (VED),262.50,0.00,262.50
Regeneration and Local Services,Environmental Services,010561,Fleet - Morrison Busty Fleet,Transport,215013,Running Costs of Vehicles,08-Jan-2020,000006930923248,DVLA VEHICLE TAX,9311,Vehicle Excise Duty (VED),262.50,0.00,262.50
Regeneration and Local Services,Environmental Services,010900,Fleet - Meadowfield Fleet,Transport,215013,Running Costs of Vehicles,08-Jan-2020,000006930923252,DVLA VEHICLE TAX,9311,Vehicle Excise Duty (VED),262.50,0.00,262.50
Regeneration and Local Services,Environmental Services,010551,Fleet - Chilton Fleet,Transport,215013,Running Costs of Vehicles,08-Jan-2020,000006930923256,DVLA VEHICLE TAX,9311,Vehicle Excise Duty (VED),262.50,0.00,262.50
Regeneration and Local Services,Environmental Services,010561,Fleet - Morrison Busty Fleet,Transport,215013,Running Costs of Vehicles,08-Jan-2020,000006930923260,DVLA VEHICLE TAX,9311,Vehicle Excise Duty (VED),617.50,0.00,617.50
Regeneration and Local Services,Environmental Services,010900,Fleet - Meadowfield Fleet,Transport,215013,Running Costs of Vehicles,08-Jan-2020,000006930923264,DVLA VEHICLE TAX,9311,Vehicle Excise Duty (VED),262.50,0.00,262.50
Regeneration and Local Services,Environmental Services,010561,Fleet - Morrison Busty Fleet,Transport,215013,Running Costs of Vehicles,08-Jan-2020,000006930923268,DVLA VEHICLE TAX,9311,Vehicle Excise Duty (VED),617.50,0.00,617.50
Regeneration and Local Services,Environmental Services,010900,Fleet - Meadowfield Fleet,Transport,215013,Running Costs of Vehicles,08-Jan-2020,000006930923272,DVLA VEHICLE TAX,9311,Vehicle Excise Duty (VED),262.50,0.00,262.50
Regeneration and Local Services,Environmental Services,010551,Fleet - Chilton Fleet,Transport,215013,Running Costs of Vehicles,08-Jan-2020,000006930923276,DVLA VEHICLE TAX,9311,Vehicle Excise Duty (VED),262.50,0.00,262.50
Regeneration and Local Services,Environmental Services,010864,Fleet - Hackworth Road Fleet,Transport,215013,Running Costs of Vehicles,08-Jan-2020,000006930923280,DVLA VEHICLE TAX,9311,Vehicle Excise Duty (VED),617.50,0.00,617.50
Regeneration and Local Services,Environmental Services,010900,Fleet - Meadowfield Fleet,Transport,215013,Running Costs of Vehicles,08-Jan-2020,000006930923284,DVLA VEHICLE TAX,9311,Vehicle Excise Duty (VED),722.50,0.00,722.50
Regeneration and Local Services,Environmental Services,010864,Fleet - Hackworth Road Fleet,Transport,215013,Running Costs of Vehicles,08-Jan-2020,000006930923288,DVLA VEHICLE TAX,9311,Vehicle Excise Duty (VED),617.50,0.00,617.50
Regeneration and Local Services,Environmental Services,010561,Fleet - Morrison Busty Fleet,Transport,215013,Running Costs of Vehicles,08-Jan-2020,000006930923290,DVLA VEHICLE TAX,9311,Vehicle Excise Duty (VED),617.50,0.00,617.50
Regeneration and Local Services,Environmental Services,010561,Fleet - Morrison Busty Fleet,Transport,215013,Running Costs of Vehicles,08-Jan-2020,000006930923294,DVLA VEHICLE TAX,9311,Vehicle Excise Duty (VED),262.50,0.00,262.50
Regeneration and Local Services,Environmental Services,010561,Fleet - Morrison Busty Fleet,Transport,215013,Running Costs of Vehicles,08-Jan-2020,000006930923298,DVLA VEHICLE TAX,9311,Vehicle Excise Duty (VED),617.50,0.00,617.50
Regeneration and Local Services,Environmental Services,010551,Fleet - Chilton Fleet,Transport,215013,Running Costs of Vehicles,08-Jan-2020,000006930923304,DVLA VEHICLE TAX,9311,Vehicle Excise Duty (VED),262.50,0.00,262.50
Regeneration and Local Services,Environmental Services,010900,Fleet - Meadowfield Fleet,Transport,215013,Running Costs of Vehicles,08-Jan-2020,000006930923308,DVLA VEHICLE TAX,9311,Vehicle Excise Duty (VED),262.50,0.00,262.50
Regeneration and Local Services,Environmental Services,010561,Fleet - Morrison Busty Fleet,Transport,215013,Running Costs of Vehicles,08-Jan-2020,000006930923312,DVLA VEHICLE TAX,9311,Vehicle Excise Duty (VED),262.50,0.00,262.50
Children and Young Peoples Services,Head of Education and Skills,071732,Dean Bank Childcare,Supplies and Services,328041,Clothing uniforms and laundry E328,08-Jan-2020,000006930923352,B&M RETAIL LTD,5310,Clothing uniforms and laundry,13.96,0.00,13.96
Regeneration and Local Services,Environmental Services,010301,C&G - North Grounds Maintenance,Supplies and Services,304403,Equipment and Materials,08-Jan-2020,000006930923400,BESCOL,5231,Other consumables,59.50,9.92,49.58
Regeneration and Local Services,Environmental Services,010301,C&G - North Grounds Maintenance,Supplies and Services,304221,Equipment and Materials,08-Jan-2020,000006930923404,HARELAW SAWMILL,5211,Direct materials,88.03,14.67,73.36
Regeneration and Local Services,Development and Housing,030735,Economic Development - Employability,Supplies and Services,304999,Equipment and Materials,08-Jan-2020,000006930923414,ESCAPE ROOMS DURHAM,7991,Misc equipment tools and materials,300.00,0.00,300.00
Regeneration and Local Services,Development and Housing,030771,Durham Advance Flexible Fund,Transport,235057,Public Transport,08-Jan-2020,000006930923434,ARRIVA NORTH EAST,4131,Staff travelling,64.00,0.00,64.00
Children and Young Peoples Services,Head of Early Help Inclusion & Vulnerable Children.,085957,Secure Management,Supplies and Services,304403,Equipment and Materials,08-Jan-2020,000006930923442,AMZNMktplace,5999,Other consumables,25.49,4.25,21.24
Children and Young Peoples Services,Head of Early Help Inclusion & Vulnerable Children.,085957,Secure Management,Supplies and Services,324117,Provisions E324,08-Jan-2020,000006930923450,TESCO STORES 6329,5411,Catering costs - provisions,142.08,0.00,142.08
Regeneration and Local Services,Environmental Services,031228,North Pennines - Fellfoot Forward,Transport,235057,Public Transport,08-Jan-2020,000006930923484,WWW.TPEXPRESS.CO.UK,4112,Staff travelling,123.20,0.00,123.20
Regeneration and Local Services,Development and Housing,030771,Durham Advance Flexible Fund,Supplies and Services,324117,Provisions E324,08-Jan-2020,000006930923554,BRADLEY BURN FARM SHOP,5411,Catering costs - provisions,5.60,0.00,5.60
Regeneration and Local Services,Development and Housing,030554,International Relations 030554,Transport,235057,Public Transport,08-Jan-2020,000006930923588,3C_ NSL Durham WAP,7523,Staff travelling,2.40,0.00,2.40
Children and Young Peoples Services,Head of Childrens Social Care,085612,Families First Consett,Supplies and Services,304259,Equipment and Materials,08-Jan-2020,000006930923594,ASDA SUPERSTORE,5411,Equipment-purchase and rental,7.20,0.00,7.20
Regeneration and Local Services,Development and Housing,031620,Housing Solutions Buy to Lease Scheme,Supplies and Services,384999,Miscellaneous Expenses,08-Jan-2020,000006930923598,WW.NORTHERNGASNETW,8999,Other expenses,376.80,0.00,376.80
Children and Young Peoples Services,Head of Education and Skills,071802,Louisa Cent Nursery,Supplies and Services,304403,Equipment and Materials,08-Jan-2020,000006930923620,AMZNMKTPLACE AMAZON.CO,5999,Other consumables,-7.99,0.00,-7.99
Children and Young Peoples Services,Head of Childrens Social Care,085342,9 Cedar Drive Aycliffe,Supplies and Services,324117,Provisions E324,08-Jan-2020,000006930923650,ASDA SUPERSTORE 4987,5411,Catering costs - provisions,5.00,0.00,5.00
Children and Young Peoples Services,Head of Childrens Social Care,085342,9 Cedar Drive Aycliffe,Supplies and Services,328041,Clothing uniforms and laundry E328,08-Jan-2020,000006930923654,ARGOS DARLINGTON,5310,Clothing uniforms and laundry,99.99,0.00,99.99
Children and Young Peoples Services,Head of Early Help Inclusion & Vulnerable Children.,085957,Secure Management,Supplies and Services,304403,Equipment and Materials,08-Jan-2020,000006930923670,AMZNMktplace,5999,Other consumables,497.72,82.96,414.76
Children and Young Peoples Services,Head of Early Help Inclusion & Vulnerable Children.,085957,Secure Management,Supplies and Services,304403,Equipment and Materials,08-Jan-2020,000006930923674,AMZNMktplace,5999,Other consumables,137.25,0.00,137.25
Children and Young Peoples Services,Head of Early Help Inclusion & Vulnerable Children.,085957,Secure Management,Supplies and Services,304999,Equipment and Materials,08-Jan-2020,000006930923680,WWW.TOOLSTATION.COM,5251,Misc equipment tools and materials,38.87,6.48,32.39
Children and Young Peoples Services,Head of Early Help Inclusion & Vulnerable Children.,085957,Secure Management,Supplies and Services,384999,Miscellaneous Expenses,08-Jan-2020,000006930923684,A S CATERING SUPPLIES,5046,Other expenses,76.72,12.79,63.93
Adult and Health Services,Head of Adults,055306,Spennymoor Pathways,Supplies and Services,324117,Provisions E324,08-Jan-2020,000006930923690,ASDA SUPERSTORE 4987,5411,Catering costs - provisions,7.45,0.00,7.45
Regeneration and Local Services,Development and Housing,031576,B& B - Temp Accom,Supplies and Services,364320,Grants to Voluntary Organisations,08-Jan-2020,000006930923722,HOTEL 52,7011,Accommodation assistance,53.98,0.00,53.98
Children and Young Peoples Services,Head of Education and Skills,070264,EDC Premises,Supplies and Services,384999,Miscellaneous Expenses,08-Jan-2020,000006930923728,Amazon.co.uk B22H742X5,5969,Other expenses,36.30,6.05,30.25
Children and Young Peoples Services,Head of Education and Skills,070264,EDC Premises,Supplies and Services,384999,Miscellaneous Expenses,08-Jan-2020,000006930923734,Amazon.co.uk 9K1QI60H5,5969,Other expenses,29.70,4.95,24.75
Children and Young Peoples Services,Head of Early Help Inclusion & Vulnerable Children.,088101,CLS 0-19 Community Family Hub,Supplies and Services,328041,Clothing uniforms and laundry E328,08-Jan-2020,000006930923756,ASDA GEORGE COM LEEDS,5411,Clothing uniforms and laundry,-16.00,0.00,-16.00
Regeneration and Local Services,Culture Sport and Tourism,010599,Newton Aycliffe Leisure Ctr-General,Supplies and Services,342033,Computers and Communications,08-Jan-2020,000006930923790,AMZNMktplace,5999,Computer hardware,111.96,18.68,93.28
Regeneration and Local Services,Culture Sport and Tourism,010601,Spennymoor Leisure Cr - General,Supplies and Services,342033,Computers and Communications,08-Jan-2020,000006930923794,AMZNMktplace,5999,Computer hardware,111.96,18.68,93.28
Resources BK0010,Digital and Customer Services,065335,School Services - Implementations,Supplies and Services,304303,Equipment and Materials,08-Jan-2020,000006930923798,AMZNMktplace,5999,Network for resale,108.32,0.00,108.32
Regeneration and Local Services,Development and Housing,030771,Durham Advance Flexible Fund,Supplies and Services,348037,Subsistence E348,08-Jan-2020,000006930923814,COSTA COFFEE,5814,Subsistence,4.50,0.75,3.75
Children and Young Peoples Services,Head of Childrens Social Care,085342,9 Cedar Drive Aycliffe,Supplies and Services,324117,Provisions E324,08-Jan-2020,000006930923868,TESCO STORES 2916,5411,Catering costs - provisions,93.45,0.00,93.45
Children and Young Peoples Services,Head of Childrens Social Care,085342,9 Cedar Drive Aycliffe,Premises,145009,Cleaning and Domestic Supplies,08-Jan-2020,000006930923872,MALCOLMS CLEANING,7349,Other cleaning and domestic costs,26.00,0.00,26.00
Children and Young Peoples Services,Head of Childrens Social Care,085613,Families First Durham Central,Supplies and Services,340001,Postages E340,08-Jan-2020,000006930923894,POST OFFICE COUNTER,9402,Postages,1.90,0.00,1.90
Children and Young Peoples Services,Head of Childrens Social Care,085633,Families First Chester-Le-Street,Supplies and Services,304403,Equipment and Materials,08-Jan-2020,000006930923898,GO NORTH EAST LIMITED,4131,Other consumables,20.00,0.00,20.00
Resources BK0010,Corporate Finance & Commercial Services,069800,Corporate Procurement 069800,Employees,040149,Recruitment Instruction and Training,08-Jan-2020,000006930923950,WWW.CIPS.ORG,8699,Training-all costs,66.95,0.00,66.95
Resources BK0010,Corporate Finance & Commercial Services,069800,Corporate Procurement 069800,Employees,040149,Recruitment Instruction and Training,08-Jan-2020,000006930923956,WWW.CIPS.ORG,8699,Training-all costs,137.00,0.00,137.00
Children and Young Peoples Services,Head of Childrens Social Care,085332,Middlestone Moor CU,Supplies and Services,324117,Provisions E324,08-Jan-2020,000006930923972,ASDA SUPERSTORE 4987,5411,Catering costs - provisions,21.19,0.00,21.19
Children and Young Peoples Services,Head of Early Help Inclusion & Vulnerable Children.,088107,Ferryhill & Newton Aycliffe 0-19 Community Family Hub,Supplies and Services,304403,Equipment and Materials,08-Jan-2020,000006930923982,AMZNMKTPLACE AMAZON.CO,5999,Other consumables,9.99,1.67,8.32
Children and Young Peoples Services,Head of Early Help Inclusion & Vulnerable Children.,088107,Ferryhill & Newton Aycliffe 0-19 Community Family Hub,Supplies and Services,384999,Miscellaneous Expenses,08-Jan-2020,000006930923988,Amazon.co.uk MJ4YG4LY5,5969,Other expenses,20.60,0.00,20.60
Adult and Health Services,Head of Adults,055309,Peterlee Pathways,Supplies and Services,324117,Provisions E324,08-Jan-2020,000006930924060,LIDL GB PETERLEE,5411,Catering costs - provisions,2.96,0.00,2.96
Regeneration and Local Services,Business Durham CL0850,030694,Plexus 2,Supplies and Services,328041,Clothing uniforms and laundry E328,08-Jan-2020,000006930924184,ARGOS SEDGEFIELD,5310,Clothing uniforms and laundry,99.95,0.00,99.95
Regeneration and Local Services,Culture Sport and Tourism,011215,Museums Heritage & Collections 011215,Supplies and Services,304259,Equipment and Materials,08-Jan-2020,000006936039926,AMZNMKTPLACE AMAZON.CO,5999,Equipment-purchase and rental,14.99,2.50,12.49
Regeneration and Local Services,Development and Housing,031576,B& B - Temp Accom,Supplies and Services,364320,Grants to Voluntary Organisations,08-Jan-2020,000006936040140,PREMIER INN,3811,Accommodation assistance,75.50,12.58,62.92
Regeneration and Local Services,Culture Sport and Tourism,054815,Gala Theatre Stage School,Supplies and Services,328041,Clothing uniforms and laundry E328,08-Jan-2020,000006936040474,PAYPAL KRISHWEARLT EB,5699,Clothing uniforms and laundry,6.99,0.00,6.99
Regeneration and Local Services,Corporate Property and Land,010525,Catering - Green Lane,Supplies and Services,324117,Provisions E324,08-Jan-2020,000006936040558,BATLEYS PERTH,5300,Catering costs - provisions,8.32,0.00,8.32
Transformation and Partnerships,Business Support,065461,Business Support 065461,Supplies and Services,342033,Computers and Communications,09-Jan-2020,000006930922752,ENSCAPE3D.COM,7372,Computer hardware,17.63,0.00,17.63
Regeneration and Local Services,Business Durham CL0850,030689,Inward Investment and Aftercare,Supplies and Services,304999,Equipment and Materials,09-Jan-2020,000006936039808,MAILCHIMP MONTHLY,5968,Misc equipment tools and materials,69.91,0.00,69.91
Children and Young Peoples Services,Head of Childrens Social Care,085611,Families First Stanley,Supplies and Services,304259,Equipment and Materials,09-Jan-2020,000006936039822,Amazon.co.uk VT2JS5YQ5,5969,Equipment-purchase and rental,32.18,5.36,26.82
Children and Young Peoples Services,Head of Education and Skills,071801,Selby Cottage Childcare Centre,Supplies and Services,304403,Equipment and Materials,09-Jan-2020,000006936039826,AMZNMKTPLACE AMAZON.CO,5999,Other consumables,36.54,6.09,30.45
Children and Young Peoples Services,Head of Education and Skills,071801,Selby Cottage Childcare Centre,Supplies and Services,304403,Equipment and Materials,09-Jan-2020,000006936039826 - 1,AMZNMKTPLACE AMAZON.CO,5999,Other consumables,0.06,,0.06
Children and Young Peoples Services,Head of Education and Skills,071801,Selby Cottage Childcare Centre,Supplies and Services,304403,Equipment and Materials,09-Jan-2020,000006936039830,AMZNMKTPLACE AMAZON.CO,5999,Other consumables,14.95,0.00,14.95
Children and Young Peoples Services,Head of Education and Skills,071801,Selby Cottage Childcare Centre,Supplies and Services,304403,Equipment and Materials,09-Jan-2020,000006936039834,AMZNMKTPLACE AMAZON.CO,5999,Other consumables,7.56,1.28,6.28
Children and Young Peoples Services,Head of Education and Skills,071801,Selby Cottage Childcare Centre,Supplies and Services,304403,Equipment and Materials,09-Jan-2020,000006936039836,AMZNMKTPLACE AMAZON.CO,5999,Other consumables,84.95,14.16,70.79
Children and Young Peoples Services,Head of Childrens Social Care,085561,Social Work Academy,Supplies and Services,304403,Equipment and Materials,09-Jan-2020,000006936039848,AMZNMKTPLACE AMAZON.CO,5999,Other consumables,186.00,31.00,155.00
Children and Young Peoples Services,Head of Childrens Social Care,085561,Social Work Academy,Supplies and Services,304403,Equipment and Materials,09-Jan-2020,000006936039848 - 1,AMZNMKTPLACE AMAZON.CO,5999,Other consumables,0.25,,0.25
Resources BK0010,Legal & Democratic Services,069326,Practice Management,Supplies and Services,304403,Equipment and Materials,09-Jan-2020,000006936039850,Amazon.co.uk 8U05V8395,5969,Other consumables,49.99,8.33,41.66
Transformation and Partnerships,Partnerships & Community Engagement Div.,052707,Partnership Team,Supplies and Services,304403,Equipment and Materials,09-Jan-2020,000006936039854,AMZNMktplace,5999,Other consumables,10.00,1.67,8.33
Transformation and Partnerships,Communications Management,060270,Communications and Marketing,Supplies and Services,342053,Computers and Communications,09-Jan-2020,000006936039858,PAYPAL ENVATO MKPL EN,5999,Computer software,24.63,0.00,24.63
Resources BK0010,Digital and Customer Services,065432,Web Development Group,Supplies and Services,342053,Computers and Communications,09-Jan-2020,000006936039862,UKFAST.NET LTD,4816,Computer software,563.01,93.84,469.17
Transformation and Partnerships,Partnerships & Community Engagement Div.,052707,Partnership Team,Supplies and Services,304403,Equipment and Materials,09-Jan-2020,000006936039868,AMZNMktplace,5999,Other consumables,55.74,9.29,46.45
Transformation and Partnerships,Partnerships & Community Engagement Div.,052707,Partnership Team,Supplies and Services,304403,Equipment and Materials,09-Jan-2020,000006936039868 - 1,AMZNMktplace,5999,Other consumables,14.52,,14.52
Children and Young Peoples Services,Head of Education and Skills,070264,EDC Premises,Premises,145009,Cleaning and Domestic Supplies,09-Jan-2020,000006936039878,ALLIANCE DISPOSABLES L,2842,Other cleaning and domestic costs,2.76,0.46,2.30
Children and Young Peoples Services,Head of Education and Skills,070264,EDC Premises,Premises,145009,Cleaning and Domestic Supplies,09-Jan-2020,000006936039884,ALLIANCE DISPOSABLES L,2842,Other cleaning and domestic costs,129.81,21.64,108.17
Children and Young Peoples Services,Head of Childrens Social Care,085357,LAC Bespoke Placements,Transport,235057,Public Transport,09-Jan-2020,000006936039900,HOLIDAY PAYMENT VRUK,4722,Staff travelling,225.00,0.00,225.00
Resources BK0010,Legal & Democratic Services,069326,Practice Management,Employees,040149,Recruitment Instruction and Training,09-Jan-2020,000006936039906,EB LFJB CONFERENCE SI,7399,Training-all costs,32.93,0.00,32.93
Children and Young Peoples Services,Head of Childrens Social Care,085332,Middlestone Moor CU,Supplies and Services,324117,Provisions E324,09-Jan-2020,000006936039954,ASDA SUPERSTORE 4987,5411,Catering costs - provisions,10.14,0.00,10.14
Children and Young Peoples Services,Head of Childrens Social Care,085341,High Etherley Satelite Home,Supplies and Services,324117,Provisions E324,09-Jan-2020,000006936039990,TESCO STORES 6329,5411,Catering costs - provisions,39.02,0.00,39.02
Children and Young Peoples Services,Head of Early Help Inclusion & Vulnerable Children.,088105,BA/BC/Crook 0-19 Community Family Hub,Supplies and Services,304649,Equipment and Materials,09-Jan-2020,000006936040082,AMZNMktplace,5999,Toys,45.90,7.66,38.24
Children and Young Peoples Services,Head of Early Help Inclusion & Vulnerable Children.,088105,BA/BC/Crook 0-19 Community Family Hub,Supplies and Services,304259,Equipment and Materials,09-Jan-2020,000006936040088,ASDA GROCERIES ONLINE,5411,Equipment-purchase and rental,101.42,0.00,101.42
Children and Young Peoples Services,Head of Early Help Inclusion & Vulnerable Children.,088105,BA/BC/Crook 0-19 Community Family Hub,Supplies and Services,324117,Provisions E324,09-Jan-2020,000006936040092,ASDA GROCERIES ONLINE,5411,Catering costs - provisions,-13.19,0.00,-13.19
Regeneration and Local Services,Environmental Services,010367,C&G - South Grounds Maintenance,Supplies and Services,304221,Equipment and Materials,09-Jan-2020,000006936040124,CARRS BILLINGTON SPENN,5599,Direct materials,230.40,38.40,192.00
Regeneration and Local Services,Culture Sport and Tourism,054812,Gala Theatre - Catering etc,Premises,145009,Cleaning and Domestic Supplies,09-Jan-2020,000006936040132,ALLIANCE DISPOSABLES L,2842,Other cleaning and domestic costs,277.12,46.19,230.93
Adult and Health Services,Head of Adults,055807,Newton Aycliffe Pathways,Third Party Payments,474101,Purchase of Care,09-Jan-2020,000006936040230,PIONEERING CARE PARTNE,8050,Nursing care payments,72.00,0.00,72.00
Children and Young Peoples Services,Head of Childrens Social Care,085334,West Rainton Satelite Home,Supplies and Services,324117,Provisions E324,09-Jan-2020,000006936040256,TESCO STORES 2371,5411,Catering costs - provisions,2.09,0.00,2.09
Adult and Health Services,Commissioning inc Supporting People,052100,Supporting the Provider Market,Supplies and Services,352001,Conference Expenses,09-Jan-2020,000006936040280,RADISSON BLU,3583,Conferencesseminars fees etc,453.20,0.00,453.20
Regeneration and Local Services,Development and Housing,030771,Durham Advance Flexible Fund,Supplies and Services,384700,Miscellaneous Expenses,09-Jan-2020,000006936040378,giffgaff,4814,Miscellaneous grants,20.00,0.00,20.00
Regeneration and Local Services,Development and Housing,030771,Durham Advance Flexible Fund,Supplies and Services,324117,Provisions E324,09-Jan-2020,000006936040386,COSTA COFFEE 43038640,5814,Catering costs - provisions,4.60,0.00,4.60
Regeneration and Local Services,Development and Housing,030771,Durham Advance Flexible Fund,Supplies and Services,384700,Miscellaneous Expenses,09-Jan-2020,000006936040390,BRITISH CYCLING FE,7997,Miscellaneous grants,45.00,0.00,45.00
Regeneration and Local Services,Development and Housing,031500,Housing Solutions - Core Team,Supplies and Services,352001,Conference Expenses,09-Jan-2020,000006936040396,THE HONEST LAWYER,7011,Conferencesseminars fees etc,380.00,0.00,380.00
Regeneration and Local Services,Development and Housing,030771,Durham Advance Flexible Fund,Supplies and Services,324117,Provisions E324,09-Jan-2020,000006936040404,TESCO STORES 2371,5411,Catering costs - provisions,51.00,0.00,51.00
Children and Young Peoples Services,Head of Early Help Inclusion & Vulnerable Children.,085957,Secure Management,Supplies and Services,304403,Equipment and Materials,09-Jan-2020,000006936040414,AMZNMktplace,5999,Other consumables,9.94,1.66,8.28
Children and Young Peoples Services,Head of Early Help Inclusion & Vulnerable Children.,085957,Secure Management,Supplies and Services,304403,Equipment and Materials,09-Jan-2020,000006936040418,AMZNMktplace,5999,Other consumables,9.19,1.53,7.66
Children and Young Peoples Services,Head of Early Help Inclusion & Vulnerable Children.,085957,Secure Management,Supplies and Services,304403,Equipment and Materials,09-Jan-2020,000006936040424,AMZNMktplace,5999,Other consumables,28.08,4.68,23.40
Children and Young Peoples Services,Head of Early Help Inclusion & Vulnerable Children.,085957,Secure Management,Supplies and Services,304403,Equipment and Materials,09-Jan-2020,000006936040424 - 1,AMZNMktplace,5999,Other consumables,0.03,,0.03
Children and Young Peoples Services,Head of Early Help Inclusion & Vulnerable Children.,085957,Secure Management,Supplies and Services,304403,Equipment and Materials,09-Jan-2020,000006936040428,AMZNMktplace,5999,Other consumables,22.22,3.70,18.52
Children and Young Peoples Services,Head of Early Help Inclusion & Vulnerable Children.,085957,Secure Management,Supplies and Services,384999,Miscellaneous Expenses,09-Jan-2020,000006936040432,NEXT DIRECTORY,5965,Other expenses,135.99,0.00,135.99
Regeneration and Local Services,Corporate Property and Land,021234,Catering - Locomotion,Premises,145009,Cleaning and Domestic Supplies,09-Jan-2020,000006936040514,ALLIANCE DISPOSABLES L,2842,Other cleaning and domestic costs,30.20,5.03,25.17
Regeneration and Local Services,Corporate Property and Land,021234,Catering - Locomotion,Premises,145009,Cleaning and Domestic Supplies,09-Jan-2020,000006936040522,ALLIANCE DISPOSABLES L,2842,Other cleaning and domestic costs,33.41,5.57,27.84
Children and Young Peoples Services,Head of Early Help Inclusion & Vulnerable Children.,088101,CLS 0-19 Community Family Hub,Supplies and Services,324117,Provisions E324,09-Jan-2020,000006936040528,LIDL GB LANGLEY MOOR,5411,Catering costs - provisions,17.40,0.00,17.40
Regeneration and Local Services,Corporate Property and Land,010525,Catering - Green Lane,Premises,145009,Cleaning and Domestic Supplies,09-Jan-2020,000006936040562,ALLIANCE DISPOSABLES L,2842,Other cleaning and domestic costs,2.76,0.46,2.30
Regeneration and Local Services,Corporate Property and Land,010525,Catering - Green Lane,Premises,145009,Cleaning and Domestic Supplies,09-Jan-2020,000006936040568,ALLIANCE DISPOSABLES L,2842,Other cleaning and domestic costs,387.36,64.56,322.80
Regeneration and Local Services,Corporate Property and Land,010525,Catering - Green Lane,Premises,145009,Cleaning and Domestic Supplies,09-Jan-2020,000006936040572,ALLIANCE DISPOSABLES L,2842,Other cleaning and domestic costs,128.74,21.46,107.28
Regeneration and Local Services,Corporate Property and Land,010525,Catering - Green Lane,Premises,145009,Cleaning and Domestic Supplies,09-Jan-2020,000006936040580,ALLIANCE DISPOSABLES L,2842,Other cleaning and domestic costs,3.36,0.56,2.80
Children and Young Peoples Services,Head of Childrens Social Care,085352,Tow Law CU,Supplies and Services,324117,Provisions E324,09-Jan-2020,000006936040616,MR PRETZELS (UK) RETAI,5499,Catering costs - provisions,6.90,0.00,6.90
Children and Young Peoples Services,Head of Childrens Social Care,085352,Tow Law CU,Supplies and Services,304403,Equipment and Materials,09-Jan-2020,000006936040620,PAPERCHASE,5947,Other consumables,12.25,0.00,12.25
Resources BK0010,Legal & Democratic Services,067910,Democratic Representation 067910,Transport,235057,Public Transport,09-Jan-2020,000006936040656,thetrainline.com,4112,Staff travelling,206.65,0.00,206.65
Children and Young Peoples Services,Head of Childrens Social Care,085334,West Rainton Satelite Home,Supplies and Services,308011,Furniture,09-Jan-2020,000006936040746,EDS BEDS,5712,Furniture repair and replacement,350.00,0.00,350.00
Children and Young Peoples Services,Head of Childrens Social Care,085333,Coxhoe Satelite Home,Supplies and Services,324117,Provisions E324,09-Jan-2020,000006936040788,ASDA SUPERSTORE 4987,5411,Catering costs - provisions,59.10,0.00,59.10
Children and Young Peoples Services,Head of Childrens Social Care,085352,Tow Law CU,Premises,145009,Cleaning and Domestic Supplies,09-Jan-2020,000006936040800,STE CLEAN,2842,Other cleaning and domestic costs,40.00,0.00,40.00
Regeneration and Local Services,Corporate Property and Land,030691,Catering - Durham Dales Centre,Premises,145009,Cleaning and Domestic Supplies,09-Jan-2020,000006936040806,ALLIANCE DISPOSABLES L,2842,Other cleaning and domestic costs,2.52,0.42,2.10
Regeneration and Local Services,Corporate Property and Land,030691,Catering - Durham Dales Centre,Premises,145009,Cleaning and Domestic Supplies,09-Jan-2020,000006936040806 - 1,ALLIANCE DISPOSABLES L,2842,Other cleaning and domestic costs,25.42,,25.42
Adult and Health Services,Head of Adults,055302,Durham Pathways,Supplies and Services,324117,Provisions E324,09-Jan-2020,000006936040822,ASDA SUPERSTORE,5411,Catering costs - provisions,11.48,0.00,11.48
Children and Young Peoples Services,Head of Education and Skills,070264,EDC Premises,Supplies and Services,324117,Provisions E324,09-Jan-2020,000006936040834,ASDA STORES,5411,Catering costs - provisions,10.50,1.75,8.75
Children and Young Peoples Services,Head of Education and Skills,070264,EDC Premises,Supplies and Services,324117,Provisions E324,09-Jan-2020,000006936040834 - 1,ASDA STORES,5411,Catering costs - provisions,11.20,,11.20
Regeneration and Local Services,Environmental Services,010301,C&G - North Grounds Maintenance,Supplies and Services,304403,Equipment and Materials,09-Jan-2020,000006936040844,BESCOL,5231,Other consumables,59.09,9.85,49.24
Children and Young Peoples Services,Head of Early Help Inclusion & Vulnerable Children.,088100,Durham West & CLS 0-19 Targeted Family Support,Supplies and Services,328041,Clothing uniforms and laundry E328,09-Jan-2020,000006936040850,ASDA GEORGE COM LEEDS,5411,Clothing uniforms and laundry,80.00,0.00,80.00
Children and Young Peoples Services,Head of Childrens Social Care,085633,Families First Chester-Le-Street,Supplies and Services,308011,Furniture,09-Jan-2020,000006936040854,AMZ Bighouse Furniture,5999,Furniture repair and replacement,-149.99,0.00,-149.99
Regeneration and Local Services,Development and Housing,030771,Durham Advance Flexible Fund,Transport,235057,Public Transport,09-Jan-2020,000006936040886,GO NORTH EAST LIMITED,4131,Staff travelling,25.00,0.00,25.00
Dedicated Schools Grant BG0015,DSG High Needs Block,079040,SENSS-HQ,Supplies and Services,304403,Equipment and Materials,09-Jan-2020,000006936040890,AMZNMktplace,5999,Other consumables,13.97,2.33,11.64
Transformation and Partnerships,Business Support,069010,Administration 069010,Supplies and Services,342033,Computers and Communications,09-Jan-2020,000006936040988,STK Shutterstock,7333,Computer hardware,59.00,0.00,59.00
Transformation and Partnerships,Business Support,069010,Administration 069010,Supplies and Services,342033,Computers and Communications,09-Jan-2020,000006936040994,STK Shutterstock,7333,Computer hardware,279.00,0.00,279.00
Regeneration and Local Services,Development and Housing,030771,Durham Advance Flexible Fund,Supplies and Services,304403,Equipment and Materials,09-Jan-2020,000006936041010,AMZNMktplace,5999,Other consumables,26.98,0.00,26.98
Regeneration and Local Services,Development and Housing,030553,Europe Direct Scheme 030553,Transport,235057,Public Transport,09-Jan-2020,000006936041050,RINGGO,7523,Staff travelling,22.25,0.00,22.25
Regeneration and Local Services,Development and Housing,030553,Europe Direct Scheme 030553,Supplies and Services,348037,Subsistence E348,09-Jan-2020,000006936041054,QUEENS ARMS,5813,Subsistence,32.00,0.00,32.00
Children and Young Peoples Services,Head of Education and Skills,071801,Selby Cottage Childcare Centre,Supplies and Services,328041,Clothing uniforms and laundry E328,09-Jan-2020,000006942159844,The Range,5311,Clothing uniforms and laundry,127.27,0.00,127.27
Resources BK0010,Finance & Transactional Services,065180,Collections,Charges,720130,Fees and Charges,09-Jan-2020,000006942159898,WWW.MONEYCLAIM.GOV,9399,Fees-legal,70.00,0.00,70.00
Transformation and Partnerships,Partnerships & Community Engagement Div.,052707,Partnership Team,Supplies and Services,304403,Equipment and Materials,09-Jan-2020,000006942159928,AMZNMKTPLACE AMAZON.CO,5999,Other consumables,11.99,2.00,9.99
Regeneration and Local Services,Corporate Property and Land,021242,Catering - County Hall,Supplies and Services,324117,Provisions E324,09-Jan-2020,000006942160290,BATLEYS PERTH,5300,Catering costs - provisions,176.10,29.35,146.75
Regeneration and Local Services,Corporate Property and Land,021242,Catering - County Hall,Supplies and Services,324117,Provisions E324,09-Jan-2020,000006942160290 - 1,BATLEYS PERTH,5300,Catering costs - provisions,289.09,,289.09
Children and Young Peoples Services,Head of Early Help Inclusion & Vulnerable Children.,088109,Spennymoor & Shildon 0-19 Community Family Hub,Supplies and Services,304245,Equipment and Materials,09-Jan-2020,000006942160548,ARGOS LTD,5310,Materials,169.99,0.00,169.99
Children and Young Peoples Services,Head of Education and Skills,071732,Dean Bank Childcare,Supplies and Services,304403,Equipment and Materials,09-Jan-2020,000006942160620,AMZNMKTPLACE AMAZON.CO,5999,Other consumables,14.99,2.50,12.49
Children and Young Peoples Services,Head of Early Help Inclusion & Vulnerable Children.,085957,Secure Management,Supplies and Services,328041,Clothing uniforms and laundry E328,09-Jan-2020,000006942160848,ARGOS LTD,5310,Clothing uniforms and laundry,399.98,0.00,399.98
Regeneration and Local Services,Environmental Services,011060,C&G - Hardwick Park Catering,Supplies and Services,324117,Provisions E324,09-Jan-2020,000006942160912,BATLEYS PERTH,5300,Catering costs - provisions,432.84,72.14,360.70
Regeneration and Local Services,Environmental Services,011060,C&G - Hardwick Park Catering,Supplies and Services,324117,Provisions E324,09-Jan-2020,000006942160912 - 1,BATLEYS PERTH,5300,Catering costs - provisions,162.15,,162.15
Children and Young Peoples Services,Head of Early Help Inclusion & Vulnerable Children.,088101,CLS 0-19 Community Family Hub,Supplies and Services,328041,Clothing uniforms and laundry E328,09-Jan-2020,000006942160974,THE WORKS,5310,Clothing uniforms and laundry,28.50,0.00,28.50
Children and Young Peoples Services,Head of Childrens Social Care,085352,Tow Law CU,Supplies and Services,348037,Subsistence E348,09-Jan-2020,000006942161068,PIZZA EXPRESS,5812,Subsistence,8.25,0.00,8.25
Children and Young Peoples Services,Head of Childrens Social Care,085352,Tow Law CU,Supplies and Services,348037,Subsistence E348,09-Jan-2020,000006942161072,TGI FRIDAYS UK,5812,Subsistence,54.34,0.00,54.34
Children and Young Peoples Services,Head of Childrens Social Care,085352,Tow Law CU,Supplies and Services,328041,Clothing uniforms and laundry E328,09-Jan-2020,000006942161076,PRIMARK 670 GATESHEAD,5651,Clothing uniforms and laundry,21.80,0.00,21.80
Regeneration and Local Services,Corporate Property and Land,020043,Bldg Serv - Compliance,Supplies and Services,352001,Conference Expenses,09-Jan-2020,000006942161200,THE CELTIC MANOR,7011,Conferencesseminars fees etc,405.00,67.50,337.50
Regeneration and Local Services,Development and Housing,030771,Durham Advance Flexible Fund,Supplies and Services,304221,Equipment and Materials,09-Jan-2020,000006942161436,SCREWFIX CHESTER L,5211,Direct materials,39.60,6.60,33.00
Regeneration and Local Services,Development and Housing,030771,Durham Advance Flexible Fund,Supplies and Services,304221,Equipment and Materials,09-Jan-2020,000006942161436 - 1,SCREWFIX CHESTER L,5211,Direct materials,53.10,,53.10
Transformation and Partnerships,Business Support,052986,CYPS - Locality and Operational Support,Supplies and Services,304259,Equipment and Materials,09-Jan-2020,000006942161504,DVLA DRIVER ONLINE,9399,Equipment-purchase and rental,34.00,0.00,34.00
Regeneration and Local Services,Environmental Services,010301,C&G - North Grounds Maintenance,Supplies and Services,304221,Equipment and Materials,09-Jan-2020,000006942161566,B & Q 1343,5200,Direct materials,13.17,0.00,13.17
Regeneration and Local Services,Environmental Services,010301,C&G - North Grounds Maintenance,Supplies and Services,328041,Clothing uniforms and laundry E328,09-Jan-2020,000006942161570,ARGOS LTD,5310,Clothing uniforms and laundry,89.98,15.00,74.98
Children and Young Peoples Services,Head of Education and Skills,070169,Durham SSP,Supplies and Services,384199,Miscellaneous Expenses,09-Jan-2020,000006942161622,WM MORRISONS STORE,5411,Other hired and contracted services,180.00,0.00,180.00
Regeneration and Local Services,Corporate Property and Land,021235,Catering - Wharton Park,Supplies and Services,324117,Provisions E324,09-Jan-2020,000006942161814,BATLEYS PERTH,5300,Catering costs - provisions,182.28,30.38,151.90
Regeneration and Local Services,Corporate Property and Land,021235,Catering - Wharton Park,Supplies and Services,324117,Provisions E324,09-Jan-2020,000006942161814 - 1,BATLEYS PERTH,5300,Catering costs - provisions,40.51,,40.51
Children and Young Peoples Services,Head of Childrens Social Care,085632,Families First Seaham,Supplies and Services,304259,Equipment and Materials,09-Jan-2020,000006942161834,WWW.DURHAM.GOV.UK,9399,Equipment-purchase and rental,11.00,0.00,11.00
Children and Young Peoples Services,Head of Childrens Social Care,085632,Families First Seaham,Supplies and Services,304259,Equipment and Materials,09-Jan-2020,000006942161840,HARTLEPOOL BC,9399,Equipment-purchase and rental,11.00,0.00,11.00
Regeneration and Local Services,Business Durham CL0850,030689,Inward Investment and Aftercare,Supplies and Services,304999,Equipment and Materials,10-Jan-2020,000006936039810,MAILCHIMP MONTHLY,5968,Misc equipment tools and materials,1.92,0.00,1.92
Transformation and Partnerships,Partnerships & Community Engagement Div.,052707,Partnership Team,Supplies and Services,304403,Equipment and Materials,10-Jan-2020,000006936039872,AMZNMktplace,5999,Other consumables,20.80,0.00,20.80
Children and Young Peoples Services,Head of Childrens Social Care,085341,High Etherley Satelite Home,Supplies and Services,348037,Subsistence E348,10-Jan-2020,000006942159784,SUBWAY,5814,Subsistence,5.76,0.96,4.80
Children and Young Peoples Services,Head of Childrens Social Care,085341,High Etherley Satelite Home,Supplies and Services,348037,Subsistence E348,10-Jan-2020,000006942159784 - 1,SUBWAY,5814,Subsistence,0.03,,0.03
Regeneration and Local Services,Transport and Contracted Services,032250,Traffic Signals and UTMC 032250,Supplies and Services,304335,Equipment and Materials,10-Jan-2020,000006942159920,AMZNMktplace,5999,ICT supplies etc,16.10,2.68,13.42
Children and Young Peoples Services,Head of Education and Skills,075021,Youth Employment Initiative,Supplies and Services,384199,Miscellaneous Expenses,10-Jan-2020,000006942159974,WWW.DURHAM.GOV.UK,9399,Other hired and contracted services,11.00,0.00,11.00
Adult and Health Services,Head of Adults,055302,Durham Pathways,Supplies and Services,324117,Provisions E324,10-Jan-2020,000006942160024,LIDL GB DURHAM,5411,Catering costs - provisions,6.54,0.00,6.54
Children and Young Peoples Services,Head of Childrens Social Care,085332,Middlestone Moor CU,Supplies and Services,324117,Provisions E324,10-Jan-2020,000006942160076,ASDA SUPERSTORE 4987,5411,Catering costs - provisions,27.96,0.00,27.96
Children and Young Peoples Services,Head of Childrens Social Care,085352,Tow Law CU,Supplies and Services,324117,Provisions E324,10-Jan-2020,000006942160222,TESCO STORES 2371,5411,Catering costs - provisions,13.91,0.00,13.91
Children and Young Peoples Services,Head of Childrens Social Care,085352,Tow Law CU,Supplies and Services,324117,Provisions E324,10-Jan-2020,000006942160226,STARBUCKS BISHOP AUCKL,5499,Catering costs - provisions,12.05,0.00,12.05
Regeneration and Local Services,Corporate Property and Land,021242,Catering - County Hall,Supplies and Services,324117,Provisions E324,10-Jan-2020,000006942160304,FREEMAN CATERING BUTCH,5422,Catering costs - provisions,175.78,0.00,175.78
Regeneration and Local Services,Development and Housing,030772,CLLD South,Transport,235057,Public Transport,10-Jan-2020,000006942160384,ARRIVA NORTH EAST,4131,Staff travelling,19.10,0.00,19.10
Children and Young Peoples Services,Head of Childrens Social Care,085333,Coxhoe Satelite Home,Supplies and Services,324117,Provisions E324,10-Jan-2020,000006942160426,TESCO STORES 2916,5411,Catering costs - provisions,3.00,0.00,3.00
Children and Young Peoples Services,Head of Childrens Social Care,085334,West Rainton Satelite Home,Supplies and Services,324117,Provisions E324,10-Jan-2020,000006942160474,SAINSBURYS 0776,5411,Catering costs - provisions,19.80,0.00,19.80
Children and Young Peoples Services,Head of Childrens Social Care,085334,West Rainton Satelite Home,Supplies and Services,324117,Provisions E324,10-Jan-2020,000006942160480,LIDL GB DURHAM,5411,Catering costs - provisions,83.19,0.00,83.19
Regeneration and Local Services,Environmental Services,010561,Fleet - Morrison Busty Fleet,Transport,215013,Running Costs of Vehicles,10-Jan-2020,000006942160490,DVLA VEHICLE TAX,9311,Vehicle Excise Duty (VED),262.50,0.00,262.50
Children and Young Peoples Services,Head of Early Help Inclusion & Vulnerable Children.,088109,Spennymoor & Shildon 0-19 Community Family Hub,Supplies and Services,304245,Equipment and Materials,10-Jan-2020,000006942160550,TESCO STORES 2916,5411,Materials,59.40,0.00,59.40
Children and Young Peoples Services,Head of Early Help Inclusion & Vulnerable Children.,088109,Spennymoor & Shildon 0-19 Community Family Hub,Supplies and Services,304245,Equipment and Materials,10-Jan-2020,000006942160552,ASDA GEORGE COM LEEDS,5411,Materials,95.50,0.00,95.50
Children and Young Peoples Services,Head of Early Help Inclusion & Vulnerable Children.,088109,Spennymoor & Shildon 0-19 Community Family Hub,Supplies and Services,304245,Equipment and Materials,10-Jan-2020,000006942160554,ARGOS LTD,5310,Materials,192.97,0.00,192.97
Children and Young Peoples Services,Head of Education and Skills,071732,Dean Bank Childcare,Supplies and Services,304403,Equipment and Materials,10-Jan-2020,000006942160622,AMZNMKTPLACE AMAZON.CO,5999,Other consumables,6.99,1.17,5.82
Adult and Health Services,Commissioning inc Supporting People,052100,Supporting the Provider Market,Supplies and Services,352001,Conference Expenses,10-Jan-2020,000006942160732,RADISSON BLU,3583,Conferencesseminars fees etc,80.00,0.00,80.00
Regeneration and Local Services,Development and Housing,030771,Durham Advance Flexible Fund,Transport,235057,Public Transport,10-Jan-2020,000006942160800,WALKERGATE CAR PAR,7523,Staff travelling,1.80,0.00,1.80
Regeneration and Local Services,Business Durham CL0850,030674,Business Services General,Third Party Payments,430100,Rendered by Private Contractors,10-Jan-2020,000006942160824,BLS monday.com,7399,Payments to sub-contractors,148.80,0.00,148.80
Regeneration and Local Services,Development and Housing,030771,Durham Advance Flexible Fund,Transport,235057,Public Transport,10-Jan-2020,000006942160832,GO NORTH EAST LIMITED,4131,Staff travelling,5.30,0.00,5.30
Regeneration and Local Services,Development and Housing,030771,Durham Advance Flexible Fund,Transport,235057,Public Transport,10-Jan-2020,000006942160836,GO NORTH EAST LIMITED,4131,Staff travelling,25.00,0.00,25.00
Children and Young Peoples Services,Head of Early Help Inclusion & Vulnerable Children.,085957,Secure Management,Supplies and Services,324117,Provisions E324,10-Jan-2020,000006942160852,TESCO STORES 6329,5411,Catering costs - provisions,98.12,0.00,98.12
Regeneration and Local Services,Development and Housing,030771,Durham Advance Flexible Fund,Supplies and Services,304259,Equipment and Materials,10-Jan-2020,000006942161038,Durham County CNCL,9399,Equipment-purchase and rental,22.50,0.00,22.50
Children and Young Peoples Services,Head of Childrens Social Care,085551,Short Break Services-Park Hse Sher,Supplies and Services,304259,Equipment and Materials,10-Jan-2020,000006942161048,DISCLOSURE & BARRING,9399,Equipment-purchase and rental,13.00,0.00,13.00
Children and Young Peoples Services,Head of Childrens Social Care,085551,Short Break Services-Park Hse Sher,Supplies and Services,324117,Provisions E324,10-Jan-2020,000006942161058,JR HOLLAND FOODSERVICE,5499,Catering costs - provisions,144.83,0.00,144.83
Regeneration and Local Services,Development and Housing,030554,International Relations 030554,Supplies and Services,304259,Equipment and Materials,10-Jan-2020,000006942161106,COUNTY HALL CANTEEN,9399,Equipment-purchase and rental,4.00,0.00,4.00
Children and Young Peoples Services,Head of Early Help Inclusion & Vulnerable Children.,071441,Bishop Auckland One Point Hub,Supplies and Services,304259,Equipment and Materials,10-Jan-2020,000006942161114,SAINSBURYS SACAT 2199,5411,Equipment-purchase and rental,6.00,0.00,6.00
Children and Young Peoples Services,Head of Early Help Inclusion & Vulnerable Children.,071443,Stanley One Point Hub,Supplies and Services,304403,Equipment and Materials,10-Jan-2020,000006942161120,AMZNMktplace,5999,Other consumables,3.30,0.55,2.75
Children and Young Peoples Services,Head of Education and Skills,071802,Louisa Cent Nursery,Supplies and Services,324117,Provisions E324,10-Jan-2020,000006942161182,ASDA SUPERSTORE,5411,Catering costs - provisions,27.00,0.00,27.00
Children and Young Peoples Services,Head of Education and Skills,071802,Louisa Cent Nursery,Supplies and Services,324117,Provisions E324,10-Jan-2020,000006942161188,ASDA SUPERSTORE,5411,Catering costs - provisions,16.16,0.00,16.16
Children and Young Peoples Services,Head of Childrens Social Care,085333,Coxhoe Satelite Home,Supplies and Services,340001,Postages E340,10-Jan-2020,000006942161210,THE POST OFFICE,9402,Postages,16.80,0.00,16.80
Adult and Health Services,Head of Adults,055301,Stanley Pathways,Supplies and Services,324117,Provisions E324,10-Jan-2020,000006942161240,ASDA SUPERSTORE,5411,Catering costs - provisions,48.52,0.00,48.52
Children and Young Peoples Services,Head of Childrens Social Care,085342,9 Cedar Drive Aycliffe,Supplies and Services,324117,Provisions E324,10-Jan-2020,000006942161244,TESCO STORES 2916,5411,Catering costs - provisions,15.13,0.00,15.13
Children and Young Peoples Services,Head of Childrens Social Care,085342,9 Cedar Drive Aycliffe,Supplies and Services,324117,Provisions E324,10-Jan-2020,000006942161246,WILKO RETAIL LIMITED,5399,Catering costs - provisions,10.40,0.00,10.40
Children and Young Peoples Services,Head of Childrens Social Care,085342,9 Cedar Drive Aycliffe,Supplies and Services,328041,Clothing uniforms and laundry E328,10-Jan-2020,000006942161248,W BOYES & CO LTD NEWTO,5310,Clothing uniforms and laundry,4.99,0.00,4.99
Children and Young Peoples Services,Head of Childrens Social Care,085342,9 Cedar Drive Aycliffe,Supplies and Services,324117,Provisions E324,10-Jan-2020,000006942161252,MARTIN MCCOLL,5499,Catering costs - provisions,6.00,0.00,6.00
Children and Young Peoples Services,Head of Childrens Social Care,085334,West Rainton Satelite Home,Supplies and Services,324117,Provisions E324,10-Jan-2020,000006942161336,SAINSBURYS 0776,5411,Catering costs - provisions,30.50,0.00,30.50
Children and Young Peoples Services,Head of Early Help Inclusion & Vulnerable Children.,088101,CLS 0-19 Community Family Hub,Supplies and Services,304259,Equipment and Materials,10-Jan-2020,000006942161354,WILKO RETAIL LIMITED,5399,Equipment-purchase and rental,5.90,0.98,4.92
Resources BK0010,Digital and Customer Services,065335,School Services - Implementations,Supplies and Services,304639,Equipment and Materials,10-Jan-2020,000006942161362,AMZNMktplace,5999,Technicians-supplies,4.99,0.83,4.16
Resources BK0010,Digital and Customer Services,065236,Operations - Desktop Services,Supplies and Services,342033,Computers and Communications,10-Jan-2020,000006942161364,AMZNMktplace,5999,Computer hardware,26.99,0.00,26.99
Transformation and Partnerships,Business Support,052986,CYPS - Locality and Operational Support,Supplies and Services,304259,Equipment and Materials,10-Jan-2020,000006942161508,Durham County CNCL,9399,Equipment-purchase and rental,11.00,0.00,11.00
Transformation and Partnerships,Business Support,052986,CYPS - Locality and Operational Support,Supplies and Services,304259,Equipment and Materials,10-Jan-2020,000006942161512,DVLA DRIVER ONLINE,9399,Equipment-purchase and rental,34.00,0.00,34.00
Regeneration and Local Services,Business Durham CL0850,030690,Durham Dales Centre - Tourist Information Centre,Supplies and Services,304403,Equipment and Materials,10-Jan-2020,000006942161518,WWW.GAINSBOROUGHGIFTWA,5947,Other consumables,286.55,47.76,238.79
Children and Young Peoples Services,Head of Childrens Social Care,085342,9 Cedar Drive Aycliffe,Supplies and Services,324117,Provisions E324,10-Jan-2020,000006942161602,TESCO STORES 2916,5411,Catering costs - provisions,96.64,0.00,96.64
Children and Young Peoples Services,Head of Childrens Social Care,085332,Middlestone Moor CU,Supplies and Services,324117,Provisions E324,10-Jan-2020,000006942161648,JR HOLLAND FOODSERVICE,5499,Catering costs - provisions,18.40,0.00,18.40
Children and Young Peoples Services,Head of Early Help Inclusion & Vulnerable Children.,088107,Ferryhill & Newton Aycliffe 0-19 Community Family Hub,Supplies and Services,304403,Equipment and Materials,10-Jan-2020,000006942161652,AMZNMktplace,5999,Other consumables,13.80,2.32,11.48
Children and Young Peoples Services,Head of Early Help Inclusion & Vulnerable Children.,088107,Ferryhill & Newton Aycliffe 0-19 Community Family Hub,Supplies and Services,304403,Equipment and Materials,10-Jan-2020,000006942161656,AMZNMktplace,5999,Other consumables,33.50,5.58,27.92
Children and Young Peoples Services,Head of Early Help Inclusion & Vulnerable Children.,088107,Ferryhill & Newton Aycliffe 0-19 Community Family Hub,Supplies and Services,304403,Equipment and Materials,10-Jan-2020,000006942161660,AMZNMktplace,5999,Other consumables,54.75,9.15,45.60
Adult and Health Services,Head of Adults,055310,Positive Journeys (Tudhoe),Supplies and Services,324117,Provisions E324,10-Jan-2020,000006942161792,ASDA SUPERSTORE 4987,5411,Catering costs - provisions,3.08,0.00,3.08
Regeneration and Local Services,Development and Housing,030553,Europe Direct Scheme 030553,Supplies and Services,352001,Conference Expenses,10-Jan-2020,000006942161934,DOUBLETREE,3692,Conferencesseminars fees etc,155.00,0.00,155.00
Children and Young Peoples Services,Head of Education and Skills,070264,EDC Premises,Supplies and Services,324117,Provisions E324,10-Jan-2020,000006949874338,BATLEYS PERTH,5300,Catering costs - provisions,80.10,0.00,80.10
Regeneration and Local Services,Corporate Property and Land,021242,Catering - County Hall,Supplies and Services,324117,Provisions E324,10-Jan-2020,000006949874542,BATLEYS PERTH,5300,Catering costs - provisions,-41.60,0.00,-41.60
Regeneration and Local Services,Environmental Services,011060,C&G - Hardwick Park Catering,Supplies and Services,324117,Provisions E324,10-Jan-2020,000006949874926,BATLEYS PERTH,5300,Catering costs - provisions,94.50,15.75,78.75
Regeneration and Local Services,Environmental Services,011060,C&G - Hardwick Park Catering,Supplies and Services,324117,Provisions E324,10-Jan-2020,000006949874926 - 1,BATLEYS PERTH,5300,Catering costs - provisions,86.23,,86.23
Regeneration and Local Services,Corporate Property and Land,010525,Catering - Green Lane,Supplies and Services,324117,Provisions E324,10-Jan-2020,000006949875010,BATLEYS PERTH,5300,Catering costs - provisions,112.20,18.70,93.50
Regeneration and Local Services,Corporate Property and Land,010525,Catering - Green Lane,Supplies and Services,324117,Provisions E324,10-Jan-2020,000006949875010 - 1,BATLEYS PERTH,5300,Catering costs - provisions,71.12,,71.12
Regeneration and Local Services,Corporate Property and Land,010525,Catering - Green Lane,Supplies and Services,324117,Provisions E324,10-Jan-2020,000006949875022,BATLEYS PERTH,5300,Catering costs - provisions,-6.58,0.00,-6.58
Regeneration and Local Services,Environmental Services,019100,Fleet - Strategic Fleet,Supplies and Services,304259,Equipment and Materials,10-Jan-2020,000006949875028,DVSA,9399,Equipment-purchase and rental,410.00,0.00,410.00
Adult and Health Services,Head of Adults,055643,Hawthorn House LD Respite Unit,Supplies and Services,324117,Provisions E324,10-Jan-2020,000006949875320,BATLEYS PERTH,5300,Catering costs - provisions,16.20,2.70,13.50
Adult and Health Services,Head of Adults,055643,Hawthorn House LD Respite Unit,Supplies and Services,324117,Provisions E324,10-Jan-2020,000006949875320 - 1,BATLEYS PERTH,5300,Catering costs - provisions,136.25,,136.25
Adult and Health Services,Head of Adults,055643,Hawthorn House LD Respite Unit,Supplies and Services,324117,Provisions E324,10-Jan-2020,000006949875330,BATLEYS PERTH,5300,Catering costs - provisions,44.73,0.00,44.73
Children and Young Peoples Services,Head of Childrens Social Care,085561,Social Work Academy,Supplies and Services,304403,Equipment and Materials,11-Jan-2020,000006942159934,AMZNMKTPLACE AMAZON.CO,5999,Other consumables,22.99,3.83,19.16
Children and Young Peoples Services,Head of Childrens Social Care,085342,9 Cedar Drive Aycliffe,Supplies and Services,324117,Provisions E324,11-Jan-2020,000006942160042,TESCO STORES 2916,5411,Catering costs - provisions,2.00,0.00,2.00
Children and Young Peoples Services,Head of Childrens Social Care,085342,9 Cedar Drive Aycliffe,Supplies and Services,348037,Subsistence E348,11-Jan-2020,000006942160046,COSTA COFFEE 43035195,5814,Subsistence,15.10,0.00,15.10
Children and Young Peoples Services,Head of Childrens Social Care,085342,9 Cedar Drive Aycliffe,Supplies and Services,328041,Clothing uniforms and laundry E328,11-Jan-2020,000006942160052,POUNDLAND LTD 1554,5310,Clothing uniforms and laundry,4.00,0.00,4.00
Children and Young Peoples Services,Head of Childrens Social Care,085342,9 Cedar Drive Aycliffe,Supplies and Services,328041,Clothing uniforms and laundry E328,11-Jan-2020,000006942160058,NEXT RETAIL LTD,5651,Clothing uniforms and laundry,43.05,0.00,43.05
Children and Young Peoples Services,Head of Childrens Social Care,085342,9 Cedar Drive Aycliffe,Supplies and Services,304999,Equipment and Materials,11-Jan-2020,000006942160064,SUPERDRUG STORES PLC,5912,Misc equipment tools and materials,5.99,0.00,5.99
Children and Young Peoples Services,Head of Childrens Social Care,085334,West Rainton Satelite Home,Supplies and Services,384999,Miscellaneous Expenses,11-Jan-2020,000006942160676,4MOTION DARLINGTON,7997,Other expenses,11.50,0.00,11.50
Children and Young Peoples Services,Head of Early Help Inclusion & Vulnerable Children.,085957,Secure Management,Supplies and Services,324117,Provisions E324,11-Jan-2020,000006942160856,TESCO STORES 6329,5411,Catering costs - provisions,109.23,0.00,109.23
Children and Young Peoples Services,Head of Childrens Social Care,085551,Short Break Services-Park Hse Sher,Supplies and Services,332047,Printing Stationery and Gen Off Exps,11-Jan-2020,000006942161064,Vue Cinemas,7832,Stationery,28.95,4.83,24.12
Children and Young Peoples Services,Head of Childrens Social Care,085332,Middlestone Moor CU,Supplies and Services,328041,Clothing uniforms and laundry E328,11-Jan-2020,000006942161546,SELECT - BISHOP AUCKLA,5691,Clothing uniforms and laundry,25.78,0.00,25.78
Children and Young Peoples Services,Head of Childrens Social Care,085332,Middlestone Moor CU,Supplies and Services,324117,Provisions E324,11-Jan-2020,000006942161550,BROOM HILLFARM,5499,Catering costs - provisions,14.00,0.00,14.00
Children and Young Peoples Services,Head of Childrens Social Care,085332,Middlestone Moor CU,Supplies and Services,324117,Provisions E324,11-Jan-2020,000006942161552,ASDA STORES,5411,Catering costs - provisions,17.38,0.00,17.38
Children and Young Peoples Services,Head of Childrens Social Care,085332,Middlestone Moor CU,Supplies and Services,324117,Provisions E324,11-Jan-2020,000006942161558,ASDA SUPERSTORE 4987,5411,Catering costs - provisions,10.61,0.00,10.61
Children and Young Peoples Services,Head of Childrens Social Care,085333,Coxhoe Satelite Home,Supplies and Services,304999,Equipment and Materials,11-Jan-2020,000006942161742,WWW.INFINITEAIR.CO.UK,7991,Misc equipment tools and materials,23.90,0.00,23.90
Children and Young Peoples Services,Head of Childrens Social Care,085341,High Etherley Satelite Home,Supplies and Services,324117,Provisions E324,12-Jan-2020,000006942159794,ASDA STORES,5411,Catering costs - provisions,24.00,0.00,24.00
Children and Young Peoples Services,Head of Childrens Social Care,085341,High Etherley Satelite Home,Supplies and Services,324117,Provisions E324,12-Jan-2020,000006942159798,TESCO STORES 6329,5411,Catering costs - provisions,141.05,0.00,141.05
Children and Young Peoples Services,Head of Childrens Social Care,085341,High Etherley Satelite Home,Supplies and Services,304259,Equipment and Materials,12-Jan-2020,000006942159800,JD SPORTS PLC,5941,Equipment-purchase and rental,20.00,0.00,20.00
Children and Young Peoples Services,Head of Education and Skills,054640,Durham Learning Resources 054640,Supplies and Services,312011,Newspapers books and periodicals E312,12-Jan-2020,000006942159888,Amazon.co.uk RZ1U054C5,5969,Books-school library,36.08,0.00,36.08
Children and Young Peoples Services,Head of Childrens Social Care,085561,Social Work Academy,Supplies and Services,304403,Equipment and Materials,12-Jan-2020,000006942159940,AMZNMktplace,5999,Other consumables,11.99,2.00,9.99
Children and Young Peoples Services,Head of Childrens Social Care,085352,Tow Law CU,Supplies and Services,304999,Equipment and Materials,12-Jan-2020,000006942160258,HOME BARGAINS,5251,Misc equipment tools and materials,14.27,0.00,14.27
Children and Young Peoples Services,Head of Childrens Social Care,085352,Tow Law CU,Supplies and Services,324117,Provisions E324,12-Jan-2020,000006942160264,TESCO STORES 6329,5411,Catering costs - provisions,4.75,0.00,4.75
Children and Young Peoples Services,Head of Childrens Social Care,085333,Coxhoe Satelite Home,Supplies and Services,328041,Clothing uniforms and laundry E328,12-Jan-2020,000006942160432,The Range,5311,Clothing uniforms and laundry,3.15,0.00,3.15
Children and Young Peoples Services,Head of Childrens Social Care,085333,Coxhoe Satelite Home,Supplies and Services,324117,Provisions E324,12-Jan-2020,000006942160434,CO-OP GROUP 310016,5411,Catering costs - provisions,6.70,0.00,6.70
Children and Young Peoples Services,Head of Early Help Inclusion & Vulnerable Children.,085957,Secure Management,Supplies and Services,324117,Provisions E324,12-Jan-2020,000006942160862,TESCO STORES 6329,5411,Catering costs - provisions,108.02,0.00,108.02
Regeneration and Local Services,Corporate Property and Land,020061,Bldg Serv - R&M Div 61 - Building,Supplies and Services,304221,Equipment and Materials,12-Jan-2020,000006942161204,Amazon.co.uk WD6CX64X5,5969,Direct materials,87.98,14.66,73.32
Children and Young Peoples Services,Head of Childrens Social Care,085342,9 Cedar Drive Aycliffe,Supplies and Services,332047,Printing Stationery and Gen Off Exps,12-Jan-2020,000006942161256,Vue Cinemas,7832,Stationery,33.96,0.00,33.96
Dedicated Schools Grant BG0015,DSG High Needs Block,079040,SENSS-HQ,Supplies and Services,304403,Equipment and Materials,12-Jan-2020,000006942161496,AMZNMktplace,5999,Other consumables,13.78,2.30,11.48
Children and Young Peoples Services,Head of Early Help Inclusion & Vulnerable Children.,088107,Ferryhill & Newton Aycliffe 0-19 Community Family Hub,Supplies and Services,304403,Equipment and Materials,12-Jan-2020,000006942161662,AMZNMktplace,5999,Other consumables,73.68,12.28,61.40
Children and Young Peoples Services,Head of Early Help Inclusion & Vulnerable Children.,088107,Ferryhill & Newton Aycliffe 0-19 Community Family Hub,Supplies and Services,304403,Equipment and Materials,12-Jan-2020,000006942161662 - 1,AMZNMktplace,5999,Other consumables,0.26,,0.26
Children and Young Peoples Services,Head of Childrens Social Care,085634,Families First Easington,Supplies and Services,384999,Miscellaneous Expenses,12-Jan-2020,000006942161980,Amazon.co.uk 6U31F6EA5,5969,Other expenses,48.93,0.00,48.93
Regeneration and Local Services,Culture Sport and Tourism,011263,Louisa Centre 011263,Supplies and Services,304403,Equipment and Materials,12-Jan-2020,000006949875660,AMZNMKTPLACE AMAZON.CO,5999,Other consumables,53.85,0.00,53.85
Children and Young Peoples Services,Head of Early Help Inclusion & Vulnerable Children.,088107,Ferryhill & Newton Aycliffe 0-19 Community Family Hub,Supplies and Services,304403,Equipment and Materials,13-Jan-2020,000006942161672,AMZNMktplace,5999,Other consumables,67.44,0.00,67.44
Regeneration and Local Services,Business Durham CL0850,030689,Inward Investment and Aftercare,Supplies and Services,304999,Equipment and Materials,13-Jan-2020,000006949874288,MOZ INC,5817,Misc equipment tools and materials,138.10,0.00,138.10
Children and Young Peoples Services,Head of Education and Skills,070264,EDC Premises,Supplies and Services,324117,Provisions E324,13-Jan-2020,000006949874344,FREEMAN CATERING BUTCH,5422,Catering costs - provisions,72.54,0.00,72.54
Adult and Health Services,Head of Adults,055302,Durham Pathways,Supplies and Services,324117,Provisions E324,13-Jan-2020,000006949874390,LIDL GB DURHAM,5411,Catering costs - provisions,8.72,0.00,8.72
Regeneration and Local Services,Culture Sport and Tourism,030708,VCD - Marketing & Information,Supplies and Services,384199,Miscellaneous Expenses,13-Jan-2020,000006949874400,GOOGLE ADS1872075479,5968,Other hired and contracted services,"1,000.00",0.00,1000.00
Children and Young Peoples Services,Head of Childrens Social Care,085342,9 Cedar Drive Aycliffe,Supplies and Services,324117,Provisions E324,13-Jan-2020,000006949874426,TESCO STORES 2916,5411,Catering costs - provisions,2.40,0.00,2.40
Children and Young Peoples Services,Head of Childrens Social Care,085332,Middlestone Moor CU,Supplies and Services,324117,Provisions E324,13-Jan-2020,000006949874430,ASDA SUPERSTORE 4987,5411,Catering costs - provisions,70.98,0.00,70.98
Regeneration and Local Services,Development and Housing,030776,LINKCD Flexible Fund,Transport,235057,Public Transport,13-Jan-2020,000006949874484,Go North East,4111,Staff travelling,23.00,0.00,23.00
Regeneration and Local Services,Corporate Property and Land,021242,Catering - County Hall,Supplies and Services,324117,Provisions E324,13-Jan-2020,000006949874526,FREEMAN CATERING BUTCH,5422,Catering costs - provisions,27.12,0.00,27.12
Regeneration and Local Services,Corporate Property and Land,021242,Catering - County Hall,Supplies and Services,324117,Provisions E324,13-Jan-2020,000006949874532,FREEMAN CATERING BUTCH,5422,Catering costs - provisions,246.96,0.00,246.96
Regeneration and Local Services,Development and Housing,030770,Durham Advance,Supplies and Services,348037,Subsistence E348,13-Jan-2020,000006949874552,COSTA COFFEE 43038640,5814,Subsistence,2.10,0.35,1.75
Regeneration and Local Services,Culture Sport and Tourism,054812,Gala Theatre - Catering etc,Supplies and Services,324117,Provisions E324,13-Jan-2020,000006949874574,FREEMAN CATERING BUTCH,5422,Catering costs - provisions,15.18,0.00,15.18
Regeneration and Local Services,Development and Housing,030772,CLLD South,Transport,235057,Public Transport,13-Jan-2020,000006949874628,ARRIVA NORTH EAST,4131,Staff travelling,-16.32,0.00,-16.32
Children and Young Peoples Services,Head of Childrens Social Care,085361,LAC & Permanence Team 1,Supplies and Services,304403,Equipment and Materials,13-Jan-2020,000006949874634,DARLINGTON BC INTERNET,9399,Other consumables,11.00,0.00,11.00
Children and Young Peoples Services,Head of Early Help Inclusion & Vulnerable Children.,073998,TTF-Co-ordinator Grant,Transfer Payments,525033,Other,13-Jan-2020,000006949874648,MAGUIRES,5713,Grants to individuals,150.00,0.00,150.00
Regeneration and Local Services,Development and Housing,031576,B& B - Temp Accom,Supplies and Services,364320,Grants to Voluntary Organisations,13-Jan-2020,000006949874686,BUDGET EXPRESS HOTEL,7011,Accommodation assistance,278.00,46.33,231.67
Children and Young Peoples Services,Head of Education and Skills,071732,Dean Bank Childcare,Supplies and Services,324117,Provisions E324,13-Jan-2020,000006949874724,ASDA GROCERIES ONLINE,5411,Catering costs - provisions,55.09,0.00,55.09
Children and Young Peoples Services,Head of Education and Skills,071732,Dean Bank Childcare,Supplies and Services,324117,Provisions E324,13-Jan-2020,000006949874730,ASDA GROCERIES ONLINE,5411,Catering costs - provisions,52.47,0.00,52.47
Children and Young Peoples Services,Head of Education and Skills,071732,Dean Bank Childcare,Supplies and Services,324117,Provisions E324,13-Jan-2020,000006949874734,CO-OP GROUP 010503,5411,Catering costs - provisions,8.24,0.00,8.24
Children and Young Peoples Services,Head of Education and Skills,071732,Dean Bank Childcare,Supplies and Services,324117,Provisions E324,13-Jan-2020,000006949874738,ASDA GROCERIES ONLINE,5411,Catering costs - provisions,-0.50,0.00,-0.50
Children and Young Peoples Services,Head of Education and Skills,071732,Dean Bank Childcare,Supplies and Services,324117,Provisions E324,13-Jan-2020,000006949874742,ASDA GROCERIES ONLINE,5411,Catering costs - provisions,-6.96,0.00,-6.96
Adult and Health Services,Head of Adults,055807,Newton Aycliffe Pathways,Third Party Payments,474101,Purchase of Care,13-Jan-2020,000006949874748,PIONEERING CARE PARTNE,8050,Nursing care payments,18.00,0.00,18.00
Regeneration and Local Services,Environmental Services,010301,C&G - North Grounds Maintenance,Third Party Payments,430100,Rendered by Private Contractors,13-Jan-2020,000006949874870,JOHN WARREN (ANIMAL BY,7399,Payments to sub-contractors,12.00,0.00,12.00
Children and Young Peoples Services,Head of Early Help Inclusion & Vulnerable Children.,071445,Chester le Street One Point Hub,Supplies and Services,304259,Equipment and Materials,13-Jan-2020,000006949874888,GATESHEAD COUNCIL MOTO,9399,Equipment-purchase and rental,22.00,0.00,22.00
Children and Young Peoples Services,Head of Early Help Inclusion & Vulnerable Children.,085957,Secure Management,Supplies and Services,324117,Provisions E324,13-Jan-2020,000006949874892,TESCO STORES 6329,5411,Catering costs - provisions,132.99,0.00,132.99
Regeneration and Local Services,Environmental Services,011060,C&G - Hardwick Park Catering,Supplies and Services,324117,Provisions E324,13-Jan-2020,000006949874938,FREEMAN CATERING BUTCH,5422,Catering costs - provisions,35.63,0.00,35.63
Regeneration and Local Services,Environmental Services,011060,C&G - Hardwick Park Catering,Supplies and Services,324117,Provisions E324,13-Jan-2020,000006949874944,FREEMAN CATERING BUTCH,5422,Catering costs - provisions,28.27,0.00,28.27
Regeneration and Local Services,Corporate Property and Land,010525,Catering - Green Lane,Supplies and Services,324117,Provisions E324,13-Jan-2020,000006949875016,FREEMAN CATERING BUTCH,5422,Catering costs - provisions,45.94,0.00,45.94
Children and Young Peoples Services,Head of Childrens Social Care,085551,Short Break Services-Park Hse Sher,Supplies and Services,324117,Provisions E324,13-Jan-2020,000006949875052,ICELAND,5411,Catering costs - provisions,31.70,0.00,31.70
Children and Young Peoples Services,Head of Childrens Social Care,085626,Families First Shildon/Chilton,Supplies and Services,384999,Miscellaneous Expenses,13-Jan-2020,000006949875092,SumUp A West Electri,5999,Other expenses,85.00,0.00,85.00
Regeneration and Local Services,Development and Housing,031623,Rough Sleeping Initiative,Supplies and Services,304259,Equipment and Materials,13-Jan-2020,000006949875132,ARGOS LTD,5310,Equipment-purchase and rental,64.97,0.00,64.97
Children and Young Peoples Services,Head of Education and Skills,071802,Louisa Cent Nursery,Supplies and Services,324117,Provisions E324,13-Jan-2020,000006949875202,ALDI STORES,5411,Catering costs - provisions,6.72,1.12,5.60
Children and Young Peoples Services,Head of Education and Skills,071802,Louisa Cent Nursery,Supplies and Services,324117,Provisions E324,13-Jan-2020,000006949875202 - 1,ALDI STORES,5411,Catering costs - provisions,98.71,,98.71
Children and Young Peoples Services,Head of Childrens Social Care,085333,Coxhoe Satelite Home,Supplies and Services,324117,Provisions E324,13-Jan-2020,000006949875222,ASDA SUPERSTORE 4987,5411,Catering costs - provisions,55.97,0.00,55.97
Children and Young Peoples Services,Head of Childrens Social Care,085333,Coxhoe Satelite Home,Supplies and Services,324117,Provisions E324,13-Jan-2020,000006949875230,ASDA SUPERSTORE 4987,5411,Catering costs - provisions,27.37,0.00,27.37
Adult and Health Services,Head of Adults,055301,Stanley Pathways,Supplies and Services,324117,Provisions E324,13-Jan-2020,000006949875254,ASDA SUPERSTORE,5411,Catering costs - provisions,15.99,0.00,15.99
Children and Young Peoples Services,Head of Childrens Social Care,085342,9 Cedar Drive Aycliffe,Transport,235057,Public Transport,13-Jan-2020,000006949875262,ARRIVA NORTH EAST,4131,Staff travelling,100.00,0.00,100.00
Children and Young Peoples Services,Head of Childrens Social Care,085342,9 Cedar Drive Aycliffe,Supplies and Services,328041,Clothing uniforms and laundry E328,13-Jan-2020,000006949875268,B&M RETAIL LTD,5310,Clothing uniforms and laundry,17.28,0.00,17.28
Children and Young Peoples Services,Head of Childrens Social Care,085352,Tow Law CU,Supplies and Services,324117,Provisions E324,13-Jan-2020,000006949875288,ASDA SUPERSTORE 4987,5411,Catering costs - provisions,35.63,0.00,35.63
Regeneration and Local Services,Corporate Property and Land,030691,Catering - Durham Dales Centre,Supplies and Services,324117,Provisions E324,13-Jan-2020,000006949875292,FREEMAN CATERING BUTCH,5422,Catering costs - provisions,30.21,0.00,30.21
Regeneration and Local Services,Corporate Property and Land,030691,Catering - Durham Dales Centre,Supplies and Services,324117,Provisions E324,13-Jan-2020,000006949875298,FREEMAN CATERING BUTCH,5422,Catering costs - provisions,120.95,0.00,120.95
Adult and Health Services,Head of Adults,055643,Hawthorn House LD Respite Unit,Supplies and Services,324117,Provisions E324,13-Jan-2020,000006949875334,FREEMAN CATERING BUTCH,5422,Catering costs - provisions,31.74,0.00,31.74
Children and Young Peoples Services,Head of Early Help Inclusion & Vulnerable Children.,071445,Chester le Street One Point Hub,Supplies and Services,328041,Clothing uniforms and laundry E328,13-Jan-2020,000006949875372,B&M RETAIL LTD,5310,Clothing uniforms and laundry,8.97,0.00,8.97
Children and Young Peoples Services,Head of Early Help Inclusion & Vulnerable Children.,071445,Chester le Street One Point Hub,Supplies and Services,328041,Clothing uniforms and laundry E328,13-Jan-2020,000006949875378,POUNDLAND LTD 1330,5310,Clothing uniforms and laundry,10.00,1.67,8.33
Resources BK0010,Digital and Customer Services,065335,School Services - Implementations,Supplies and Services,304639,Equipment and Materials,13-Jan-2020,000006949875386,Amazon.co.uk 0G6O646K5,5969,Technicians-supplies,44.39,7.40,36.99
Resources BK0010,Digital and Customer Services,065335,School Services - Implementations,Supplies and Services,304303,Equipment and Materials,13-Jan-2020,000006949875390,AMZNMktplace,5999,Network for resale,7.85,1.31,6.54
Resources BK0010,Digital and Customer Services,065335,School Services - Implementations,Supplies and Services,304639,Equipment and Materials,13-Jan-2020,000006949875396,AMZNMktplace,5999,Technicians-supplies,11.96,0.00,11.96
Resources BK0010,Digital and Customer Services,065335,School Services - Implementations,Supplies and Services,304639,Equipment and Materials,13-Jan-2020,000006949875400,AMZNMktplace,5999,Technicians-supplies,24.87,4.17,20.70
Resources BK0010,Digital and Customer Services,065335,School Services - Implementations,Supplies and Services,304303,Equipment and Materials,13-Jan-2020,000006949875410,WWW.TOOLSTATION.COM,5251,Network for resale,59.96,9.99,49.97
Resources BK0010,Digital and Customer Services,065335,School Services - Implementations,Supplies and Services,304639,Equipment and Materials,13-Jan-2020,000006949875414,REPLACEBASE,5732,Technicians-supplies,262.95,43.83,219.12
Regeneration and Local Services,Corporate Property and Land,021324,Catering - Meadowfield,Supplies and Services,324117,Provisions E324,13-Jan-2020,000006949875508,FREEMAN CATERING BUTCH,5422,Catering costs - provisions,48.27,0.00,48.27
Regeneration and Local Services,Corporate Property and Land,021324,Catering - Meadowfield,Supplies and Services,324117,Provisions E324,13-Jan-2020,000006949875516,FREEMAN CATERING BUTCH,5422,Catering costs - provisions,44.45,0.00,44.45
Children and Young Peoples Services,Head of Early Help Inclusion & Vulnerable Children.,085801,CDYJS - Support,Supplies and Services,324117,Provisions E324,13-Jan-2020,000006949875538,ASDA GROCERIES ONLINE,5411,Catering costs - provisions,53.25,0.00,53.25
Children and Young Peoples Services,Head of Early Help Inclusion & Vulnerable Children.,085801,CDYJS - Support,Supplies and Services,324117,Provisions E324,13-Jan-2020,000006949875544,ASDA GROCERIES ONLINE,5411,Catering costs - provisions,-0.33,0.00,-0.33
Children and Young Peoples Services,Head of Education and Skills,071802,Louisa Cent Nursery,Supplies and Services,324117,Provisions E324,13-Jan-2020,000006949875580,ASDA SUPERSTORE,5411,Catering costs - provisions,58.32,0.00,58.32
Children and Young Peoples Services,Head of Early Help Inclusion & Vulnerable Children.,088107,Ferryhill & Newton Aycliffe 0-19 Community Family Hub,Supplies and Services,304403,Equipment and Materials,13-Jan-2020,000006949875664,AMZNMktplace,5999,Other consumables,29.97,5.01,24.96
Children and Young Peoples Services,Head of Childrens Social Care,085380,Operations Manager LAC Resources,Supplies and Services,324117,Provisions E324,13-Jan-2020,000006949875670,ASDA STORES,5411,Catering costs - provisions,14.85,0.00,14.85
Regeneration and Local Services,Corporate Property and Land,021234,Catering - Locomotion,Supplies and Services,324117,Provisions E324,13-Jan-2020,000006954135380,BATLEYS PERTH,5300,Catering costs - provisions,-20.80,0.00,-20.80
Regeneration and Local Services,Corporate Property and Land,030691,Catering - Durham Dales Centre,Supplies and Services,324117,Provisions E324,13-Jan-2020,000006954135606,BATLEYS PERTH,5300,Catering costs - provisions,40.08,6.68,33.40
Regeneration and Local Services,Corporate Property and Land,030691,Catering - Durham Dales Centre,Supplies and Services,324117,Provisions E324,13-Jan-2020,000006954135606 - 1,BATLEYS PERTH,5300,Catering costs - provisions,91.97,,91.97
Regeneration and Local Services,Business Durham CL0850,030694,Plexus 2,Supplies and Services,332047,Printing Stationery and Gen Off Exps,13-Jan-2020,000006954135980,VIKING UK,5111,Stationery,45.59,0.00,45.59
Regeneration and Local Services,Business Durham CL0850,030689,Inward Investment and Aftercare,Supplies and Services,304999,Equipment and Materials,14-Jan-2020,000006949874294,MOZ INC,5817,Misc equipment tools and materials,3.80,0.00,3.80
Regeneration and Local Services,Business Durham CL0850,030689,Inward Investment and Aftercare,Supplies and Services,342222,Computers and Communications,14-Jan-2020,000006954134846,FASTHOSTS INTERNET,4816,Comp hardware purch-network servers,48.00,0.00,48.00
Children and Young Peoples Services,Head of Education and Skills,071801,Selby Cottage Childcare Centre,Supplies and Services,324117,Provisions E324,14-Jan-2020,000006954134852,TESCO STORES 2278,5411,Catering costs - provisions,35.30,0.00,35.30
Regeneration and Local Services,Transport and Contracted Services,032225,Bus Shelter Advertising,Supplies and Services,304403,Equipment and Materials,14-Jan-2020,000006954134864,AMZNMktplace,5999,Other consumables,12.89,2.15,10.74
Resources BK0010,Digital and Customer Services,065432,Web Development Group,Supplies and Services,342053,Computers and Communications,14-Jan-2020,000006954134866,2CO.COM WPFront,7372,Computer software,69.46,0.00,69.46
Transformation and Partnerships,Strategy,060105,Corporate Performance Management,Supplies and Services,312075,Newspapers books and periodicals E312,14-Jan-2020,000006954134870,Amazon.co.uk AW2NA8WY5,5969,Text books,17.71,0.00,17.71
Resources BK0010,Digital and Customer Services,065487,ICT Telephony Recharges,Supplies and Services,304403,Equipment and Materials,14-Jan-2020,000006954134872,AMZNMktplace,5999,Other consumables,284.50,47.50,237.00
Transformation and Partnerships,Communications Management,060270,Communications and Marketing,Supplies and Services,342053,Computers and Communications,14-Jan-2020,000006954134876,PAYPAL ENVATO MKPL EN,5999,Computer software,14.43,0.00,14.43
Resources BK0010,Corporate Finance & Commercial Services,066820,Occupational Health Service,Employees,040149,Recruitment Instruction and Training,14-Jan-2020,000006954134878,WWW.STERLINGEVENTS.CO.,7399,Training-all costs,162.00,0.00,162.00
Regeneration and Local Services,Transport and Contracted Services,032225,Bus Shelter Advertising,Supplies and Services,304403,Equipment and Materials,14-Jan-2020,000006954134882,SCREWFIX DIRECT,5200,Other consumables,31.99,5.33,26.66
Regeneration and Local Services,Development and Housing,030773,CLLD North,Employees,040149,Recruitment Instruction and Training,14-Jan-2020,000006954134922,NCS VUE CITB HS&E REV,8299,Training-all costs,16.50,2.75,13.75
Regeneration and Local Services,Development and Housing,030773,CLLD North,Employees,040149,Recruitment Instruction and Training,14-Jan-2020,000006954134924,VUE NCS CITB HS&E TEST,8299,Training-all costs,21.00,0.00,21.00
Children and Young Peoples Services,Head of Childrens Social Care,085332,Middlestone Moor CU,Supplies and Services,324117,Provisions E324,14-Jan-2020,000006954134956,SAINSBURYS 2199,5411,Catering costs - provisions,21.80,0.00,21.80
Children and Young Peoples Services,Head of Childrens Social Care,085332,Middlestone Moor CU,Supplies and Services,324117,Provisions E324,14-Jan-2020,000006954134960,ALDI 15 774,5411,Catering costs - provisions,3.57,0.00,3.57
Children and Young Peoples Services,Head of Childrens Social Care,085341,High Etherley Satelite Home,Supplies and Services,324117,Provisions E324,14-Jan-2020,000006954134974,TESCO STORES 6329,5411,Catering costs - provisions,63.73,0.00,63.73
Children and Young Peoples Services,Head of Childrens Social Care,085341,High Etherley Satelite Home,Supplies and Services,304259,Equipment and Materials,14-Jan-2020,000006954134978,JD SPORTS PLC,5941,Equipment-purchase and rental,75.00,0.00,75.00
Regeneration and Local Services,Corporate Property and Land,021242,Catering - County Hall,Premises,145009,Cleaning and Domestic Supplies,14-Jan-2020,000006954135052,ALLIANCE DISPOSABLES L,2842,Other cleaning and domestic costs,409.32,68.22,341.10
Regeneration and Local Services,Corporate Property and Land,021242,Catering - County Hall,Premises,145009,Cleaning and Domestic Supplies,14-Jan-2020,000006954135052 - 1,ALLIANCE DISPOSABLES L,2842,Other cleaning and domestic costs,0.08,,0.08
Regeneration and Local Services,Development and Housing,030770,Durham Advance,Supplies and Services,328041,Clothing uniforms and laundry E328,14-Jan-2020,000006954135084,MATALAN.CO.UK,5691,Clothing uniforms and laundry,57.95,9.66,48.29
Regeneration and Local Services,Development and Housing,030770,Durham Advance,Supplies and Services,304259,Equipment and Materials,14-Jan-2020,000006954135088,GEN REGISTER OFFICE,9399,Equipment-purchase and rental,14.00,0.00,14.00
Children and Young Peoples Services,Head of Childrens Social Care,085361,LAC & Permanence Team 1,Supplies and Services,304403,Equipment and Materials,14-Jan-2020,000006954135134,GATESHEAD COUNCIL MOTO,9399,Other consumables,11.00,0.00,11.00
Children and Young Peoples Services,Head of Childrens Social Care,085362,LAC & Permanence Team 2,Supplies and Services,304403,Equipment and Materials,14-Jan-2020,000006954135136,CITY OF NEWCASTLE INTE,9399,Other consumables,11.00,0.00,11.00
Children and Young Peoples Services,Head of Childrens Social Care,085341,High Etherley Satelite Home,Supplies and Services,328041,Clothing uniforms and laundry E328,14-Jan-2020,000006954135140,SAINSBURYS SACAT 2199,5411,Clothing uniforms and laundry,9.00,0.00,9.00
Children and Young Peoples Services,Head of Childrens Social Care,085341,High Etherley Satelite Home,Supplies and Services,328041,Clothing uniforms and laundry E328,14-Jan-2020,000006954135142,ASDA STORES,5411,Clothing uniforms and laundry,45.00,0.00,45.00
Children and Young Peoples Services,Head of Childrens Social Care,085341,High Etherley Satelite Home,Supplies and Services,384999,Miscellaneous Expenses,14-Jan-2020,000006954135144,ASDA STORES,5411,Other expenses,9.48,0.00,9.48
Children and Young Peoples Services,Head of Childrens Social Care,085341,High Etherley Satelite Home,Supplies and Services,384999,Miscellaneous Expenses,14-Jan-2020,000006954135148,ARGOS BISHOP AUCKL,5310,Other expenses,1.00,0.00,1.00
Children and Young Peoples Services,Head of Childrens Social Care,085333,Coxhoe Satelite Home,Supplies and Services,324117,Provisions E324,14-Jan-2020,000006954135166,ASDA SUPERSTORE 4987,5411,Catering costs - provisions,16.79,0.00,16.79
Children and Young Peoples Services,Head of Childrens Social Care,085333,Coxhoe Satelite Home,Supplies and Services,304403,Equipment and Materials,14-Jan-2020,000006954135170,LOVE ISLAND SHOP,5734,Other consumables,29.50,0.00,29.50
Regeneration and Local Services,Development and Housing,031576,B& B - Temp Accom,Supplies and Services,364320,Grants to Voluntary Organisations,14-Jan-2020,000006954135182,GRAINGER HOTEL,7011,Accommodation assistance,250.00,41.67,208.33
Regeneration and Local Services,Environmental Services,010551,Fleet - Chilton Fleet,Transport,215013,Running Costs of Vehicles,14-Jan-2020,000006954135190,DVLA VEHICLE TAX,9311,Vehicle Excise Duty (VED),262.50,0.00,262.50
Children and Young Peoples Services,Head of Education and Skills,071732,Dean Bank Childcare,Supplies and Services,324117,Provisions E324,14-Jan-2020,000006954135200,SAINSBURYS SACAT (2303,5411,Catering costs - provisions,18.65,0.00,18.65
Regeneration and Local Services,Development and Housing,030771,Durham Advance Flexible Fund,Supplies and Services,304259,Equipment and Materials,14-Jan-2020,000006954135234,GEN REGISTER OFFICE,9399,Equipment-purchase and rental,14.00,0.00,14.00
Regeneration and Local Services,Development and Housing,030771,Durham Advance Flexible Fund,Supplies and Services,324117,Provisions E324,14-Jan-2020,000006954135254,TESCO STORES 2371,5411,Catering costs - provisions,4.55,0.00,4.55
Regeneration and Local Services,Development and Housing,031500,Housing Solutions - Core Team,Supplies and Services,352001,Conference Expenses,14-Jan-2020,000006954135266,THE HONEST LAWYER,7011,Conferencesseminars fees etc,142.50,0.00,142.50
Regeneration and Local Services,Development and Housing,031500,Housing Solutions - Core Team,Supplies and Services,352001,Conference Expenses,14-Jan-2020,000006954135268,FIR TREE COUNTRY HOTEL,7011,Conferencesseminars fees etc,75.00,0.00,75.00
Children and Young Peoples Services,Head of Early Help Inclusion & Vulnerable Children.,071445,Chester le Street One Point Hub,Supplies and Services,304259,Equipment and Materials,14-Jan-2020,000006954135274,HM PASSPORT OFFICE,9399,Equipment-purchase and rental,49.00,0.00,49.00
Children and Young Peoples Services,Head of Early Help Inclusion & Vulnerable Children.,071445,Chester le Street One Point Hub,Supplies and Services,304259,Equipment and Materials,14-Jan-2020,000006954135280,HM PASSPORT OFFICE,9399,Equipment-purchase and rental,49.00,0.00,49.00
Children and Young Peoples Services,Head of Early Help Inclusion & Vulnerable Children.,071445,Chester le Street One Point Hub,Supplies and Services,304259,Equipment and Materials,14-Jan-2020,000006954135286,WWW.DURHAM.GOV.UK,9399,Equipment-purchase and rental,11.00,0.00,11.00
Children and Young Peoples Services,Head of Early Help Inclusion & Vulnerable Children.,085957,Secure Management,Supplies and Services,304259,Equipment and Materials,14-Jan-2020,000006954135290,Chain Reaction Cycles,5941,Equipment-purchase and rental,79.99,0.00,79.99
Children and Young Peoples Services,Head of Early Help Inclusion & Vulnerable Children.,085957,Secure Management,Supplies and Services,328041,Clothing uniforms and laundry E328,14-Jan-2020,000006954135294,FOOTASYLUM PLC,5691,Clothing uniforms and laundry,39.99,0.00,39.99
Children and Young Peoples Services,Head of Early Help Inclusion & Vulnerable Children.,085957,Secure Management,Supplies and Services,304403,Equipment and Materials,14-Jan-2020,000006954135296,AMZNMktplace,5999,Other consumables,40.02,6.67,33.35
Children and Young Peoples Services,Head of Early Help Inclusion & Vulnerable Children.,085957,Secure Management,Supplies and Services,304403,Equipment and Materials,14-Jan-2020,000006954135296 - 1,AMZNMktplace,5999,Other consumables,5.96,,5.96
Children and Young Peoples Services,Head of Early Help Inclusion & Vulnerable Children.,085957,Secure Management,Supplies and Services,344033,Telephones,14-Jan-2020,000006954135300,PMC ELECTRICS LIMI,4812,Telephones general-all costs,185.90,0.00,185.90
Children and Young Peoples Services,Head of Early Help Inclusion & Vulnerable Children.,085957,Secure Management,Third Party Payments,430100,Rendered by Private Contractors,14-Jan-2020,000006954135304,WWW.WHOLESALEGLASSCOMP,7399,Payments to sub-contractors,202.61,0.00,202.61
Children and Young Peoples Services,Head of Early Help Inclusion & Vulnerable Children.,085957,Secure Management,Supplies and Services,304259,Equipment and Materials,14-Jan-2020,000006954135308,CURRYS ONLINE,5732,Equipment-purchase and rental,209.00,0.00,209.00
Children and Young Peoples Services,Head of Early Help Inclusion & Vulnerable Children.,085957,Secure Management,Supplies and Services,384999,Miscellaneous Expenses,14-Jan-2020,000006954135312,NEXT DIRECTORY,5965,Other expenses,13.99,0.00,13.99
Children and Young Peoples Services,Head of Early Help Inclusion & Vulnerable Children.,085957,Secure Management,Supplies and Services,304221,Equipment and Materials,14-Jan-2020,000006954135314,SCREWFIX DIRECT,5200,Direct materials,49.98,0.00,49.98
Transformation and Partnerships,Business Support,052986,CYPS - Locality and Operational Support,Supplies and Services,304403,Equipment and Materials,14-Jan-2020,000006954135318,ABILITY SMART LTD,5734,Other consumables,119.00,19.83,99.17
Transformation and Partnerships,Business Support,052986,CYPS - Locality and Operational Support,Supplies and Services,332047,Printing Stationery and Gen Off Exps,14-Jan-2020,000006954135322,Ergo2Work B.V,5943,Stationery,95.47,15.91,79.56
Transformation and Partnerships,Business Support,052986,CYPS - Locality and Operational Support,Supplies and Services,328041,Clothing uniforms and laundry E328,14-Jan-2020,000006954135326,WWW.JOHNLEWIS.COM,5311,Clothing uniforms and laundry,59.95,0.00,59.95
Regeneration and Local Services,Environmental Services,011060,C&G - Hardwick Park Catering,Premises,145009,Cleaning and Domestic Supplies,14-Jan-2020,000006954135336,ALLIANCE DISPOSABLES L,2842,Other cleaning and domestic costs,51.55,8.59,42.96
Regeneration and Local Services,Environmental Services,011060,C&G - Hardwick Park Catering,Premises,145009,Cleaning and Domestic Supplies,14-Jan-2020,000006954135340,ALLIANCE DISPOSABLES L,2842,Other cleaning and domestic costs,43.28,7.22,36.06
Children and Young Peoples Services,Head of Childrens Social Care,085331,New Lea Childrens Home,Supplies and Services,324117,Provisions E324,14-Jan-2020,000006954135386,ASDA SUPERSTORE,5411,Catering costs - provisions,175.00,0.00,175.00
Children and Young Peoples Services,Head of Childrens Social Care,085331,New Lea Childrens Home,Supplies and Services,324117,Provisions E324,14-Jan-2020,000006954135390,ASDA SUPERSTORE,5411,Catering costs - provisions,165.44,0.00,165.44
Children and Young Peoples Services,Head of Early Help Inclusion & Vulnerable Children.,088101,CLS 0-19 Community Family Hub,Supplies and Services,312009,Newspapers books and periodicals E312,14-Jan-2020,000006954135398,THE BOOK PEOPLE,5942,Newspapers books and periodicals,17.92,0.00,17.92
Resources BK0010,Finance & Transactional Services,065180,Collections,Employees,040149,Recruitment Instruction and Training,14-Jan-2020,000006954135468,WWW.GOV.UK,8999,Training-all costs,10.50,0.00,10.50
Children and Young Peoples Services,Head of Early Help Inclusion & Vulnerable Children.,088108,Spennymoor & Shildon 0-19 Targeted Family Support,Supplies and Services,304259,Equipment and Materials,14-Jan-2020,000006954135490,ASDA STORES,5411,Equipment-purchase and rental,26.00,0.00,26.00
Children and Young Peoples Services,Head of Early Help Inclusion & Vulnerable Children.,071443,Stanley One Point Hub,Supplies and Services,324117,Provisions E324,14-Jan-2020,000006954135494,THE PEN COMPANY,5399,Catering costs - provisions,9.40,0.00,9.40
Resources BK0010,Resources Management CK0450,069000,Resources Management 069000,Supplies and Services,324117,Provisions E324,14-Jan-2020,000006954135540,TESCO STORES 2371,5411,Catering costs - provisions,5.90,0.00,5.90
Adult and Health Services,Head of Adults,055301,Stanley Pathways,Supplies and Services,324117,Provisions E324,14-Jan-2020,000006954135548,CO-OP GROUP 310021,5411,Catering costs - provisions,2.30,0.00,2.30
Children and Young Peoples Services,Head of Early Help Inclusion & Vulnerable Children.,085957,Secure Management,Supplies and Services,328041,Clothing uniforms and laundry E328,14-Jan-2020,000006954135600,Michael Kors (UK) LTD,5651,Clothing uniforms and laundry,157.00,26.17,130.83
Children and Young Peoples Services,Head of Childrens Social Care,085332,Middlestone Moor CU,Supplies and Services,348037,Subsistence E348,14-Jan-2020,000006954135628,THE BOATHOUSE DURHAM,5812,Subsistence,25.00,0.00,25.00
Regeneration and Local Services,Environmental Services,031228,North Pennines - Fellfoot Forward,Transport,235057,Public Transport,14-Jan-2020,000006954135660,HEXHAM STN TO,4112,Staff travelling,17.90,0.00,17.90
Regeneration and Local Services,Environmental Services,010301,C&G - North Grounds Maintenance,Supplies and Services,304999,Equipment and Materials,14-Jan-2020,000006954135704,GRALANDS WOODWORK SUPP,5251,Misc equipment tools and materials,98.40,0.00,98.40
Children and Young Peoples Services,Head of Childrens Social Care,085633,Families First Chester-Le-Street,Supplies and Services,308011,Furniture,14-Jan-2020,000006954135720,AMZ HOME TREATS,5999,Furniture repair and replacement,-79.99,0.00,-79.99
Regeneration and Local Services,Development and Housing,030771,Durham Advance Flexible Fund,Supplies and Services,348037,Subsistence E348,14-Jan-2020,000006954135744,COSTA COFFEE 43038640,5814,Subsistence,2.55,0.43,2.12
Transformation and Partnerships,Business Support,052986,CYPS - Locality and Operational Support,Supplies and Services,304259,Equipment and Materials,14-Jan-2020,000006954135750,CURRYS ONLINE,5732,Equipment-purchase and rental,132.99,0.00,132.99
Children and Young Peoples Services,Head of Childrens Social Care,085342,9 Cedar Drive Aycliffe,Supplies and Services,324117,Provisions E324,14-Jan-2020,000006954135808,TESCO STORES 2916,5411,Catering costs - provisions,78.15,0.00,78.15
Children and Young Peoples Services,Head of Early Help Inclusion & Vulnerable Children.,088101,CLS 0-19 Community Family Hub,Supplies and Services,338057,Services,14-Jan-2020,000006954135836,ORAL HEALTH FOUNDATION,5047,Medical fees 338057,249.48,41.58,207.90
Children and Young Peoples Services,Head of Early Help Inclusion & Vulnerable Children.,088101,CLS 0-19 Community Family Hub,Supplies and Services,338057,Services,14-Jan-2020,000006954135840,ORAL HEALTH FOUNDATION,5047,Medical fees 338057,392.28,65.38,326.90
Children and Young Peoples Services,Head of Early Help Inclusion & Vulnerable Children.,088101,CLS 0-19 Community Family Hub,Supplies and Services,338057,Services,14-Jan-2020,000006954135842,ORAL HEALTH FOUNDATION,5047,Medical fees 338057,440.28,73.38,366.90
Children and Young Peoples Services,Head of Early Help Inclusion & Vulnerable Children.,088107,Ferryhill & Newton Aycliffe 0-19 Community Family Hub,Supplies and Services,304403,Equipment and Materials,14-Jan-2020,000006954135876,AMZNMktplace,5999,Other consumables,15.27,2.55,12.72
Regeneration and Local Services,Development and Housing,031500,Housing Solutions - Core Team,Supplies and Services,352001,Conference Expenses,14-Jan-2020,000006954135882,GRAINGER HOTEL,7011,Conferencesseminars fees etc,100.00,0.00,100.00
Regeneration and Local Services,Development and Housing,030776,LINKCD Flexible Fund,Supplies and Services,324117,Provisions E324,14-Jan-2020,000006954135904,TESCO STORES 2371,5411,Catering costs - provisions,4.80,0.80,4.00
Regeneration and Local Services,Development and Housing,030776,LINKCD Flexible Fund,Transport,235057,Public Transport,14-Jan-2020,000006954135908,ARRIVA NORTH EAST,4131,Staff travelling,23.00,0.00,23.00
Transformation and Partnerships,Business Support,069010,Administration 069010,Supplies and Services,342033,Computers and Communications,14-Jan-2020,000006954135926,SurveyMonkey,7372,Computer hardware,384.00,0.00,384.00
Adult and Health Services,Head of Adults,055309,Peterlee Pathways,Supplies and Services,328041,Clothing uniforms and laundry E328,14-Jan-2020,000006954135942,ARGOS LTD,5310,Clothing uniforms and laundry,34.99,0.00,34.99
Children and Young Peoples Services,Head of Childrens Social Care,085650,Pre Birth Team,Supplies and Services,304259,Equipment and Materials,14-Jan-2020,000006954135950,WWW.EASTSUSSEXCC.GOV.U,9399,Equipment-purchase and rental,22.00,0.00,22.00
Resources BK0010,Digital and Customer Services,065487,ICT Telephony Recharges,Supplies and Services,344033,Telephones,14-Jan-2020,000006959474870,AMZNMKTPLACE AMAZON.CO,5999,Telephones general-all costs,284.50,47.50,237.00
Regeneration and Local Services,Corporate Property and Land,021242,Catering - County Hall,Supplies and Services,324117,Provisions E324,14-Jan-2020,000006959475034,BATLEYS PERTH,5300,Catering costs - provisions,393.78,65.63,328.15
Regeneration and Local Services,Corporate Property and Land,021242,Catering - County Hall,Supplies and Services,324117,Provisions E324,14-Jan-2020,000006959475034 - 1,BATLEYS PERTH,5300,Catering costs - provisions,123.61,,123.61
Children and Young Peoples Services,Head of Childrens Social Care,085333,Coxhoe Satelite Home,Supplies and Services,328041,Clothing uniforms and laundry E328,14-Jan-2020,000006959475204,ARGOS LTD,5310,Clothing uniforms and laundry,12.00,0.00,12.00
Transformation and Partnerships,Business Support,052986,CYPS - Locality and Operational Support,Supplies and Services,324117,Provisions E324,14-Jan-2020,000006959475456,ASDA GROCERIES ONLINE,5411,Catering costs - provisions,427.71,0.00,427.71
Transformation and Partnerships,Business Support,052986,CYPS - Locality and Operational Support,Supplies and Services,324117,Provisions E324,14-Jan-2020,000006959475462,ASDA GROCERIES ONLINE,5411,Catering costs - provisions,-144.00,0.00,-144.00
Regeneration and Local Services,Environmental Services,011060,C&G - Hardwick Park Catering,Supplies and Services,324117,Provisions E324,14-Jan-2020,000006959475484,BATLEYS PERTH,5300,Catering costs - provisions,37.26,6.21,31.05
Regeneration and Local Services,Environmental Services,011060,C&G - Hardwick Park Catering,Supplies and Services,324117,Provisions E324,14-Jan-2020,000006959475484 - 1,BATLEYS PERTH,5300,Catering costs - provisions,92.41,,92.41
Regeneration and Local Services,Corporate Property and Land,021234,Catering - Locomotion,Supplies and Services,324117,Provisions E324,14-Jan-2020,000006959475544,BATLEYS PERTH,5300,Catering costs - provisions,123.30,20.55,102.75
Regeneration and Local Services,Corporate Property and Land,021234,Catering - Locomotion,Supplies and Services,324117,Provisions E324,14-Jan-2020,000006959475544 - 1,BATLEYS PERTH,5300,Catering costs - provisions,59.18,,59.18
Regeneration and Local Services,Corporate Property and Land,010525,Catering - Green Lane,Supplies and Services,324117,Provisions E324,14-Jan-2020,000006959475590,BATLEYS PERTH,5300,Catering costs - provisions,80.70,13.45,67.25
Regeneration and Local Services,Corporate Property and Land,010525,Catering - Green Lane,Supplies and Services,324117,Provisions E324,14-Jan-2020,000006959475590 - 1,BATLEYS PERTH,5300,Catering costs - provisions,77.65,,77.65
Regeneration and Local Services,Corporate Property and Land,010525,Catering - Green Lane,Supplies and Services,324117,Provisions E324,14-Jan-2020,000006959475596,BATLEYS PERTH,5300,Catering costs - provisions,11.04,0.00,11.04
Regeneration and Local Services,Corporate Property and Land,021324,Catering - Meadowfield,Supplies and Services,324117,Provisions E324,14-Jan-2020,000006959475940,BATLEYS PERTH,5300,Catering costs - provisions,153.96,25.66,128.30
Regeneration and Local Services,Corporate Property and Land,021324,Catering - Meadowfield,Supplies and Services,324117,Provisions E324,14-Jan-2020,000006959475940 - 1,BATLEYS PERTH,5300,Catering costs - provisions,103.91,,103.91
Resources BK0010,Digital and Customer Services,065432,Web Development Group,Supplies and Services,342053,Computers and Communications,15-Jan-2020,000006954134886,2CO.COM WPFront,7372,Computer software,1.91,0.00,1.91
Children and Young Peoples Services,Head of Childrens Social Care,085341,High Etherley Satelite Home,Supplies and Services,324117,Provisions E324,15-Jan-2020,000006959474818,SAINSBURYS 2199,5411,Catering costs - provisions,23.95,0.00,23.95
Children and Young Peoples Services,Head of Childrens Social Care,085341,High Etherley Satelite Home,Supplies and Services,304999,Equipment and Materials,15-Jan-2020,000006959474822,HOME BARGAINS,5251,Misc equipment tools and materials,35.94,5.99,29.95
Regeneration and Local Services,Corporate Property and Land,015048,Greencroft Centre Annfield Plain,Supplies and Services,332047,Printing Stationery and Gen Off Exps,15-Jan-2020,000006959474830,NYA,5499,Stationery,5.00,0.83,4.17
Children and Young Peoples Services,Head of Education and Skills,071801,Selby Cottage Childcare Centre,Supplies and Services,324117,Provisions E324,15-Jan-2020,000006959474836,ASDA GROCERIES ONLINE,5411,Catering costs - provisions,5.00,0.00,5.00
Children and Young Peoples Services,Head of Education and Skills,071801,Selby Cottage Childcare Centre,Supplies and Services,324117,Provisions E324,15-Jan-2020,000006959474842,TESCO STORES 2278,5411,Catering costs - provisions,69.35,0.00,69.35
Children and Young Peoples Services,Head of Education and Skills,071801,Selby Cottage Childcare Centre,Supplies and Services,324117,Provisions E324,15-Jan-2020,000006959474848,WILKO RETAIL LIMITED,5399,Catering costs - provisions,61.95,0.00,61.95
Regeneration and Local Services,Corporate Director (Regeneration & Local Services),030001,Corporate Director (Regeneration & Local Services),Supplies and Services,344033,Telephones,15-Jan-2020,000006959474878,AMZNMktplace,5999,Telephones general-all costs,7.99,1.33,6.66
Resources BK0010,Legal & Democratic Services,069326,Practice Management,Supplies and Services,332047,Printing Stationery and Gen Off Exps,15-Jan-2020,000006959474882,PAYPAL DICTATINGMA,5943,Stationery,195.00,0.00,195.00
Children and Young Peoples Services,Head of Early Help Inclusion & Vulnerable Children.,085952,Secure Education,Supplies and Services,342053,Computers and Communications,15-Jan-2020,000006959474884,APPLE.COM/UK,5732,Computer software,199.99,33.33,166.66
Children and Young Peoples Services,Head of Childrens Social Care,085357,LAC Bespoke Placements,Transport,235057,Public Transport,15-Jan-2020,000006959474888,HOLIDAY PAYMENT VRUK,4722,Staff travelling,275.00,0.00,275.00
Children and Young Peoples Services,Head of Childrens Social Care,085357,LAC Bespoke Placements,Transport,235057,Public Transport,15-Jan-2020,000006959474892,HOLIDAY PAYMENT VRUK,4722,Staff travelling,225.00,0.00,225.00
Children and Young Peoples Services,Head of Childrens Social Care,085501,Child Care Cases Legal Expenses,Supplies and Services,304403,Equipment and Materials,15-Jan-2020,000006959474896,KENT COUNTY COUNCIL,9399,Other consumables,35.00,0.00,35.00
Adult and Health Services,Head of Adults,055302,Durham Pathways,Supplies and Services,324117,Provisions E324,15-Jan-2020,000006959474916,ASDA STORES LTD 4313,5411,Catering costs - provisions,15.45,0.00,15.45
Regeneration and Local Services,Environmental Services,010383,C&G - South Street Cleansing,Supplies and Services,304221,Equipment and Materials,15-Jan-2020,000006959474924,AZTEC CHEMICALS LTD,5169,Direct materials,374.40,62.40,312.00
Children and Young Peoples Services,Head of Childrens Social Care,085332,Middlestone Moor CU,Supplies and Services,384999,Miscellaneous Expenses,15-Jan-2020,000006959474936,AMZNMktplace,5999,Other expenses,8.85,1.48,7.37
Children and Young Peoples Services,Head of Childrens Social Care,085332,Middlestone Moor CU,Supplies and Services,384999,Miscellaneous Expenses,15-Jan-2020,000006959474940,WILKO RETAIL LIMITED,5399,Other expenses,4.00,0.00,4.00
Regeneration and Local Services,Culture Sport and Tourism,011263,Louisa Centre 011263,Supplies and Services,324117,Provisions E324,15-Jan-2020,000006959474948,JR HOLLAND FOODSERVICE,5499,Catering costs - provisions,18.41,0.00,18.41
Children and Young Peoples Services,Head of Early Help Inclusion & Vulnerable Children.,088105,BA/BC/Crook 0-19 Community Family Hub,Supplies and Services,304259,Equipment and Materials,15-Jan-2020,000006959475016,AMZNMktplace,5999,Equipment-purchase and rental,13.92,2.32,11.60
Children and Young Peoples Services,Head of Early Help Inclusion & Vulnerable Children.,088104,BA/BC/Crook 0-19 Targeted Family Support,Supplies and Services,304649,Equipment and Materials,15-Jan-2020,000006959475016 - 1,AMZNMktplace,5999,Toys,0.04,,0.04
Children and Young Peoples Services,Head of Early Help Inclusion & Vulnerable Children.,088105,BA/BC/Crook 0-19 Community Family Hub,Supplies and Services,304259,Equipment and Materials,15-Jan-2020,000006959475024,ARGOS LTD,5310,Equipment-purchase and rental,28.94,0.00,28.94
Regeneration and Local Services,Corporate Property and Land,021242,Catering - County Hall,Supplies and Services,324117,Provisions E324,15-Jan-2020,000006959475042,JR HOLLAND FOODSERVICE,5499,Catering costs - provisions,124.23,0.00,124.23
Regeneration and Local Services,Corporate Property and Land,021242,Catering - County Hall,Supplies and Services,324117,Provisions E324,15-Jan-2020,000006959475046,JR HOLLAND FOODSERVICE,5499,Catering costs - provisions,130.86,0.00,130.86
Regeneration and Local Services,Corporate Property and Land,021242,Catering - County Hall,Supplies and Services,324117,Provisions E324,15-Jan-2020,000006959475050,JR HOLLAND FOODSERVICE,5499,Catering costs - provisions,6.94,0.00,6.94
Regeneration and Local Services,Corporate Property and Land,021242,Catering - County Hall,Supplies and Services,324117,Provisions E324,15-Jan-2020,000006959475054,JR HOLLAND FOODSERVICE,5499,Catering costs - provisions,12.60,0.00,12.60
Children and Young Peoples Services,Head of Childrens Social Care,085380,Operations Manager LAC Resources,Supplies and Services,304403,Equipment and Materials,15-Jan-2020,000006959475058,AMZNMktplace,5999,Other consumables,7.45,1.24,6.21
Children and Young Peoples Services,Head of Childrens Social Care,085380,Operations Manager LAC Resources,Supplies and Services,328041,Clothing uniforms and laundry E328,15-Jan-2020,000006959475062,ARGOS LTD,5310,Clothing uniforms and laundry,230.91,0.00,230.91
Children and Young Peoples Services,Head of Childrens Social Care,085380,Operations Manager LAC Resources,Supplies and Services,328041,Clothing uniforms and laundry E328,15-Jan-2020,000006959475064,ARGOS LTD,5310,Clothing uniforms and laundry,104.98,0.00,104.98
Children and Young Peoples Services,Head of Childrens Social Care,085332,Middlestone Moor CU,Supplies and Services,324117,Provisions E324,15-Jan-2020,000006959475104,TESCO STORES 2371,5411,Catering costs - provisions,1.05,0.00,1.05
Regeneration and Local Services,Culture Sport and Tourism,054812,Gala Theatre - Catering etc,Supplies and Services,324117,Provisions E324,15-Jan-2020,000006959475116,JR HOLLAND FOODSERVICE,5499,Catering costs - provisions,37.93,0.00,37.93
Regeneration and Local Services,Corporate Property and Land,021242,Catering - County Hall,Supplies and Services,324117,Provisions E324,15-Jan-2020,000006959475130,HERON FOODS LTD,5499,Catering costs - provisions,12.00,0.00,12.00
Children and Young Peoples Services,Head of Childrens Social Care,085361,LAC & Permanence Team 1,Supplies and Services,304403,Equipment and Materials,15-Jan-2020,000006959475174,HM PASSPORT OFFICE,9399,Other consumables,49.00,0.00,49.00
Children and Young Peoples Services,Head of Childrens Social Care,085333,Coxhoe Satelite Home,Transport,215995,Running Costs of Vehicles,15-Jan-2020,000006959475196,BOWBURN SERVICES,5541,Vehicle running expenses,62.00,10.33,51.67
Children and Young Peoples Services,Head of Childrens Social Care,085333,Coxhoe Satelite Home,Supplies and Services,384999,Miscellaneous Expenses,15-Jan-2020,000006959475202,Amazon.co.uk 794SV9HS5,5969,Other expenses,25.56,0.00,25.56
Adult and Health Services,Head of Adults,055807,Newton Aycliffe Pathways,Supplies and Services,324117,Provisions E324,15-Jan-2020,000006959475244,WILKO RETAIL LIMITED,5399,Catering costs - provisions,12.00,0.00,12.00
Regeneration and Local Services,Development and Housing,030771,Durham Advance Flexible Fund,Transport,235057,Public Transport,15-Jan-2020,000006959475262,Rail Seasons,4112,Staff travelling,25.80,0.00,25.80
Regeneration and Local Services,Development and Housing,030771,Durham Advance Flexible Fund,Supplies and Services,384700,Miscellaneous Expenses,15-Jan-2020,000006959475348,GO NORTH EAST LIMITED,4131,Miscellaneous grants,5.30,0.00,5.30
Regeneration and Local Services,Development and Housing,031500,Housing Solutions - Core Team,Supplies and Services,352001,Conference Expenses,15-Jan-2020,000006959475378,FIR TREE COUNTRY HOTEL,7011,Conferencesseminars fees etc,75.00,0.00,75.00
Regeneration and Local Services,Development and Housing,031500,Housing Solutions - Core Team,Supplies and Services,304259,Equipment and Materials,15-Jan-2020,000006959475380,GEN REGISTER OFFICE,9399,Equipment-purchase and rental,14.00,0.00,14.00
Children and Young Peoples Services,Head of Early Help Inclusion & Vulnerable Children.,071445,Chester le Street One Point Hub,Transport,235057,Public Transport,15-Jan-2020,000006959475382,SUNDERLAND CC,7523,Staff travelling,11.00,0.00,11.00
Children and Young Peoples Services,Head of Early Help Inclusion & Vulnerable Children.,071445,Chester le Street One Point Hub,Supplies and Services,304259,Equipment and Materials,15-Jan-2020,000006959475386,CITY OF NEWCASTLE INTE,9399,Equipment-purchase and rental,11.00,0.00,11.00
Children and Young Peoples Services,Head of Early Help Inclusion & Vulnerable Children.,071445,Chester le Street One Point Hub,Supplies and Services,304259,Equipment and Materials,15-Jan-2020,000006959475392,Durham County CNCL,9399,Equipment-purchase and rental,22.00,0.00,22.00
Children and Young Peoples Services,Head of Early Help Inclusion & Vulnerable Children.,071445,Chester le Street One Point Hub,Supplies and Services,304259,Equipment and Materials,15-Jan-2020,000006959475396,WWW.DURHAM.GOV.UK,9399,Equipment-purchase and rental,22.00,0.00,22.00
Children and Young Peoples Services,Head of Early Help Inclusion & Vulnerable Children.,085957,Secure Management,Supplies and Services,304403,Equipment and Materials,15-Jan-2020,000006959475400,AMZNMktplace,5999,Other consumables,1.83,0.00,1.83
Children and Young Peoples Services,Head of Early Help Inclusion & Vulnerable Children.,085957,Secure Management,Supplies and Services,304403,Equipment and Materials,15-Jan-2020,000006959475406,AMZNMktplace,5999,Other consumables,67.39,11.23,56.16
Children and Young Peoples Services,Head of Early Help Inclusion & Vulnerable Children.,085957,Secure Management,Supplies and Services,324117,Provisions E324,15-Jan-2020,000006959475410,TESCO STORES 6329,5411,Catering costs - provisions,40.89,0.00,40.89
Children and Young Peoples Services,Head of Early Help Inclusion & Vulnerable Children.,085957,Secure Management,Supplies and Services,304403,Equipment and Materials,15-Jan-2020,000006959475414,AMZNMktplace,5999,Other consumables,99.99,16.67,83.32
Children and Young Peoples Services,Head of Early Help Inclusion & Vulnerable Children.,085957,Secure Management,Supplies and Services,304403,Equipment and Materials,15-Jan-2020,000006959475416,AMZNMktplace,5999,Other consumables,35.00,5.83,29.17
